Body Name,Transaction Number,Account Code Description,Expenses Type,Service Code,Service Area Categorisation,Supplier Name,Date,Amount
Bath & North East Somerset Council,10702531,7F1,Rent,,,CURO,02/04/2013,30898.33
Bath & North East Somerset Council,10704631,PB4,Payments to Private Contractors,P05,Neighbourhoods,VIRIDOR WASTE MANAGEMENT LTD,26/04/2013,18251.52
Bath & North East Somerset Council,10704754,HE5,Security of Premises,P02,"Early Years, Children & Youth",KEY INTEGRATED SYSTEMS LTD,30/04/2013,453.25
Bath & North East Somerset Council,10702091,LJ2,Legal Fees,P09,Homes & Planning,LANDMARK CHAMBERS LTD,20/05/2013,9480
Bath & North East Somerset Council,80222701,LM6,Nursing Care,P03,Wellbeing,ANCHOR TRUST,03/06/2013,650
Bath & North East Somerset Council,80222701,LM6,Nursing Care,P03,Wellbeing,ANCHOR TRUST,03/06/2013,650
Bath & North East Somerset Council,10701868,KA3,Fuel,P01,Transport,SCOT GROUP LTD T/A THRIFTY CAR & VAN RENTAL,03/06/2013,46.4
Bath & North East Somerset Council,80222968,LL3,Supported Living,P03,Wellbeing,ARCH CARE SERVICES,03/06/2013,54.54
Bath & North East Somerset Council,80222968,LL3,Supported Living,P03,Wellbeing,ARCH CARE SERVICES,03/06/2013,54.54
Bath & North East Somerset Council,80222968,LL3,Supported Living,P03,Wellbeing,ARCH CARE SERVICES,03/06/2013,90
Bath & North East Somerset Council,80222968,LL3,Supported Living,P03,Wellbeing,ARCH CARE SERVICES,03/06/2013,90
Bath & North East Somerset Council,80222968,LL3,Supported Living,P03,Wellbeing,ARCH CARE SERVICES,03/06/2013,90.9
Bath & North East Somerset Council,80222968,LL3,Supported Living,P03,Wellbeing,ARCH CARE SERVICES,03/06/2013,90.9
Bath & North East Somerset Council,80222968,LL3,Supported Living,P03,Wellbeing,ARCH CARE SERVICES,03/06/2013,252.5
Bath & North East Somerset Council,80222968,LL3,Supported Living,P03,Wellbeing,ARCH CARE SERVICES,03/06/2013,252.5
Bath & North East Somerset Council,80222968,LL3,Supported Living,P03,Wellbeing,ARCH CARE SERVICES,03/06/2013,277.75
Bath & North East Somerset Council,80222968,LL3,Supported Living,P03,Wellbeing,ARCH CARE SERVICES,03/06/2013,277.75
Bath & North East Somerset Council,80222968,LL3,Supported Living,P03,Wellbeing,ARCH CARE SERVICES,03/06/2013,278.76
Bath & North East Somerset Council,80222968,LL3,Supported Living,P03,Wellbeing,ARCH CARE SERVICES,03/06/2013,278.76
Bath & North East Somerset Council,80222968,LL3,Supported Living,P03,Wellbeing,ARCH CARE SERVICES,03/06/2013,278.76
Bath & North East Somerset Council,80222968,LL3,Supported Living,P03,Wellbeing,ARCH CARE SERVICES,03/06/2013,278.76
Bath & North East Somerset Council,80222968,LL3,Supported Living,P03,Wellbeing,ARCH CARE SERVICES,03/06/2013,310.07
Bath & North East Somerset Council,80222968,LL3,Supported Living,P03,Wellbeing,ARCH CARE SERVICES,03/06/2013,310.07
Bath & North East Somerset Council,80222968,LL3,Supported Living,P03,Wellbeing,ARCH CARE SERVICES,03/06/2013,343
Bath & North East Somerset Council,80222968,LL3,Supported Living,P03,Wellbeing,ARCH CARE SERVICES,03/06/2013,343
Bath & North East Somerset Council,80222968,LL3,Supported Living,P03,Wellbeing,ARCH CARE SERVICES,03/06/2013,346.43
Bath & North East Somerset Council,80222968,LL3,Supported Living,P03,Wellbeing,ARCH CARE SERVICES,03/06/2013,346.43
Bath & North East Somerset Council,80222717,LM6,Nursing Care,P03,Wellbeing,ARCH CARE SERVICES,03/06/2013,427
Bath & North East Somerset Council,80222717,LM6,Nursing Care,P03,Wellbeing,ARCH CARE SERVICES,03/06/2013,427
Bath & North East Somerset Council,80222968,LL3,Supported Living,P03,Wellbeing,ARCH CARE SERVICES,03/06/2013,431.27
Bath & North East Somerset Council,80222968,LL3,Supported Living,P03,Wellbeing,ARCH CARE SERVICES,03/06/2013,431.27
Bath & North East Somerset Council,80222968,LL3,Supported Living,P03,Wellbeing,ARCH CARE SERVICES,03/06/2013,445
Bath & North East Somerset Council,80222968,LL3,Supported Living,P03,Wellbeing,ARCH CARE SERVICES,03/06/2013,445
Bath & North East Somerset Council,10701064,LG4,Interpreting Services,P02,"Early Years, Children & Youth",YOUR SAY ADVOCACY,03/06/2013,64.8
Bath & North East Somerset Council,80222706,LM6,Nursing Care,P03,Wellbeing,BARCHESTER HEALTHCARE,03/06/2013,915.3
Bath & North East Somerset Council,80222706,LM6,Nursing Care,P03,Wellbeing,BARCHESTER HEALTHCARE,03/06/2013,915.3
Bath & North East Somerset Council,80222695,LM6,Nursing Care,P03,Wellbeing,BARCHESTER HEALTHCARE HOMES LTD,03/06/2013,92.86
Bath & North East Somerset Council,80222695,LM6,Nursing Care,P03,Wellbeing,BARCHESTER HEALTHCARE HOMES LTD,03/06/2013,278.57
Bath & North East Somerset Council,80222695,LM6,Nursing Care,P03,Wellbeing,BARCHESTER HEALTHCARE HOMES LTD,03/06/2013,278.57
Bath & North East Somerset Council,80222695,LM6,Nursing Care,P03,Wellbeing,BARCHESTER HEALTHCARE HOMES LTD,03/06/2013,278.57
Bath & North East Somerset Council,80222695,LM6,Nursing Care,P03,Wellbeing,BARCHESTER HEALTHCARE HOMES LTD,03/06/2013,278.57
Bath & North East Somerset Council,80222695,LM6,Nursing Care,P03,Wellbeing,BARCHESTER HEALTHCARE HOMES LTD,03/06/2013,371.43
Bath & North East Somerset Council,80222695,LM6,Nursing Care,P03,Wellbeing,BARCHESTER HEALTHCARE HOMES LTD,03/06/2013,464.29
Bath & North East Somerset Council,80222695,LM6,Nursing Care,P03,Wellbeing,BARCHESTER HEALTHCARE HOMES LTD,03/06/2013,650
Bath & North East Somerset Council,80222695,LM6,Nursing Care,P03,Wellbeing,BARCHESTER HEALTHCARE HOMES LTD,03/06/2013,650
Bath & North East Somerset Council,80222695,LM6,Nursing Care,P03,Wellbeing,BARCHESTER HEALTHCARE HOMES LTD,03/06/2013,650
Bath & North East Somerset Council,80222695,LM6,Nursing Care,P03,Wellbeing,BARCHESTER HEALTHCARE HOMES LTD,03/06/2013,650
Bath & North East Somerset Council,80222695,LM6,Nursing Care,P03,Wellbeing,BARCHESTER HEALTHCARE HOMES LTD,03/06/2013,650
Bath & North East Somerset Council,80222695,LM6,Nursing Care,P03,Wellbeing,BARCHESTER HEALTHCARE HOMES LTD,03/06/2013,650
Bath & North East Somerset Council,80222695,LM6,Nursing Care,P03,Wellbeing,BARCHESTER HEALTHCARE HOMES LTD,03/06/2013,650
Bath & North East Somerset Council,80222695,LM6,Nursing Care,P03,Wellbeing,BARCHESTER HEALTHCARE HOMES LTD,03/06/2013,650
Bath & North East Somerset Council,80222695,LM6,Nursing Care,P03,Wellbeing,BARCHESTER HEALTHCARE HOMES LTD,03/06/2013,650
Bath & North East Somerset Council,80222695,LM6,Nursing Care,P03,Wellbeing,BARCHESTER HEALTHCARE HOMES LTD,03/06/2013,650
Bath & North East Somerset Council,80222695,LM6,Nursing Care,P03,Wellbeing,BARCHESTER HEALTHCARE HOMES LTD,03/06/2013,650
Bath & North East Somerset Council,80222695,LM6,Nursing Care,P03,Wellbeing,BARCHESTER HEALTHCARE HOMES LTD,03/06/2013,650
Bath & North East Somerset Council,80222695,LM6,Nursing Care,P03,Wellbeing,BARCHESTER HEALTHCARE HOMES LTD,03/06/2013,746
Bath & North East Somerset Council,80222695,LM6,Nursing Care,P03,Wellbeing,BARCHESTER HEALTHCARE HOMES LTD,03/06/2013,746
Bath & North East Somerset Council,80222695,LM6,Nursing Care,P03,Wellbeing,BARCHESTER HEALTHCARE HOMES LTD,03/06/2013,755
Bath & North East Somerset Council,80222695,LM6,Nursing Care,P03,Wellbeing,BARCHESTER HEALTHCARE HOMES LTD,03/06/2013,755
Bath & North East Somerset Council,80222695,LM6,Nursing Care,P03,Wellbeing,BARCHESTER HEALTHCARE HOMES LTD,03/06/2013,762.75
Bath & North East Somerset Council,80222695,LM6,Nursing Care,P03,Wellbeing,BARCHESTER HEALTHCARE HOMES LTD,03/06/2013,762.75
Bath & North East Somerset Council,80222695,LM6,Nursing Care,P03,Wellbeing,BARCHESTER HEALTHCARE HOMES LTD,03/06/2013,830
Bath & North East Somerset Council,80222695,LM6,Nursing Care,P03,Wellbeing,BARCHESTER HEALTHCARE HOMES LTD,03/06/2013,830
Bath & North East Somerset Council,80222695,LM6,Nursing Care,P03,Wellbeing,BARCHESTER HEALTHCARE HOMES LTD,03/06/2013,839.03
Bath & North East Somerset Council,80222695,LM6,Nursing Care,P03,Wellbeing,BARCHESTER HEALTHCARE HOMES LTD,03/06/2013,839.03
Bath & North East Somerset Council,80222695,LM6,Nursing Care,P03,Wellbeing,BARCHESTER HEALTHCARE HOMES LTD,03/06/2013,846
Bath & North East Somerset Council,80222695,LM6,Nursing Care,P03,Wellbeing,BARCHESTER HEALTHCARE HOMES LTD,03/06/2013,846
Bath & North East Somerset Council,80222695,LM6,Nursing Care,P03,Wellbeing,BARCHESTER HEALTHCARE HOMES LTD,03/06/2013,900
Bath & North East Somerset Council,80222695,LM6,Nursing Care,P03,Wellbeing,BARCHESTER HEALTHCARE HOMES LTD,03/06/2013,900
Bath & North East Somerset Council,80222721,LM6,Nursing Care,P03,Wellbeing,BARKER CHEMICALS LTD T/A ST TERESA'S NH,03/06/2013,464.29
Bath & North East Somerset Council,80222721,LM6,Nursing Care,P03,Wellbeing,BARKER CHEMICALS LTD T/A ST TERESA'S NH,03/06/2013,650
Bath & North East Somerset Council,80222721,LM6,Nursing Care,P03,Wellbeing,BARKER CHEMICALS LTD T/A ST TERESA'S NH,03/06/2013,650
Bath & North East Somerset Council,80222721,LM6,Nursing Care,P03,Wellbeing,BARKER CHEMICALS LTD T/A ST TERESA'S NH,03/06/2013,650
Bath & North East Somerset Council,80222721,LM6,Nursing Care,P03,Wellbeing,BARKER CHEMICALS LTD T/A ST TERESA'S NH,03/06/2013,650
Bath & North East Somerset Council,80222721,LM6,Nursing Care,P03,Wellbeing,BARKER CHEMICALS LTD T/A ST TERESA'S NH,03/06/2013,650
Bath & North East Somerset Council,80222721,LM6,Nursing Care,P03,Wellbeing,BARKER CHEMICALS LTD T/A ST TERESA'S NH,03/06/2013,650
Bath & North East Somerset Council,80222721,LM6,Nursing Care,P03,Wellbeing,BARKER CHEMICALS LTD T/A ST TERESA'S NH,03/06/2013,650
Bath & North East Somerset Council,80222721,LM6,Nursing Care,P03,Wellbeing,BARKER CHEMICALS LTD T/A ST TERESA'S NH,03/06/2013,650
Bath & North East Somerset Council,80222721,LM6,Nursing Care,P03,Wellbeing,BARKER CHEMICALS LTD T/A ST TERESA'S NH,03/06/2013,650
Bath & North East Somerset Council,80222721,LM6,Nursing Care,P03,Wellbeing,BARKER CHEMICALS LTD T/A ST TERESA'S NH,03/06/2013,750.75
Bath & North East Somerset Council,80222721,LM6,Nursing Care,P03,Wellbeing,BARKER CHEMICALS LTD T/A ST TERESA'S NH,03/06/2013,750.75
Bath & North East Somerset Council,80222721,LM6,Nursing Care,P03,Wellbeing,BARKER CHEMICALS LTD T/A ST TERESA'S NH,03/06/2013,787
Bath & North East Somerset Council,80222721,LM6,Nursing Care,P03,Wellbeing,BARKER CHEMICALS LTD T/A ST TERESA'S NH,03/06/2013,787
Bath & North East Somerset Council,80222721,LM6,Nursing Care,P03,Wellbeing,BARKER CHEMICALS LTD T/A ST TERESA'S NH,03/06/2013,800.35
Bath & North East Somerset Council,80222721,LM6,Nursing Care,P03,Wellbeing,BARKER CHEMICALS LTD T/A ST TERESA'S NH,03/06/2013,800.35
Bath & North East Somerset Council,80222721,LM6,Nursing Care,P03,Wellbeing,BARKER CHEMICALS LTD T/A ST TERESA'S NH,03/06/2013,1275.25
Bath & North East Somerset Council,80222721,LM6,Nursing Care,P03,Wellbeing,BARKER CHEMICALS LTD T/A ST TERESA'S NH,03/06/2013,1275.25
Bath & North East Somerset Council,80223091,LM8,Home Care,P03,Wellbeing,BLUEBIRD CARE (BATH),03/06/2013,1039.92
Bath & North East Somerset Council,80223091,LM8,Home Care,P03,Wellbeing,BLUEBIRD CARE (BATH),03/06/2013,1039.92
Bath & North East Somerset Council,80222700,LM6,Nursing Care,P03,Wellbeing,BRISTOL AGE CARE,03/06/2013,750
Bath & North East Somerset Council,80222700,LM6,Nursing Care,P03,Wellbeing,BRISTOL AGE CARE,03/06/2013,750
Bath & North East Somerset Council,80222707,LM6,Nursing Care,P03,Wellbeing,BROOKDALE HEALTHCARE LTD,03/06/2013,3619
Bath & North East Somerset Council,80222707,LM6,Nursing Care,P03,Wellbeing,BROOKDALE HEALTHCARE LTD,03/06/2013,3619
Bath & North East Somerset Council,80222725,LM6,Nursing Care,P03,Wellbeing,CARE FIRST CARE HOMES LTD,03/06/2013,650
Bath & North East Somerset Council,80222725,LM6,Nursing Care,P03,Wellbeing,CARE FIRST CARE HOMES LTD,03/06/2013,650
Bath & North East Somerset Council,80222725,LM6,Nursing Care,P03,Wellbeing,CARE FIRST CARE HOMES LTD,03/06/2013,754.61
Bath & North East Somerset Council,80222725,LM6,Nursing Care,P03,Wellbeing,CARE FIRST CARE HOMES LTD,03/06/2013,754.61
Bath & North East Somerset Council,80222725,LM6,Nursing Care,P03,Wellbeing,CARE FIRST CARE HOMES LTD,03/06/2013,894.96
Bath & North East Somerset Council,80222725,LM6,Nursing Care,P03,Wellbeing,CARE FIRST CARE HOMES LTD,03/06/2013,894.96
Bath & North East Somerset Council,80223081,LM8,Home Care,P03,Wellbeing,CARE SOUTH,03/06/2013,1.86
Bath & North East Somerset Council,80223080,LM8,Home Care,P03,Wellbeing,CARE SOUTH,03/06/2013,7.28
Bath & North East Somerset Council,80223081,LM8,Home Care,P03,Wellbeing,CARE SOUTH,03/06/2013,50.1
Bath & North East Somerset Council,80223081,LM8,Home Care,P03,Wellbeing,CARE SOUTH,03/06/2013,150.3
Bath & North East Somerset Council,80223081,LM8,Home Care,P03,Wellbeing,CARE SOUTH,03/06/2013,150.3
Bath & North East Somerset Council,80223081,LM8,Home Care,P03,Wellbeing,CARE SOUTH,03/06/2013,150.3
Bath & North East Somerset Council,80223080,LM8,Home Care,P03,Wellbeing,CARE SOUTH,03/06/2013,167
Bath & North East Somerset Council,80223075,LM8,Home Care,P03,Wellbeing,CARE SOUTH,03/06/2013,175.35
Bath & North East Somerset Council,80223075,LM8,Home Care,P03,Wellbeing,CARE SOUTH,03/06/2013,175.35
Bath & North East Somerset Council,80223075,LM8,Home Care,P03,Wellbeing,CARE SOUTH,03/06/2013,175.35
Bath & North East Somerset Council,80223075,LM8,Home Care,P03,Wellbeing,CARE SOUTH,03/06/2013,175.35
Bath & North East Somerset Council,80223075,LM8,Home Care,P03,Wellbeing,CARE SOUTH,03/06/2013,175.35
Bath & North East Somerset Council,80223080,LM8,Home Care,P03,Wellbeing,CARE SOUTH,03/06/2013,233.8
Bath & North East Somerset Council,80223080,LM8,Home Care,P03,Wellbeing,CARE SOUTH,03/06/2013,233.8
Bath & North East Somerset Council,80223080,LM8,Home Care,P03,Wellbeing,CARE SOUTH,03/06/2013,233.8
Bath & North East Somerset Council,80223075,LM8,Home Care,P03,Wellbeing,CARE SOUTH,03/06/2013,350.7
Bath & North East Somerset Council,80223075,LM8,Home Care,P03,Wellbeing,CARE SOUTH,03/06/2013,350.7
Bath & North East Somerset Council,80223075,LM8,Home Care,P03,Wellbeing,CARE SOUTH,03/06/2013,350.7
Bath & North East Somerset Council,80223075,LM8,Home Care,P03,Wellbeing,CARE SOUTH,03/06/2013,350.7
Bath & North East Somerset Council,80223075,LM8,Home Care,P03,Wellbeing,CARE SOUTH,03/06/2013,350.7
Bath & North East Somerset Council,80223079,LM8,Home Care,P03,Wellbeing,CARE SOUTH,03/06/2013,467.6
Bath & North East Somerset Council,80223079,LM8,Home Care,P03,Wellbeing,CARE SOUTH,03/06/2013,467.6
Bath & North East Somerset Council,80223079,LM8,Home Care,P03,Wellbeing,CARE SOUTH,03/06/2013,467.6
Bath & North East Somerset Council,80223079,LM8,Home Care,P03,Wellbeing,CARE SOUTH,03/06/2013,467.6
Bath & North East Somerset Council,80223079,LM8,Home Care,P03,Wellbeing,CARE SOUTH,03/06/2013,467.6
Bath & North East Somerset Council,80223084,LM8,Home Care,P03,Wellbeing,CARE SOUTH,03/06/2013,526.05
Bath & North East Somerset Council,80223084,LM8,Home Care,P03,Wellbeing,CARE SOUTH,03/06/2013,526.05
Bath & North East Somerset Council,80223084,LM8,Home Care,P03,Wellbeing,CARE SOUTH,03/06/2013,526.05
Bath & North East Somerset Council,80222711,LM6,Nursing Care,P03,Wellbeing,CEDAR CARE HOMES LTD,03/06/2013,650
Bath & North East Somerset Council,80222711,LM6,Nursing Care,P03,Wellbeing,CEDAR CARE HOMES LTD,03/06/2013,650
Bath & North East Somerset Council,80222727,LM6,Nursing Care,P03,Wellbeing,CEDAR CARE HOMES LTD,03/06/2013,650
Bath & North East Somerset Council,80222727,LM6,Nursing Care,P03,Wellbeing,CEDAR CARE HOMES LTD,03/06/2013,650
Bath & North East Somerset Council,80222727,LM6,Nursing Care,P03,Wellbeing,CEDAR CARE HOMES LTD,03/06/2013,650
Bath & North East Somerset Council,80222727,LM6,Nursing Care,P03,Wellbeing,CEDAR CARE HOMES LTD,03/06/2013,650
Bath & North East Somerset Council,80222727,LM6,Nursing Care,P03,Wellbeing,CEDAR CARE HOMES LTD,03/06/2013,650
Bath & North East Somerset Council,80222727,LM6,Nursing Care,P03,Wellbeing,CEDAR CARE HOMES LTD,03/06/2013,650
Bath & North East Somerset Council,80222727,LM6,Nursing Care,P03,Wellbeing,CEDAR CARE HOMES LTD,03/06/2013,800
Bath & North East Somerset Council,80222727,LM6,Nursing Care,P03,Wellbeing,CEDAR CARE HOMES LTD,03/06/2013,800
Bath & North East Somerset Council,80222727,LM6,Nursing Care,P03,Wellbeing,CEDAR CARE HOMES LTD,03/06/2013,800
Bath & North East Somerset Council,80222727,LM6,Nursing Care,P03,Wellbeing,CEDAR CARE HOMES LTD,03/06/2013,800
Bath & North East Somerset Council,80222711,LM6,Nursing Care,P03,Wellbeing,CEDAR CARE HOMES LTD,03/06/2013,1180
Bath & North East Somerset Council,80222711,LM6,Nursing Care,P03,Wellbeing,CEDAR CARE HOMES LTD,03/06/2013,1180
Bath & North East Somerset Council,80222735,LM6,Nursing Care,P03,Wellbeing,CEDAR PARK NURSING HOME,03/06/2013,278.57
Bath & North East Somerset Council,80222735,LM6,Nursing Care,P03,Wellbeing,CEDAR PARK NURSING HOME,03/06/2013,464.29
Bath & North East Somerset Council,80222735,LM6,Nursing Care,P03,Wellbeing,CEDAR PARK NURSING HOME,03/06/2013,650
Bath & North East Somerset Council,80222735,LM6,Nursing Care,P03,Wellbeing,CEDAR PARK NURSING HOME,03/06/2013,650
Bath & North East Somerset Council,80222735,LM6,Nursing Care,P03,Wellbeing,CEDAR PARK NURSING HOME,03/06/2013,650
Bath & North East Somerset Council,80222735,LM6,Nursing Care,P03,Wellbeing,CEDAR PARK NURSING HOME,03/06/2013,650
Bath & North East Somerset Council,80222735,LM6,Nursing Care,P03,Wellbeing,CEDAR PARK NURSING HOME,03/06/2013,650
Bath & North East Somerset Council,80222735,LM6,Nursing Care,P03,Wellbeing,CEDAR PARK NURSING HOME,03/06/2013,725
Bath & North East Somerset Council,80222735,LM6,Nursing Care,P03,Wellbeing,CEDAR PARK NURSING HOME,03/06/2013,725
Bath & North East Somerset Council,10701023,HA4,Responsive Maintenance PCB,P07,Community Resources,ASHTON AIR CONDITIONING SERVICES LIMITED,03/06/2013,460
Bath & North East Somerset Council,10701911,HA2,Servicing,P06,Sustainable Development,ASHTON AIR CONDITIONING SERVICES LIMITED,03/06/2013,542
Bath & North East Somerset Council,80222716,LM6,Nursing Care,P03,Wellbeing,COMMUNITY OF ST ANTONY & ST ELIAS & REV FR BGPR &,03/06/2013,1665
Bath & North East Somerset Council,80222716,LM6,Nursing Care,P03,Wellbeing,COMMUNITY OF ST ANTONY & ST ELIAS & REV FR BGPR &,03/06/2013,1665
Bath & North East Somerset Council,80223090,LM8,Home Care,P03,Wellbeing,COMPLETE CARE HOLDINGS LIMITED,03/06/2013,5418.48
Bath & North East Somerset Council,80223090,LM8,Home Care,P03,Wellbeing,COMPLETE CARE HOLDINGS LIMITED,03/06/2013,5418.48
Bath & North East Somerset Council,80223090,LM8,Home Care,P03,Wellbeing,COMPLETE CARE HOLDINGS LIMITED,03/06/2013,5418.48
Bath & North East Somerset Council,80223090,LM8,Home Care,P03,Wellbeing,COMPLETE CARE HOLDINGS LIMITED,03/06/2013,5418.48
Bath & North East Somerset Council,80223090,LM8,Home Care,P03,Wellbeing,COMPLETE CARE HOLDINGS LIMITED,03/06/2013,5418.48
Bath & North East Somerset Council,80223087,LM8,Home Care,P03,Wellbeing,COMPLETE CARE SERVICES WILTSHIRE,03/06/2013,74.28
Bath & North East Somerset Council,80223087,LM8,Home Care,P03,Wellbeing,COMPLETE CARE SERVICES WILTSHIRE,03/06/2013,74.28
Bath & North East Somerset Council,80223087,LM8,Home Care,P03,Wellbeing,COMPLETE CARE SERVICES WILTSHIRE,03/06/2013,74.28
Bath & North East Somerset Council,80223087,LM8,Home Care,P03,Wellbeing,COMPLETE CARE SERVICES WILTSHIRE,03/06/2013,74.28
Bath & North East Somerset Council,80223087,LM8,Home Care,P03,Wellbeing,COMPLETE CARE SERVICES WILTSHIRE,03/06/2013,219.85
Bath & North East Somerset Council,80223087,LM8,Home Care,P03,Wellbeing,COMPLETE CARE SERVICES WILTSHIRE,03/06/2013,443.5
Bath & North East Somerset Council,80223087,LM8,Home Care,P03,Wellbeing,COMPLETE CARE SERVICES WILTSHIRE,03/06/2013,443.5
Bath & North East Somerset Council,80223087,LM8,Home Care,P03,Wellbeing,COMPLETE CARE SERVICES WILTSHIRE,03/06/2013,443.5
Bath & North East Somerset Council,80223087,LM8,Home Care,P03,Wellbeing,COMPLETE CARE SERVICES WILTSHIRE,03/06/2013,443.5
Bath & North East Somerset Council,80222734,LM6,Nursing Care,P03,Wellbeing,CRANHILL NURSING HOME,03/06/2013,201.71
Bath & North East Somerset Council,80222734,LM6,Nursing Care,P03,Wellbeing,CRANHILL NURSING HOME,03/06/2013,706
Bath & North East Somerset Council,80222737,LM6,Nursing Care,P03,Wellbeing,CULVERHAY NURSING HOME,03/06/2013,600
Bath & North East Somerset Council,80222737,LM6,Nursing Care,P03,Wellbeing,CULVERHAY NURSING HOME,03/06/2013,600
Bath & North East Somerset Council,80222737,LM6,Nursing Care,P03,Wellbeing,CULVERHAY NURSING HOME,03/06/2013,650
Bath & North East Somerset Council,80222737,LM6,Nursing Care,P03,Wellbeing,CULVERHAY NURSING HOME,03/06/2013,650
Bath & North East Somerset Council,80222737,LM6,Nursing Care,P03,Wellbeing,CULVERHAY NURSING HOME,03/06/2013,650
Bath & North East Somerset Council,80222737,LM6,Nursing Care,P03,Wellbeing,CULVERHAY NURSING HOME,03/06/2013,650
Bath & North East Somerset Council,80222737,LM6,Nursing Care,P03,Wellbeing,CULVERHAY NURSING HOME,03/06/2013,650
Bath & North East Somerset Council,80222737,LM6,Nursing Care,P03,Wellbeing,CULVERHAY NURSING HOME,03/06/2013,650
Bath & North East Somerset Council,80222737,LM6,Nursing Care,P03,Wellbeing,CULVERHAY NURSING HOME,03/06/2013,650
Bath & North East Somerset Council,80222737,LM6,Nursing Care,P03,Wellbeing,CULVERHAY NURSING HOME,03/06/2013,650
Bath & North East Somerset Council,80222737,LM6,Nursing Care,P03,Wellbeing,CULVERHAY NURSING HOME,03/06/2013,650
Bath & North East Somerset Council,80222737,LM6,Nursing Care,P03,Wellbeing,CULVERHAY NURSING HOME,03/06/2013,650
Bath & North East Somerset Council,80222737,LM6,Nursing Care,P03,Wellbeing,CULVERHAY NURSING HOME,03/06/2013,700
Bath & North East Somerset Council,80222737,LM6,Nursing Care,P03,Wellbeing,CULVERHAY NURSING HOME,03/06/2013,700
Bath & North East Somerset Council,80222737,LM6,Nursing Care,P03,Wellbeing,CULVERHAY NURSING HOME,03/06/2013,725
Bath & North East Somerset Council,80222737,LM6,Nursing Care,P03,Wellbeing,CULVERHAY NURSING HOME,03/06/2013,725
Bath & North East Somerset Council,80222737,LM6,Nursing Care,P03,Wellbeing,CULVERHAY NURSING HOME,03/06/2013,750
Bath & North East Somerset Council,80222737,LM6,Nursing Care,P03,Wellbeing,CULVERHAY NURSING HOME,03/06/2013,750
Bath & North East Somerset Council,80222737,LM6,Nursing Care,P03,Wellbeing,CULVERHAY NURSING HOME,03/06/2013,750
Bath & North East Somerset Council,80222737,LM6,Nursing Care,P03,Wellbeing,CULVERHAY NURSING HOME,03/06/2013,750
Bath & North East Somerset Council,80222737,LM6,Nursing Care,P03,Wellbeing,CULVERHAY NURSING HOME,03/06/2013,750
Bath & North East Somerset Council,80222737,LM6,Nursing Care,P03,Wellbeing,CULVERHAY NURSING HOME,03/06/2013,750
Bath & North East Somerset Council,80222737,LM6,Nursing Care,P03,Wellbeing,CULVERHAY NURSING HOME,03/06/2013,750
Bath & North East Somerset Council,80222737,LM6,Nursing Care,P03,Wellbeing,CULVERHAY NURSING HOME,03/06/2013,750
Bath & North East Somerset Council,80222737,LM6,Nursing Care,P03,Wellbeing,CULVERHAY NURSING HOME,03/06/2013,750
Bath & North East Somerset Council,80222737,LM6,Nursing Care,P03,Wellbeing,CULVERHAY NURSING HOME,03/06/2013,750
Bath & North East Somerset Council,80222737,LM6,Nursing Care,P03,Wellbeing,CULVERHAY NURSING HOME,03/06/2013,750
Bath & North East Somerset Council,80222737,LM6,Nursing Care,P03,Wellbeing,CULVERHAY NURSING HOME,03/06/2013,750
Bath & North East Somerset Council,80222737,LM6,Nursing Care,P03,Wellbeing,CULVERHAY NURSING HOME,03/06/2013,750
Bath & North East Somerset Council,80222737,LM6,Nursing Care,P03,Wellbeing,CULVERHAY NURSING HOME,03/06/2013,750
Bath & North East Somerset Council,80222737,LM6,Nursing Care,P03,Wellbeing,CULVERHAY NURSING HOME,03/06/2013,750
Bath & North East Somerset Council,80222737,LM6,Nursing Care,P03,Wellbeing,CULVERHAY NURSING HOME,03/06/2013,750
Bath & North East Somerset Council,80222737,LM6,Nursing Care,P03,Wellbeing,CULVERHAY NURSING HOME,03/06/2013,800
Bath & North East Somerset Council,80222737,LM6,Nursing Care,P03,Wellbeing,CULVERHAY NURSING HOME,03/06/2013,800
Bath & North East Somerset Council,80222737,LM6,Nursing Care,P03,Wellbeing,CULVERHAY NURSING HOME,03/06/2013,800
Bath & North East Somerset Council,80222737,LM6,Nursing Care,P03,Wellbeing,CULVERHAY NURSING HOME,03/06/2013,800
Bath & North East Somerset Council,80222737,LM6,Nursing Care,P03,Wellbeing,CULVERHAY NURSING HOME,03/06/2013,1409
Bath & North East Somerset Council,80222737,LM6,Nursing Care,P03,Wellbeing,CULVERHAY NURSING HOME,03/06/2013,1409
Bath & North East Somerset Council,80222894,LL8,Individualised Budget,P03,Wellbeing,DEVON SHELTERED HOMES TRUST - REDACTED,03/06/2013,393.27
Bath & North East Somerset Council,80222894,LL8,Individualised Budget,P03,Wellbeing,DEVON SHELTERED HOMES TRUST - REDACTED,03/06/2013,393.27
Bath & North East Somerset Council,80222837,LL8,Individualised Budget,P03,Wellbeing,DEVON SHELTERED HOMES TRUST - REDACTED,03/06/2013,474.15
Bath & North East Somerset Council,80222837,LL8,Individualised Budget,P03,Wellbeing,DEVON SHELTERED HOMES TRUST - REDACTED,03/06/2013,474.15
Bath & North East Somerset Council,80222952,LL8,Individualised Budget,P03,Wellbeing,DEVON SHELTERED HOMES TRUST - REDACTED,03/06/2013,369.38
Bath & North East Somerset Council,80222952,LL8,Individualised Budget,P03,Wellbeing,DEVON SHELTERED HOMES TRUST - REDACTED,03/06/2013,369.38
Bath & North East Somerset Council,80223025,LL8,Individualised Budget,P03,Wellbeing,DEVON SHELTERED HOMES TRUST - REDACTED,03/06/2013,499.61
Bath & North East Somerset Council,80223025,LL8,Individualised Budget,P03,Wellbeing,DEVON SHELTERED HOMES TRUST - REDACTED,03/06/2013,499.61
Bath & North East Somerset Council,10701868,KB1,Hire of Vehicles,P01,Transport,SCOT GROUP LTD T/A THRIFTY CAR & VAN RENTAL,03/06/2013,386.96
Bath & North East Somerset Council,10701174,LJ4,Contracts,P01,Transport,AIR SEAL PRODUCTS LTD,03/06/2013,416.7
Bath & North East Somerset Council,80222714,LM6,Nursing Care,P03,Wellbeing,DORSET LODGE LTD,03/06/2013,1082
Bath & North East Somerset Council,80222714,LM6,Nursing Care,P03,Wellbeing,DORSET LODGE LTD,03/06/2013,1082
Bath & North East Somerset Council,80222697,LM6,Nursing Care,P03,Wellbeing,EUROPEAN CARE (UK) LTD - REDACTED,03/06/2013,650
Bath & North East Somerset Council,80222697,LM6,Nursing Care,P03,Wellbeing,EUROPEAN CARE (UK) LTD - REDACTED,03/06/2013,650
Bath & North East Somerset Council,80222697,LM6,Nursing Care,P03,Wellbeing,EUROPEAN CARE (UK) LTD - REDACTED,03/06/2013,650
Bath & North East Somerset Council,80222697,LM6,Nursing Care,P03,Wellbeing,EUROPEAN CARE (UK) LTD - REDACTED,03/06/2013,650
Bath & North East Somerset Council,80222697,LM6,Nursing Care,P03,Wellbeing,EUROPEAN CARE (UK) LTD - REDACTED,03/06/2013,739.87
Bath & North East Somerset Council,80222697,LM6,Nursing Care,P03,Wellbeing,EUROPEAN CARE (UK) LTD - REDACTED,03/06/2013,739.87
Bath & North East Somerset Council,10701907,LW9,Other Expenses,P04,Leader,CYCLESCHEME LTD,03/06/2013,452.48
Bath & North East Somerset Council,10700566,HA6,Planned Maintenance PCB,P07,Community Resources,CLIVEDEN CONSERVATION WORKSHOP,03/06/2013,3527
Bath & North East Somerset Council,80222705,LM6,Nursing Care,P03,Wellbeing,EUROPEAN CARE SW LTD - REDACTED,03/06/2013,650
Bath & North East Somerset Council,80222705,LM6,Nursing Care,P03,Wellbeing,EUROPEAN CARE SW LTD - REDACTED,03/06/2013,650
Bath & North East Somerset Council,80222705,LM6,Nursing Care,P03,Wellbeing,EUROPEAN CARE SW LTD - REDACTED,03/06/2013,650
Bath & North East Somerset Council,80222705,LM6,Nursing Care,P03,Wellbeing,EUROPEAN CARE SW LTD - REDACTED,03/06/2013,650
Bath & North East Somerset Council,80222712,LM6,Nursing Care,P03,Wellbeing,EXTRAFRIEND LTD,03/06/2013,762.75
Bath & North East Somerset Council,80222712,LM6,Nursing Care,P03,Wellbeing,EXTRAFRIEND LTD,03/06/2013,762.75
Bath & North East Somerset Council,10701514,HA5,Service Contract PCB,P07,Community Resources,TYCO FIRE & INTEGRATED SOLUTIONS (UK) LTD,03/06/2013,473.74
Bath & North East Somerset Council,80222718,LM6,Nursing Care,P03,Wellbeing,GLENSIDE MANOR HEALTHCARE SERVICES LTD,03/06/2013,1401.43
Bath & North East Somerset Council,80222718,LM6,Nursing Care,P03,Wellbeing,GLENSIDE MANOR HEALTHCARE SERVICES LTD,03/06/2013,1401.43
Bath & North East Somerset Council,80222718,LM6,Nursing Care,P03,Wellbeing,GLENSIDE MANOR HEALTHCARE SERVICES LTD,03/06/2013,1511.26
Bath & North East Somerset Council,80222718,LM6,Nursing Care,P03,Wellbeing,GLENSIDE MANOR HEALTHCARE SERVICES LTD,03/06/2013,1511.26
Bath & North East Somerset Council,80222719,LM6,Nursing Care,P03,Wellbeing,GLENSIDE MANOR HEALTHCARE SERVICES LTD,03/06/2013,1528.55
Bath & North East Somerset Council,80222719,LM6,Nursing Care,P03,Wellbeing,GLENSIDE MANOR HEALTHCARE SERVICES LTD,03/06/2013,1528.55
Bath & North East Somerset Council,80223011,LM3,Residential Care,P03,Wellbeing,GROVE CARE LTD T/A ORIEL LODGE,03/06/2013,85.71
Bath & North East Somerset Council,80223011,LM3,Residential Care,P03,Wellbeing,GROVE CARE LTD T/A ORIEL LODGE,03/06/2013,600
Bath & North East Somerset Council,80223011,LM3,Residential Care,P03,Wellbeing,GROVE CARE LTD T/A ORIEL LODGE,03/06/2013,600
Bath & North East Somerset Council,80223011,LM3,Residential Care,P03,Wellbeing,GROVE CARE LTD T/A ORIEL LODGE,03/06/2013,600
Bath & North East Somerset Council,10701064,LG4,Interpreting Services,P02,"Early Years, Children & Youth",YOUR SAY ADVOCACY,03/06/2013,488.25
Bath & North East Somerset Council,10701729,LA5,Materials,P05,Neighbourhoods,F A SMITH,03/06/2013,492
Bath & North East Somerset Council,80222967,LM6,Nursing Care,P03,Wellbeing,HEATHER HOUSE,03/06/2013,78.86
Bath & North East Somerset Council,80222967,LM6,Nursing Care,P03,Wellbeing,HEATHER HOUSE,03/06/2013,236.57
Bath & North East Somerset Council,80222967,LM6,Nursing Care,P03,Wellbeing,HEATHER HOUSE,03/06/2013,552
Bath & North East Somerset Council,80222834,LL8,Individualised Budget,P03,Wellbeing,ILSA,03/06/2013,573.16
Bath & North East Somerset Council,80222834,LL8,Individualised Budget,P03,Wellbeing,ILSA,03/06/2013,573.16
Bath & North East Somerset Council,80222696,LM6,Nursing Care,P03,Wellbeing,LARKHALL SPRINGS NURSING HOME,03/06/2013,278.57
Bath & North East Somerset Council,80222696,LM6,Nursing Care,P03,Wellbeing,LARKHALL SPRINGS NURSING HOME,03/06/2013,371.43
Bath & North East Somerset Council,80222696,LM6,Nursing Care,P03,Wellbeing,LARKHALL SPRINGS NURSING HOME,03/06/2013,557.14
Bath & North East Somerset Council,80222710,LM6,Nursing Care,P03,Wellbeing,LEONARD CHESHIRE FOUNDATION,03/06/2013,955.21
Bath & North East Somerset Council,80222710,LM6,Nursing Care,P03,Wellbeing,LEONARD CHESHIRE FOUNDATION,03/06/2013,955.21
Bath & North East Somerset Council,80222710,LM6,Nursing Care,P03,Wellbeing,LEONARD CHESHIRE FOUNDATION,03/06/2013,1013.81
Bath & North East Somerset Council,80222710,LM6,Nursing Care,P03,Wellbeing,LEONARD CHESHIRE FOUNDATION,03/06/2013,1013.81
Bath & North East Somerset Council,80222710,LM6,Nursing Care,P03,Wellbeing,LEONARD CHESHIRE FOUNDATION,03/06/2013,1260.27
Bath & North East Somerset Council,80222710,LM6,Nursing Care,P03,Wellbeing,LEONARD CHESHIRE FOUNDATION,03/06/2013,1260.27
Bath & North East Somerset Council,80222710,LM6,Nursing Care,P03,Wellbeing,LEONARD CHESHIRE FOUNDATION,03/06/2013,1321.05
Bath & North East Somerset Council,80222710,LM6,Nursing Care,P03,Wellbeing,LEONARD CHESHIRE FOUNDATION,03/06/2013,1321.05
Bath & North East Somerset Council,80222710,LM6,Nursing Care,P03,Wellbeing,LEONARD CHESHIRE FOUNDATION,03/06/2013,1348.54
Bath & North East Somerset Council,80222710,LM6,Nursing Care,P03,Wellbeing,LEONARD CHESHIRE FOUNDATION,03/06/2013,1348.54
Bath & North East Somerset Council,80222724,LM6,Nursing Care,P03,Wellbeing,LIFESTYLE CARE (2005) PLC,03/06/2013,775
Bath & North East Somerset Council,80222724,LM6,Nursing Care,P03,Wellbeing,LIFESTYLE CARE (2005) PLC,03/06/2013,775
Bath & North East Somerset Council,80222703,LM6,Nursing Care,P03,Wellbeing,METHODIST HOMES FOR THE AGED,03/06/2013,650
Bath & North East Somerset Council,80222703,LM6,Nursing Care,P03,Wellbeing,METHODIST HOMES FOR THE AGED,03/06/2013,650
Bath & North East Somerset Council,80222732,LM6,Nursing Care,P03,Wellbeing,MILESTONES TRUST,03/06/2013,1057.46
Bath & North East Somerset Council,80222732,LM6,Nursing Care,P03,Wellbeing,MILESTONES TRUST,03/06/2013,1057.46
Bath & North East Somerset Council,80222698,LM6,Nursing Care,P03,Wellbeing,MIMOSA HEALTHCARE,03/06/2013,650
Bath & North East Somerset Council,80222698,LM6,Nursing Care,P03,Wellbeing,MIMOSA HEALTHCARE,03/06/2013,650
Bath & North East Somerset Council,80222731,LM6,Nursing Care,P03,Wellbeing,NEWBRIDGE TOWERS RESIDENTIAL CARE HOME,03/06/2013,650
Bath & North East Somerset Council,80222731,LM6,Nursing Care,P03,Wellbeing,NEWBRIDGE TOWERS RESIDENTIAL CARE HOME,03/06/2013,650
Bath & North East Somerset Council,80222799,LL3,Supported Living,P03,Wellbeing,OPTIONS FOR LIVING LTD,03/06/2013,58.08
Bath & North East Somerset Council,80222799,LL3,Supported Living,P03,Wellbeing,OPTIONS FOR LIVING LTD,03/06/2013,58.08
Bath & North East Somerset Council,80222799,LL3,Supported Living,P03,Wellbeing,OPTIONS FOR LIVING LTD,03/06/2013,116.16
Bath & North East Somerset Council,80222799,LL3,Supported Living,P03,Wellbeing,OPTIONS FOR LIVING LTD,03/06/2013,116.16
Bath & North East Somerset Council,80222799,LL3,Supported Living,P03,Wellbeing,OPTIONS FOR LIVING LTD,03/06/2013,116.16
Bath & North East Somerset Council,80222799,LL3,Supported Living,P03,Wellbeing,OPTIONS FOR LIVING LTD,03/06/2013,116.16
Bath & North East Somerset Council,80222799,LL3,Supported Living,P03,Wellbeing,OPTIONS FOR LIVING LTD,03/06/2013,116.16
Bath & North East Somerset Council,80222799,LL3,Supported Living,P03,Wellbeing,OPTIONS FOR LIVING LTD,03/06/2013,116.16
Bath & North East Somerset Council,80222799,LL3,Supported Living,P03,Wellbeing,OPTIONS FOR LIVING LTD,03/06/2013,124.46
Bath & North East Somerset Council,80222799,LL3,Supported Living,P03,Wellbeing,OPTIONS FOR LIVING LTD,03/06/2013,150.4
Bath & North East Somerset Council,80222799,LL3,Supported Living,P03,Wellbeing,OPTIONS FOR LIVING LTD,03/06/2013,150.4
Bath & North East Somerset Council,80222799,LL3,Supported Living,P03,Wellbeing,OPTIONS FOR LIVING LTD,03/06/2013,170.89
Bath & North East Somerset Council,80222799,LL3,Supported Living,P03,Wellbeing,OPTIONS FOR LIVING LTD,03/06/2013,170.89
Bath & North East Somerset Council,80222799,LL3,Supported Living,P03,Wellbeing,OPTIONS FOR LIVING LTD,03/06/2013,174.24
Bath & North East Somerset Council,80222799,LL3,Supported Living,P03,Wellbeing,OPTIONS FOR LIVING LTD,03/06/2013,174.24
Bath & North East Somerset Council,80222799,LL3,Supported Living,P03,Wellbeing,OPTIONS FOR LIVING LTD,03/06/2013,174.24
Bath & North East Somerset Council,80222799,LL3,Supported Living,P03,Wellbeing,OPTIONS FOR LIVING LTD,03/06/2013,174.24
Bath & North East Somerset Council,80222799,LL3,Supported Living,P03,Wellbeing,OPTIONS FOR LIVING LTD,03/06/2013,174.24
Bath & North East Somerset Council,80222799,LL3,Supported Living,P03,Wellbeing,OPTIONS FOR LIVING LTD,03/06/2013,232.32
Bath & North East Somerset Council,80222799,LL3,Supported Living,P03,Wellbeing,OPTIONS FOR LIVING LTD,03/06/2013,232.32
Bath & North East Somerset Council,80222799,LL3,Supported Living,P03,Wellbeing,OPTIONS FOR LIVING LTD,03/06/2013,271.04
Bath & North East Somerset Council,80222799,LL3,Supported Living,P03,Wellbeing,OPTIONS FOR LIVING LTD,03/06/2013,271.04
Bath & North East Somerset Council,80222799,LL3,Supported Living,P03,Wellbeing,OPTIONS FOR LIVING LTD,03/06/2013,290.4
Bath & North East Somerset Council,80222799,LL3,Supported Living,P03,Wellbeing,OPTIONS FOR LIVING LTD,03/06/2013,290.4
Bath & North East Somerset Council,80222799,LL3,Supported Living,P03,Wellbeing,OPTIONS FOR LIVING LTD,03/06/2013,387.2
Bath & North East Somerset Council,80222799,LL3,Supported Living,P03,Wellbeing,OPTIONS FOR LIVING LTD,03/06/2013,387.2
Bath & North East Somerset Council,80222799,LL3,Supported Living,P03,Wellbeing,OPTIONS FOR LIVING LTD,03/06/2013,546
Bath & North East Somerset Council,80222799,LL3,Supported Living,P03,Wellbeing,OPTIONS FOR LIVING LTD,03/06/2013,546
Bath & North East Somerset Council,80222799,LL3,Supported Living,P03,Wellbeing,OPTIONS FOR LIVING LTD,03/06/2013,580.5
Bath & North East Somerset Council,80222799,LL3,Supported Living,P03,Wellbeing,OPTIONS FOR LIVING LTD,03/06/2013,580.5
Bath & North East Somerset Council,80222799,LL3,Supported Living,P03,Wellbeing,OPTIONS FOR LIVING LTD,03/06/2013,615
Bath & North East Somerset Council,80222799,LL3,Supported Living,P03,Wellbeing,OPTIONS FOR LIVING LTD,03/06/2013,615
Bath & North East Somerset Council,80222799,LL3,Supported Living,P03,Wellbeing,OPTIONS FOR LIVING LTD,03/06/2013,694.62
Bath & North East Somerset Council,80222799,LL3,Supported Living,P03,Wellbeing,OPTIONS FOR LIVING LTD,03/06/2013,694.62
Bath & North East Somerset Council,80222799,LL3,Supported Living,P03,Wellbeing,OPTIONS FOR LIVING LTD,03/06/2013,753
Bath & North East Somerset Council,80222799,LL3,Supported Living,P03,Wellbeing,OPTIONS FOR LIVING LTD,03/06/2013,753
Bath & North East Somerset Council,80222736,LM6,Nursing Care,P03,Wellbeing,PARK STREET HOME,03/06/2013,750
Bath & North East Somerset Council,80222736,LM6,Nursing Care,P03,Wellbeing,PARK STREET HOME,03/06/2013,750
Bath & North East Somerset Council,80222870,LL8,Individualised Budget,P03,Wellbeing,PHOENIX (SW) LTD,03/06/2013,66.3
Bath & North East Somerset Council,80222870,LL8,Individualised Budget,P03,Wellbeing,PHOENIX (SW) LTD,03/06/2013,66.3
Bath & North East Somerset Council,80222870,LL8,Individualised Budget,P03,Wellbeing,PHOENIX (SW) LTD,03/06/2013,90.28
Bath & North East Somerset Council,80222870,LL8,Individualised Budget,P03,Wellbeing,PHOENIX (SW) LTD,03/06/2013,90.28
Bath & North East Somerset Council,80222870,LL8,Individualised Budget,P03,Wellbeing,PHOENIX (SW) LTD,03/06/2013,106.31
Bath & North East Somerset Council,80222870,LL8,Individualised Budget,P03,Wellbeing,PHOENIX (SW) LTD,03/06/2013,106.31
Bath & North East Somerset Council,80222870,LL8,Individualised Budget,P03,Wellbeing,PHOENIX (SW) LTD,03/06/2013,144.85
Bath & North East Somerset Council,80222870,LL8,Individualised Budget,P03,Wellbeing,PHOENIX (SW) LTD,03/06/2013,144.85
Bath & North East Somerset Council,80222870,LL8,Individualised Budget,P03,Wellbeing,PHOENIX (SW) LTD,03/06/2013,145.5
Bath & North East Somerset Council,80222870,LL8,Individualised Budget,P03,Wellbeing,PHOENIX (SW) LTD,03/06/2013,145.5
Bath & North East Somerset Council,80222870,LL8,Individualised Budget,P03,Wellbeing,PHOENIX (SW) LTD,03/06/2013,207.77
Bath & North East Somerset Council,80222870,LL8,Individualised Budget,P03,Wellbeing,PHOENIX (SW) LTD,03/06/2013,207.77
Bath & North East Somerset Council,80222870,LL8,Individualised Budget,P03,Wellbeing,PHOENIX (SW) LTD,03/06/2013,277.21
Bath & North East Somerset Council,80222870,LL8,Individualised Budget,P03,Wellbeing,PHOENIX (SW) LTD,03/06/2013,277.21
Bath & North East Somerset Council,80222870,LL8,Individualised Budget,P03,Wellbeing,PHOENIX (SW) LTD,03/06/2013,345
Bath & North East Somerset Council,80222870,LL8,Individualised Budget,P03,Wellbeing,PHOENIX (SW) LTD,03/06/2013,345
Bath & North East Somerset Council,80222870,LL8,Individualised Budget,P03,Wellbeing,PHOENIX (SW) LTD,03/06/2013,386.03
Bath & North East Somerset Council,80222870,LL8,Individualised Budget,P03,Wellbeing,PHOENIX (SW) LTD,03/06/2013,386.03
Bath & North East Somerset Council,80222870,LL8,Individualised Budget,P03,Wellbeing,PHOENIX (SW) LTD,03/06/2013,401.29
Bath & North East Somerset Council,80222870,LL8,Individualised Budget,P03,Wellbeing,PHOENIX (SW) LTD,03/06/2013,401.29
Bath & North East Somerset Council,80222870,LL8,Individualised Budget,P03,Wellbeing,PHOENIX (SW) LTD,03/06/2013,426.84
Bath & North East Somerset Council,80222870,LL8,Individualised Budget,P03,Wellbeing,PHOENIX (SW) LTD,03/06/2013,426.84
Bath & North East Somerset Council,80222870,LL8,Individualised Budget,P03,Wellbeing,PHOENIX (SW) LTD,03/06/2013,506.98
Bath & North East Somerset Council,80222870,LL8,Individualised Budget,P03,Wellbeing,PHOENIX (SW) LTD,03/06/2013,506.98
Bath & North East Somerset Council,80223059,LM8,Home Care,P03,Wellbeing,PRESTIGE NURSING HEALTHCARE,03/06/2013,922.56
Bath & North East Somerset Council,80223058,LM8,Home Care,P03,Wellbeing,PRESTIGE NURSING HEALTHCARE,03/06/2013,1558.16
Bath & North East Somerset Council,80223035,LL3,Supported Living,P03,Wellbeing,PRESTIGE NURSING HEALTHCARE,03/06/2013,2590.45
Bath & North East Somerset Council,80223058,LM8,Home Care,P03,Wellbeing,PRESTIGE NURSING HEALTHCARE,03/06/2013,6750
Bath & North East Somerset Council,80223059,LM8,Home Care,P03,Wellbeing,PRESTIGE NURSING HEALTHCARE,03/06/2013,6750
Bath & North East Somerset Council,80223092,LM8,Home Care,P03,Wellbeing,PULSE HEALTHCARE LTD,03/06/2013,542.98
Bath & North East Somerset Council,80223092,LM8,Home Care,P03,Wellbeing,PULSE HEALTHCARE LTD,03/06/2013,798.5
Bath & North East Somerset Council,80222874,LL8,Individualised Budget,P03,Wellbeing,REDACTED,03/06/2013,298.46
Bath & North East Somerset Council,80222874,LL8,Individualised Budget,P03,Wellbeing,REDACTED,03/06/2013,298.46
Bath & North East Somerset Council,80222822,LL8,Individualised Budget,P03,Wellbeing,REDACTED,03/06/2013,463.34
Bath & North East Somerset Council,80222822,LL8,Individualised Budget,P03,Wellbeing,REDACTED,03/06/2013,463.34
Bath & North East Somerset Council,80222923,LL8,Individualised Budget,P03,Wellbeing,REDACTED,03/06/2013,602.22
Bath & North East Somerset Council,80222923,LL8,Individualised Budget,P03,Wellbeing,REDACTED,03/06/2013,602.22
Bath & North East Somerset Council,80222964,LL8,Individualised Budget,P03,Wellbeing,REDACTED,03/06/2013,346.5
Bath & North East Somerset Council,80222964,LL8,Individualised Budget,P03,Wellbeing,REDACTED,03/06/2013,346.5
Bath & North East Somerset Council,80222750,LL4,Direct Payments,P03,Wellbeing,REDACTED,03/06/2013,1293.48
Bath & North East Somerset Council,80222750,LL4,Direct Payments,P03,Wellbeing,REDACTED,03/06/2013,1293.48
Bath & North East Somerset Council,80223003,LL8,Individualised Budget,P03,Wellbeing,REDACTED,03/06/2013,500
Bath & North East Somerset Council,80222884,LL8,Individualised Budget,P03,Wellbeing,REDACTED,03/06/2013,1487.45
Bath & North East Somerset Council,80222884,LL8,Individualised Budget,P03,Wellbeing,REDACTED,03/06/2013,1487.45
Bath & North East Somerset Council,80222796,LL8,Individualised Budget,P03,Wellbeing,REDACTED,03/06/2013,386.53
Bath & North East Somerset Council,80222796,LL8,Individualised Budget,P03,Wellbeing,REDACTED,03/06/2013,386.53
Bath & North East Somerset Council,10701447,LC3,Drugs,P03,Wellbeing,ELM TREE PHARMACY,03/06/2013,599.11
Bath & North East Somerset Council,80223008,LL8,Individualised Budget,P03,Wellbeing,REDACTED,03/06/2013,345
Bath & North East Somerset Council,80223008,LL8,Individualised Budget,P03,Wellbeing,REDACTED,03/06/2013,345
Bath & North East Somerset Council,80223024,LL8,Individualised Budget,P03,Wellbeing,REDACTED,03/06/2013,1325.96
Bath & North East Somerset Council,80223024,LL8,Individualised Budget,P03,Wellbeing,REDACTED,03/06/2013,1325.96
Bath & North East Somerset Council,80222852,LL8,Individualised Budget,P03,Wellbeing,REDACTED,03/06/2013,735
Bath & North East Somerset Council,80222852,LL8,Individualised Budget,P03,Wellbeing,REDACTED,03/06/2013,735
Bath & North East Somerset Council,80222920,LL8,Individualised Budget,P03,Wellbeing,REDACTED,03/06/2013,381.33
Bath & North East Somerset Council,80222920,LL8,Individualised Budget,P03,Wellbeing,REDACTED,03/06/2013,381.33
Bath & North East Somerset Council,80222969,LL8,Individualised Budget,P03,Wellbeing,REDACTED,03/06/2013,159.75
Bath & North East Somerset Council,80222969,LL8,Individualised Budget,P03,Wellbeing,REDACTED,03/06/2013,372.74
Bath & North East Somerset Council,80222969,LL8,Individualised Budget,P03,Wellbeing,REDACTED,03/06/2013,372.74
Bath & North East Somerset Council,80222969,LL8,Individualised Budget,P03,Wellbeing,REDACTED,03/06/2013,372.74
Bath & North East Somerset Council,80222969,LL8,Individualised Budget,P03,Wellbeing,REDACTED,03/06/2013,372.74
Bath & North East Somerset Council,80222969,LL8,Individualised Budget,P03,Wellbeing,REDACTED,03/06/2013,372.74
Bath & North East Somerset Council,80222940,LL8,Individualised Budget,P03,Wellbeing,REDACTED,03/06/2013,327.2
Bath & North East Somerset Council,80222940,LL8,Individualised Budget,P03,Wellbeing,REDACTED,03/06/2013,327.2
Bath & North East Somerset Council,80222913,LL8,Individualised Budget,P03,Wellbeing,REDACTED,03/06/2013,500
Bath & North East Somerset Council,80222816,LL8,Individualised Budget,P03,Wellbeing,REDACTED,03/06/2013,289.37
Bath & North East Somerset Council,80222816,LL8,Individualised Budget,P03,Wellbeing,REDACTED,03/06/2013,289.37
Bath & North East Somerset Council,80222991,LL8,Individualised Budget,P03,Wellbeing,REDACTED,03/06/2013,297.15
Bath & North East Somerset Council,80222991,LL8,Individualised Budget,P03,Wellbeing,REDACTED,03/06/2013,297.15
Bath & North East Somerset Council,80222938,LL8,Individualised Budget,P03,Wellbeing,REDACTED,03/06/2013,500
Bath & North East Somerset Council,80222972,LL8,Individualised Budget,P03,Wellbeing,REDACTED,03/06/2013,344.72
Bath & North East Somerset Council,80222972,LL8,Individualised Budget,P03,Wellbeing,REDACTED,03/06/2013,344.72
Bath & North East Somerset Council,80223015,LL8,Individualised Budget,P03,Wellbeing,REDACTED,03/06/2013,305.94
Bath & North East Somerset Council,80223015,LL8,Individualised Budget,P03,Wellbeing,REDACTED,03/06/2013,305.94
Bath & North East Somerset Council,80222971,LL8,Individualised Budget,P03,Wellbeing,REDACTED,03/06/2013,702
Bath & North East Somerset Council,80222971,LL8,Individualised Budget,P03,Wellbeing,REDACTED,03/06/2013,702
Bath & North East Somerset Council,80222954,YF2,Fees & Charges,P03,Wellbeing,REDACTED,03/06/2013,41.85
Bath & North East Somerset Council,80222954,YF2,Fees & Charges,P03,Wellbeing,REDACTED,03/06/2013,97.66
Bath & North East Somerset Council,80222954,YF2,Fees & Charges,P03,Wellbeing,REDACTED,03/06/2013,97.66
Bath & North East Somerset Council,80222954,YF2,Fees & Charges,P03,Wellbeing,REDACTED,03/06/2013,97.66
Bath & North East Somerset Council,80222954,LL8,Individualised Budget,P03,Wellbeing,REDACTED,03/06/2013,439.11
Bath & North East Somerset Council,80222954,LL8,Individualised Budget,P03,Wellbeing,REDACTED,03/06/2013,439.11
Bath & North East Somerset Council,80222851,LL8,Individualised Budget,P03,Wellbeing,REDACTED,03/06/2013,100
Bath & North East Somerset Council,80222851,LL8,Individualised Budget,P03,Wellbeing,REDACTED,03/06/2013,178.59
Bath & North East Somerset Council,80222851,LL8,Individualised Budget,P03,Wellbeing,REDACTED,03/06/2013,178.59
Bath & North East Somerset Council,80222851,LL8,Individualised Budget,P03,Wellbeing,REDACTED,03/06/2013,178.59
Bath & North East Somerset Council,80222851,LL8,Individualised Budget,P03,Wellbeing,REDACTED,03/06/2013,178.59
Bath & North East Somerset Council,80222851,LL8,Individualised Budget,P03,Wellbeing,REDACTED,03/06/2013,260.96
Bath & North East Somerset Council,80222851,LL8,Individualised Budget,P03,Wellbeing,REDACTED,03/06/2013,260.96
Bath & North East Somerset Council,80218470,LL8,Individualised Budget,P03,Wellbeing,REDACTED,03/06/2013,489.65
Bath & North East Somerset Council,80218470,LL8,Individualised Budget,P03,Wellbeing,REDACTED,03/06/2013,489.65
Bath & North East Somerset Council,80222892,LL8,Individualised Budget,P03,Wellbeing,REDACTED,03/06/2013,489.65
Bath & North East Somerset Council,80222892,LL8,Individualised Budget,P03,Wellbeing,REDACTED,03/06/2013,489.65
Bath & North East Somerset Council,80222892,LL8,Individualised Budget,P03,Wellbeing,REDACTED,03/06/2013,2900
Bath & North East Somerset Council,80222825,LL8,Individualised Budget,P03,Wellbeing,REDACTED,03/06/2013,461.49
Bath & North East Somerset Council,80222825,LL8,Individualised Budget,P03,Wellbeing,REDACTED,03/06/2013,461.49
Bath & North East Somerset Council,80222985,LL8,Individualised Budget,P03,Wellbeing,REDACTED,03/06/2013,303.54
Bath & North East Somerset Council,80222985,LL8,Individualised Budget,P03,Wellbeing,REDACTED,03/06/2013,303.54
Bath & North East Somerset Council,80222934,LL8,Individualised Budget,P03,Wellbeing,REDACTED,03/06/2013,325.61
Bath & North East Somerset Council,80222934,LL8,Individualised Budget,P03,Wellbeing,REDACTED,03/06/2013,325.61
Bath & North East Somerset Council,80222827,LL8,Individualised Budget,P03,Wellbeing,REDACTED,03/06/2013,259.61
Bath & North East Somerset Council,80222827,LL8,Individualised Budget,P03,Wellbeing,REDACTED,03/06/2013,259.61
Bath & North East Somerset Council,80222965,LL8,Individualised Budget,P03,Wellbeing,REDACTED,03/06/2013,396.4
Bath & North East Somerset Council,80222965,LL8,Individualised Budget,P03,Wellbeing,REDACTED,03/06/2013,396.4
Bath & North East Somerset Council,80222843,LL8,Individualised Budget,P03,Wellbeing,REDACTED,03/06/2013,310.35
Bath & North East Somerset Council,80222843,LL8,Individualised Budget,P03,Wellbeing,REDACTED,03/06/2013,310.35
Bath & North East Somerset Council,80222974,LL8,Individualised Budget,P03,Wellbeing,REDACTED,03/06/2013,500
Bath & North East Somerset Council,80222997,LL8,Individualised Budget,P03,Wellbeing,REDACTED,03/06/2013,411.4
Bath & North East Somerset Council,80222997,LL8,Individualised Budget,P03,Wellbeing,REDACTED,03/06/2013,411.4
Bath & North East Somerset Council,80222876,LL8,Individualised Budget,P03,Wellbeing,REDACTED,03/06/2013,298.46
Bath & North East Somerset Council,80222876,LL8,Individualised Budget,P03,Wellbeing,REDACTED,03/06/2013,298.46
Bath & North East Somerset Council,80223016,LL8,Individualised Budget,P03,Wellbeing,REDACTED,03/06/2013,390.69
Bath & North East Somerset Council,80223016,LL8,Individualised Budget,P03,Wellbeing,REDACTED,03/06/2013,390.69
Bath & North East Somerset Council,80222996,LL8,Individualised Budget,P03,Wellbeing,REDACTED,03/06/2013,380
Bath & North East Somerset Council,80222996,LL8,Individualised Budget,P03,Wellbeing,REDACTED,03/06/2013,380
Bath & North East Somerset Council,80222808,LL8,Individualised Budget,P03,Wellbeing,REDACTED,03/06/2013,338.56
Bath & North East Somerset Council,80222808,LL8,Individualised Budget,P03,Wellbeing,REDACTED,03/06/2013,338.56
Bath & North East Somerset Council,80222751,LL4,Direct Payments,P02,"Early Years, Children & Youth",REDACTED,03/06/2013,274.73
Bath & North East Somerset Council,80222751,LL4,Direct Payments,P02,"Early Years, Children & Youth",REDACTED,03/06/2013,274.73
Bath & North East Somerset Council,80222865,LL8,Individualised Budget,P03,Wellbeing,REDACTED,03/06/2013,155
Bath & North East Somerset Council,80222865,LL8,Individualised Budget,P03,Wellbeing,REDACTED,03/06/2013,155
Bath & North East Somerset Council,80222865,LL8,Individualised Budget,P03,Wellbeing,REDACTED,03/06/2013,1800
Bath & North East Somerset Council,80222900,LL8,Individualised Budget,P03,Wellbeing,REDACTED,03/06/2013,527.44
Bath & North East Somerset Council,80222900,LL8,Individualised Budget,P03,Wellbeing,REDACTED,03/06/2013,527.44
Bath & North East Somerset Council,80222994,LL8,Individualised Budget,P03,Wellbeing,REDACTED,03/06/2013,499.87
Bath & North East Somerset Council,80222994,LL8,Individualised Budget,P03,Wellbeing,REDACTED,03/06/2013,499.87
Bath & North East Somerset Council,80222830,LL8,Individualised Budget,P03,Wellbeing,REDACTED,03/06/2013,269.73
Bath & North East Somerset Council,80222830,LL8,Individualised Budget,P03,Wellbeing,REDACTED,03/06/2013,269.73
Bath & North East Somerset Council,10701249,LJ2,Legal Fees,P02,"Early Years, Children & Youth",MS GEMMA CHAPMAN,03/06/2013,618
Bath & North East Somerset Council,80222912,LL8,Individualised Budget,P03,Wellbeing,REDACTED,03/06/2013,961.34
Bath & North East Somerset Council,80222912,LL8,Individualised Budget,P03,Wellbeing,REDACTED,03/06/2013,961.34
Bath & North East Somerset Council,80222987,LL8,Individualised Budget,P03,Wellbeing,REDACTED,03/06/2013,347.49
Bath & North East Somerset Council,80222987,LL8,Individualised Budget,P03,Wellbeing,REDACTED,03/06/2013,347.49
Bath & North East Somerset Council,80222814,LL8,Individualised Budget,P03,Wellbeing,REDACTED,03/06/2013,310.51
Bath & North East Somerset Council,80222814,LL8,Individualised Budget,P03,Wellbeing,REDACTED,03/06/2013,310.51
Bath & North East Somerset Council,80223005,LL8,Individualised Budget,P03,Wellbeing,REDACTED,03/06/2013,500
Bath & North East Somerset Council,80222823,LL8,Individualised Budget,P03,Wellbeing,REDACTED,03/06/2013,509.16
Bath & North East Somerset Council,80222823,LL8,Individualised Budget,P03,Wellbeing,REDACTED,03/06/2013,509.16
Bath & North East Somerset Council,80223009,LL8,Individualised Budget,P03,Wellbeing,REDACTED,03/06/2013,424.61
Bath & North East Somerset Council,80223009,LL8,Individualised Budget,P03,Wellbeing,REDACTED,03/06/2013,424.61
Bath & North East Somerset Council,80222983,LL8,Individualised Budget,P03,Wellbeing,REDACTED,03/06/2013,255.48
Bath & North East Somerset Council,80222983,LL8,Individualised Budget,P03,Wellbeing,REDACTED,03/06/2013,255.48
Bath & North East Somerset Council,80222956,LL8,Individualised Budget,P03,Wellbeing,REDACTED,03/06/2013,810.33
Bath & North East Somerset Council,80222956,LL8,Individualised Budget,P03,Wellbeing,REDACTED,03/06/2013,810.33
Bath & North East Somerset Council,80223007,LL8,Individualised Budget,P03,Wellbeing,REDACTED,03/06/2013,467.54
Bath & North East Somerset Council,80223007,LL8,Individualised Budget,P03,Wellbeing,REDACTED,03/06/2013,467.54
Bath & North East Somerset Council,80222836,LL8,Individualised Budget,P03,Wellbeing,REDACTED,03/06/2013,446.72
Bath & North East Somerset Council,80222836,LL8,Individualised Budget,P03,Wellbeing,REDACTED,03/06/2013,446.72
Bath & North East Somerset Council,10701978,PB4,Payments to Private Contractors,P05,Neighbourhoods,TRADEBE HEALTHCARE LTD,03/06/2013,648.95
Bath & North East Somerset Council,80222947,LL8,Individualised Budget,P03,Wellbeing,REDACTED,03/06/2013,500
Bath & North East Somerset Council,80222999,LL8,Individualised Budget,P03,Wellbeing,REDACTED,03/06/2013,423.92
Bath & North East Somerset Council,80222999,LL8,Individualised Budget,P03,Wellbeing,REDACTED,03/06/2013,423.92
Bath & North East Somerset Council,80222906,LL8,Individualised Budget,P03,Wellbeing,REDACTED,03/06/2013,607.13
Bath & North East Somerset Council,80222906,LL8,Individualised Budget,P03,Wellbeing,REDACTED,03/06/2013,607.13
Bath & North East Somerset Council,80222817,LL8,Individualised Budget,P03,Wellbeing,REDACTED,03/06/2013,1120
Bath & North East Somerset Council,80222817,LL8,Individualised Budget,P03,Wellbeing,REDACTED,03/06/2013,1120
Bath & North East Somerset Council,80222961,LL8,Individualised Budget,P03,Wellbeing,REDACTED,03/06/2013,359.93
Bath & North East Somerset Council,80222961,LL8,Individualised Budget,P03,Wellbeing,REDACTED,03/06/2013,359.93
Bath & North East Somerset Council,80222935,LL8,Individualised Budget,P03,Wellbeing,REDACTED,03/06/2013,707
Bath & North East Somerset Council,80222935,LL8,Individualised Budget,P03,Wellbeing,REDACTED,03/06/2013,707
Bath & North East Somerset Council,80222853,LL8,Individualised Budget,P03,Wellbeing,REDACTED,03/06/2013,557.54
Bath & North East Somerset Council,80222853,LL8,Individualised Budget,P03,Wellbeing,REDACTED,03/06/2013,557.54
Bath & North East Somerset Council,80222850,LL8,Individualised Budget,P03,Wellbeing,REDACTED,03/06/2013,1326.47
Bath & North East Somerset Council,80222850,LL8,Individualised Budget,P03,Wellbeing,REDACTED,03/06/2013,1326.47
Bath & North East Somerset Council,80222768,LL4,Direct Payments,P02,"Early Years, Children & Youth",REDACTED,03/06/2013,269.98
Bath & North East Somerset Council,80222768,LL4,Direct Payments,P02,"Early Years, Children & Youth",REDACTED,03/06/2013,269.98
Bath & North East Somerset Council,80222794,LL4,Direct Payments,P03,Wellbeing,REDACTED,03/06/2013,595.54
Bath & North East Somerset Council,80222794,LL4,Direct Payments,P03,Wellbeing,REDACTED,03/06/2013,595.54
Bath & North East Somerset Council,80222924,LL8,Individualised Budget,P03,Wellbeing,REDACTED,03/06/2013,54.81
Bath & North East Somerset Council,80222924,LL8,Individualised Budget,P03,Wellbeing,REDACTED,03/06/2013,54.81
Bath & North East Somerset Council,80222924,LL8,Individualised Budget,P03,Wellbeing,REDACTED,03/06/2013,54.81
Bath & North East Somerset Council,80222924,LL8,Individualised Budget,P03,Wellbeing,REDACTED,03/06/2013,54.81
Bath & North East Somerset Council,80222924,LL8,Individualised Budget,P03,Wellbeing,REDACTED,03/06/2013,54.81
Bath & North East Somerset Council,80222924,LL8,Individualised Budget,P03,Wellbeing,REDACTED,03/06/2013,54.81
Bath & North East Somerset Council,80222924,LL8,Individualised Budget,P03,Wellbeing,REDACTED,03/06/2013,54.81
Bath & North East Somerset Council,80222924,LL8,Individualised Budget,P03,Wellbeing,REDACTED,03/06/2013,239.26
Bath & North East Somerset Council,80222924,LL8,Individualised Budget,P03,Wellbeing,REDACTED,03/06/2013,239.26
Bath & North East Somerset Council,80222907,LL8,Individualised Budget,P03,Wellbeing,REDACTED,03/06/2013,425
Bath & North East Somerset Council,80222907,LL8,Individualised Budget,P03,Wellbeing,REDACTED,03/06/2013,425
Bath & North East Somerset Council,80222966,LL8,Individualised Budget,P03,Wellbeing,REDACTED,03/06/2013,526.46
Bath & North East Somerset Council,80222966,LL8,Individualised Budget,P03,Wellbeing,REDACTED,03/06/2013,526.46
Bath & North East Somerset Council,80222847,LL8,Individualised Budget,P03,Wellbeing,REDACTED,03/06/2013,500.86
Bath & North East Somerset Council,80222847,LL8,Individualised Budget,P03,Wellbeing,REDACTED,03/06/2013,500.86
Bath & North East Somerset Council,80222845,LL8,Individualised Budget,P03,Wellbeing,REDACTED,03/06/2013,1235.48
Bath & North East Somerset Council,80222845,LL8,Individualised Budget,P03,Wellbeing,REDACTED,03/06/2013,1235.48
Bath & North East Somerset Council,80222801,LL8,Individualised Budget,P03,Wellbeing,REDACTED,03/06/2013,606.01
Bath & North East Somerset Council,80222801,LL8,Individualised Budget,P03,Wellbeing,REDACTED,03/06/2013,606.01
Bath & North East Somerset Council,80222832,LL8,Individualised Budget,P03,Wellbeing,REDACTED,03/06/2013,336.56
Bath & North East Somerset Council,80222832,LL8,Individualised Budget,P03,Wellbeing,REDACTED,03/06/2013,336.56
Bath & North East Somerset Council,80222694,LM6,Nursing Care,P03,Wellbeing,REDACTED,03/06/2013,464.29
Bath & North East Somerset Council,80222694,LM6,Nursing Care,P03,Wellbeing,REDACTED,03/06/2013,650
Bath & North East Somerset Council,80222694,LM6,Nursing Care,P03,Wellbeing,REDACTED,03/06/2013,650
Bath & North East Somerset Council,80222694,LM6,Nursing Care,P03,Wellbeing,REDACTED,03/06/2013,650
Bath & North East Somerset Council,80222694,LM6,Nursing Care,P03,Wellbeing,REDACTED,03/06/2013,650
Bath & North East Somerset Council,80222694,LM6,Nursing Care,P03,Wellbeing,REDACTED,03/06/2013,650
Bath & North East Somerset Council,80222729,LM6,Nursing Care,P03,Wellbeing,REDACTED,03/06/2013,787
Bath & North East Somerset Council,80222729,LM6,Nursing Care,P03,Wellbeing,REDACTED,03/06/2013,787
Bath & North East Somerset Council,80222729,LM6,Nursing Care,P03,Wellbeing,REDACTED,03/06/2013,1015
Bath & North East Somerset Council,80222729,LM6,Nursing Care,P03,Wellbeing,REDACTED,03/06/2013,1015
Bath & North East Somerset Council,80222819,LL8,Individualised Budget,P03,Wellbeing,REDACTED,03/06/2013,476.52
Bath & North East Somerset Council,80222819,LL8,Individualised Budget,P03,Wellbeing,REDACTED,03/06/2013,476.52
Bath & North East Somerset Council,80222798,LL8,Individualised Budget,P03,Wellbeing,REDACTED,03/06/2013,1156.79
Bath & North East Somerset Council,80222798,LL8,Individualised Budget,P03,Wellbeing,REDACTED,03/06/2013,1156.79
Bath & North East Somerset Council,80222957,LL8,Individualised Budget,P03,Wellbeing,REDACTED,03/06/2013,293.64
Bath & North East Somerset Council,80222957,LL8,Individualised Budget,P03,Wellbeing,REDACTED,03/06/2013,293.64
Bath & North East Somerset Council,10701828,LJ1,Consultants Fees,P02,"Early Years, Children & Youth",EDUCATIONAL SUPPORT 4 SCHOOLS LTD,03/06/2013,656.7
Bath & North East Somerset Council,80223004,LL8,Individualised Budget,P03,Wellbeing,REDACTED,03/06/2013,540
Bath & North East Somerset Council,10699766,KB1,Hire of Vehicles,P05,Neighbourhoods,GULLIVERS TRUCK HIRE LTD,03/06/2013,675
Bath & North East Somerset Council,10699774,KB1,Hire of Vehicles,P05,Neighbourhoods,GULLIVERS TRUCK HIRE LTD,03/06/2013,675
Bath & North East Somerset Council,80222948,LL8,Individualised Budget,P03,Wellbeing,REDACTED,03/06/2013,500
Bath & North East Somerset Council,10701444,LM1,Volunt Homes Placements Top/Up,P02,"Early Years, Children & Youth",MR R THOMPSON & MRS E JOLLIFFE,03/06/2013,690
Bath & North East Somerset Council,80222842,LL8,Individualised Budget,P03,Wellbeing,REDACTED,03/06/2013,1696.43
Bath & North East Somerset Council,80222842,LL8,Individualised Budget,P03,Wellbeing,REDACTED,03/06/2013,1696.43
Bath & North East Somerset Council,80222807,LL8,Individualised Budget,P03,Wellbeing,REDACTED,03/06/2013,259.58
Bath & North East Somerset Council,80222807,LL8,Individualised Budget,P03,Wellbeing,REDACTED,03/06/2013,259.58
Bath & North East Somerset Council,80222699,LM6,Nursing Care,P03,Wellbeing,RNID  (FAO: REDACTED),03/06/2013,1380.04
Bath & North East Somerset Council,80222699,LM6,Nursing Care,P03,Wellbeing,RNID  (FAO: REDACTED),03/06/2013,1380.04
Bath & North East Somerset Council,80223066,LM8,Home Care,P03,Wellbeing,ROBERT SAGE LTD T/A PRESTIGE NURSING PAYROLL,03/06/2013,30
Bath & North East Somerset Council,80223060,LM8,Home Care,P03,Wellbeing,ROBERT SAGE LTD T/A PRESTIGE NURSING PAYROLL,03/06/2013,46.83
Bath & North East Somerset Council,80223065,LM8,Home Care,P03,Wellbeing,ROBERT SAGE LTD T/A PRESTIGE NURSING PAYROLL,03/06/2013,91.39
Bath & North East Somerset Council,80223065,LM8,Home Care,P03,Wellbeing,ROBERT SAGE LTD T/A PRESTIGE NURSING PAYROLL,03/06/2013,488.76
Bath & North East Somerset Council,80223066,LM8,Home Care,P03,Wellbeing,ROBERT SAGE LTD T/A PRESTIGE NURSING PAYROLL,03/06/2013,488.76
Bath & North East Somerset Council,80223060,LM8,Home Care,P03,Wellbeing,ROBERT SAGE LTD T/A PRESTIGE NURSING PAYROLL,03/06/2013,543.62
Bath & North East Somerset Council,80223062,LM8,Home Care,P03,Wellbeing,ROBERT SAGE LTD T/A PRESTIGE NURSING PAYROLL,03/06/2013,543.62
Bath & North East Somerset Council,80223064,LM8,Home Care,P03,Wellbeing,ROBERT SAGE LTD T/A PRESTIGE NURSING PAYROLL,03/06/2013,1032.48
Bath & North East Somerset Council,80222713,LM6,Nursing Care,P03,Wellbeing,ROSEVILLE CARE HOMES MELKSHAM,03/06/2013,810
Bath & North East Somerset Council,80222713,LM6,Nursing Care,P03,Wellbeing,ROSEVILLE CARE HOMES MELKSHAM,03/06/2013,810
Bath & North East Somerset Council,10701971,DB1,Agency Staff,P01,Transport,M WIDDOWSON LTD,03/06/2013,759.03
Bath & North East Somerset Council,80223055,LM8,Home Care,P03,Wellbeing,SAFE & SOUND HOMECARE SERVICES,03/06/2013,17.04
Bath & North East Somerset Council,80223055,LM8,Home Care,P03,Wellbeing,SAFE & SOUND HOMECARE SERVICES,03/06/2013,208.5
Bath & North East Somerset Council,80223055,LM8,Home Care,P03,Wellbeing,SAFE & SOUND HOMECARE SERVICES,03/06/2013,208.5
Bath & North East Somerset Council,80223055,LM8,Home Care,P03,Wellbeing,SAFE & SOUND HOMECARE SERVICES,03/06/2013,208.5
Bath & North East Somerset Council,80223055,LM8,Home Care,P03,Wellbeing,SAFE & SOUND HOMECARE SERVICES,03/06/2013,208.5
Bath & North East Somerset Council,80223055,LM8,Home Care,P03,Wellbeing,SAFE & SOUND HOMECARE SERVICES,03/06/2013,420
Bath & North East Somerset Council,80223055,LM8,Home Care,P03,Wellbeing,SAFE & SOUND HOMECARE SERVICES,03/06/2013,420
Bath & North East Somerset Council,80223055,LM8,Home Care,P03,Wellbeing,SAFE & SOUND HOMECARE SERVICES,03/06/2013,420
Bath & North East Somerset Council,80223055,LM8,Home Care,P03,Wellbeing,SAFE & SOUND HOMECARE SERVICES,03/06/2013,420
Bath & North East Somerset Council,80222709,LM6,Nursing Care,P03,Wellbeing,SALVATION ARMY,03/06/2013,650
Bath & North East Somerset Council,80222709,LM6,Nursing Care,P03,Wellbeing,SALVATION ARMY,03/06/2013,650
Bath & North East Somerset Council,80222722,LM6,Nursing Care,P03,Wellbeing,SANCTUARY CARE LTD,03/06/2013,898.72
Bath & North East Somerset Council,80222722,LM6,Nursing Care,P03,Wellbeing,SANCTUARY CARE LTD,03/06/2013,898.72
Bath & North East Somerset Council,10701967,DB1,Agency Staff,P01,Transport,M WIDDOWSON LTD,03/06/2013,805.98
Bath & North East Somerset Council,80222702,LM6,Nursing Care,P03,Wellbeing,SHAW HOMES HOUSING ASSOC LTD,03/06/2013,810
Bath & North East Somerset Council,80222702,LM6,Nursing Care,P03,Wellbeing,SHAW HOMES HOUSING ASSOC LTD,03/06/2013,810
Bath & North East Somerset Council,80222803,LL8,Individualised Budget,P03,Wellbeing,SHAW TRUST LTD,03/06/2013,8.08
Bath & North East Somerset Council,80222803,LL8,Individualised Budget,P03,Wellbeing,SHAW TRUST LTD,03/06/2013,8.08
Bath & North East Somerset Council,80222803,LL8,Individualised Budget,P03,Wellbeing,SHAW TRUST LTD,03/06/2013,24
Bath & North East Somerset Council,80222803,LL8,Individualised Budget,P03,Wellbeing,SHAW TRUST LTD,03/06/2013,27.16
Bath & North East Somerset Council,80222803,LL8,Individualised Budget,P03,Wellbeing,SHAW TRUST LTD,03/06/2013,27.16
Bath & North East Somerset Council,80222803,LL8,Individualised Budget,P03,Wellbeing,SHAW TRUST LTD,03/06/2013,34.97
Bath & North East Somerset Council,80222803,LL8,Individualised Budget,P03,Wellbeing,SHAW TRUST LTD,03/06/2013,34.97
Bath & North East Somerset Council,80222803,LL8,Individualised Budget,P03,Wellbeing,SHAW TRUST LTD,03/06/2013,34.97
Bath & North East Somerset Council,80222803,LL8,Individualised Budget,P03,Wellbeing,SHAW TRUST LTD,03/06/2013,34.97
Bath & North East Somerset Council,80222803,LL8,Individualised Budget,P03,Wellbeing,SHAW TRUST LTD,03/06/2013,34.97
Bath & North East Somerset Council,80222803,LL8,Individualised Budget,P03,Wellbeing,SHAW TRUST LTD,03/06/2013,37.52
Bath & North East Somerset Council,80222803,LL8,Individualised Budget,P03,Wellbeing,SHAW TRUST LTD,03/06/2013,46.61
Bath & North East Somerset Council,80222803,LL8,Individualised Budget,P03,Wellbeing,SHAW TRUST LTD,03/06/2013,46.61
Bath & North East Somerset Council,80222803,LL8,Individualised Budget,P03,Wellbeing,SHAW TRUST LTD,03/06/2013,48.33
Bath & North East Somerset Council,80222803,LL8,Individualised Budget,P03,Wellbeing,SHAW TRUST LTD,03/06/2013,48.33
Bath & North East Somerset Council,80222803,LL8,Individualised Budget,P03,Wellbeing,SHAW TRUST LTD,03/06/2013,53.53
Bath & North East Somerset Council,80222803,LL8,Individualised Budget,P03,Wellbeing,SHAW TRUST LTD,03/06/2013,53.53
Bath & North East Somerset Council,80222803,LL8,Individualised Budget,P03,Wellbeing,SHAW TRUST LTD,03/06/2013,65.85
Bath & North East Somerset Council,10701976,PB4,Payments to Private Contractors,P05,Neighbourhoods,M J CHURCH PLANT HIRE LTD,03/06/2013,2170.61
Bath & North East Somerset Council,80222803,LL8,Individualised Budget,P03,Wellbeing,SHAW TRUST LTD,03/06/2013,65.85
Bath & North East Somerset Council,80222803,LL8,Individualised Budget,P03,Wellbeing,SHAW TRUST LTD,03/06/2013,66.96
Bath & North East Somerset Council,80222803,LL8,Individualised Budget,P03,Wellbeing,SHAW TRUST LTD,03/06/2013,66.96
Bath & North East Somerset Council,80222803,LL8,Individualised Budget,P03,Wellbeing,SHAW TRUST LTD,03/06/2013,68.57
Bath & North East Somerset Council,80222803,LL8,Individualised Budget,P03,Wellbeing,SHAW TRUST LTD,03/06/2013,68.57
Bath & North East Somerset Council,80222803,LL8,Individualised Budget,P03,Wellbeing,SHAW TRUST LTD,03/06/2013,73.6
Bath & North East Somerset Council,80222803,LL8,Individualised Budget,P03,Wellbeing,SHAW TRUST LTD,03/06/2013,73.6
Bath & North East Somerset Council,80222803,LL8,Individualised Budget,P03,Wellbeing,SHAW TRUST LTD,03/06/2013,78
Bath & North East Somerset Council,80222803,LL8,Individualised Budget,P03,Wellbeing,SHAW TRUST LTD,03/06/2013,78
Bath & North East Somerset Council,80222803,LL8,Individualised Budget,P03,Wellbeing,SHAW TRUST LTD,03/06/2013,79.78
Bath & North East Somerset Council,80222803,LL8,Individualised Budget,P03,Wellbeing,SHAW TRUST LTD,03/06/2013,79.78
Bath & North East Somerset Council,80222803,LL8,Individualised Budget,P03,Wellbeing,SHAW TRUST LTD,03/06/2013,80.08
Bath & North East Somerset Council,80222803,LL8,Individualised Budget,P03,Wellbeing,SHAW TRUST LTD,03/06/2013,80.08
Bath & North East Somerset Council,80222803,LL8,Individualised Budget,P03,Wellbeing,SHAW TRUST LTD,03/06/2013,86.58
Bath & North East Somerset Council,80222803,LL8,Individualised Budget,P03,Wellbeing,SHAW TRUST LTD,03/06/2013,86.58
Bath & North East Somerset Council,80222803,LL8,Individualised Budget,P03,Wellbeing,SHAW TRUST LTD,03/06/2013,95.32
Bath & North East Somerset Council,80222803,LL8,Individualised Budget,P03,Wellbeing,SHAW TRUST LTD,03/06/2013,95.32
Bath & North East Somerset Council,80222803,LL8,Individualised Budget,P03,Wellbeing,SHAW TRUST LTD,03/06/2013,97.28
Bath & North East Somerset Council,80222803,LL8,Individualised Budget,P03,Wellbeing,SHAW TRUST LTD,03/06/2013,97.28
Bath & North East Somerset Council,80222803,LL8,Individualised Budget,P03,Wellbeing,SHAW TRUST LTD,03/06/2013,99.42
Bath & North East Somerset Council,80222803,LL8,Individualised Budget,P03,Wellbeing,SHAW TRUST LTD,03/06/2013,99.42
Bath & North East Somerset Council,80222803,LL8,Individualised Budget,P03,Wellbeing,SHAW TRUST LTD,03/06/2013,99.46
Bath & North East Somerset Council,80222803,LL8,Individualised Budget,P03,Wellbeing,SHAW TRUST LTD,03/06/2013,99.46
Bath & North East Somerset Council,80222803,LL8,Individualised Budget,P03,Wellbeing,SHAW TRUST LTD,03/06/2013,100.16
Bath & North East Somerset Council,80222803,LL8,Individualised Budget,P03,Wellbeing,SHAW TRUST LTD,03/06/2013,100.16
Bath & North East Somerset Council,80222803,LL8,Individualised Budget,P03,Wellbeing,SHAW TRUST LTD,03/06/2013,100.89
Bath & North East Somerset Council,80222803,LL8,Individualised Budget,P03,Wellbeing,SHAW TRUST LTD,03/06/2013,100.89
Bath & North East Somerset Council,80222803,LL8,Individualised Budget,P03,Wellbeing,SHAW TRUST LTD,03/06/2013,102.77
Bath & North East Somerset Council,80222803,LL8,Individualised Budget,P03,Wellbeing,SHAW TRUST LTD,03/06/2013,102.77
Bath & North East Somerset Council,80222803,LL8,Individualised Budget,P03,Wellbeing,SHAW TRUST LTD,03/06/2013,106.93
Bath & North East Somerset Council,80222803,LL8,Individualised Budget,P03,Wellbeing,SHAW TRUST LTD,03/06/2013,106.93
Bath & North East Somerset Council,80222803,LL8,Individualised Budget,P03,Wellbeing,SHAW TRUST LTD,03/06/2013,107.56
Bath & North East Somerset Council,80222803,LL8,Individualised Budget,P03,Wellbeing,SHAW TRUST LTD,03/06/2013,107.56
Bath & North East Somerset Council,80222803,LL8,Individualised Budget,P03,Wellbeing,SHAW TRUST LTD,03/06/2013,107.95
Bath & North East Somerset Council,80222803,LL8,Individualised Budget,P03,Wellbeing,SHAW TRUST LTD,03/06/2013,107.95
Bath & North East Somerset Council,80222803,LL8,Individualised Budget,P03,Wellbeing,SHAW TRUST LTD,03/06/2013,108.46
Bath & North East Somerset Council,80222803,LL8,Individualised Budget,P03,Wellbeing,SHAW TRUST LTD,03/06/2013,108.46
Bath & North East Somerset Council,80222803,LL8,Individualised Budget,P03,Wellbeing,SHAW TRUST LTD,03/06/2013,108.92
Bath & North East Somerset Council,80222803,LL8,Individualised Budget,P03,Wellbeing,SHAW TRUST LTD,03/06/2013,108.92
Bath & North East Somerset Council,80222803,LL8,Individualised Budget,P03,Wellbeing,SHAW TRUST LTD,03/06/2013,111.06
Bath & North East Somerset Council,80222803,LL8,Individualised Budget,P03,Wellbeing,SHAW TRUST LTD,03/06/2013,111.06
Bath & North East Somerset Council,10701941,PB4,Payments to Private Contractors,P05,Neighbourhoods,BALE GROUP LTD,03/06/2013,885
Bath & North East Somerset Council,80222803,LL8,Individualised Budget,P03,Wellbeing,SHAW TRUST LTD,03/06/2013,111.5
Bath & North East Somerset Council,80222803,LL8,Individualised Budget,P03,Wellbeing,SHAW TRUST LTD,03/06/2013,111.5
Bath & North East Somerset Council,80222803,LL8,Individualised Budget,P03,Wellbeing,SHAW TRUST LTD,03/06/2013,112.89
Bath & North East Somerset Council,80222803,LL8,Individualised Budget,P03,Wellbeing,SHAW TRUST LTD,03/06/2013,112.89
Bath & North East Somerset Council,80222803,LL8,Individualised Budget,P03,Wellbeing,SHAW TRUST LTD,03/06/2013,121.63
Bath & North East Somerset Council,80222803,LL8,Individualised Budget,P03,Wellbeing,SHAW TRUST LTD,03/06/2013,121.63
Bath & North East Somerset Council,10701975,PB4,Payments to Private Contractors,P05,Neighbourhoods,TRADEBE HEALTHCARE LTD,03/06/2013,897.49
Bath & North East Somerset Council,80222803,LL8,Individualised Budget,P03,Wellbeing,SHAW TRUST LTD,03/06/2013,125.95
Bath & North East Somerset Council,80222803,LL8,Individualised Budget,P03,Wellbeing,SHAW TRUST LTD,03/06/2013,125.95
Bath & North East Somerset Council,80222803,LL8,Individualised Budget,P03,Wellbeing,SHAW TRUST LTD,03/06/2013,128.56
Bath & North East Somerset Council,80222803,LL8,Individualised Budget,P03,Wellbeing,SHAW TRUST LTD,03/06/2013,128.56
Bath & North East Somerset Council,80222803,LL8,Individualised Budget,P03,Wellbeing,SHAW TRUST LTD,03/06/2013,129.32
Bath & North East Somerset Council,80222803,LL8,Individualised Budget,P03,Wellbeing,SHAW TRUST LTD,03/06/2013,129.32
Bath & North East Somerset Council,80222803,LL8,Individualised Budget,P03,Wellbeing,SHAW TRUST LTD,03/06/2013,133.8
Bath & North East Somerset Council,80222803,LL8,Individualised Budget,P03,Wellbeing,SHAW TRUST LTD,03/06/2013,133.8
Bath & North East Somerset Council,80222803,LL8,Individualised Budget,P03,Wellbeing,SHAW TRUST LTD,03/06/2013,135.43
Bath & North East Somerset Council,80222803,LL8,Individualised Budget,P03,Wellbeing,SHAW TRUST LTD,03/06/2013,135.43
Bath & North East Somerset Council,80222803,LL8,Individualised Budget,P03,Wellbeing,SHAW TRUST LTD,03/06/2013,139.85
Bath & North East Somerset Council,80222803,LL8,Individualised Budget,P03,Wellbeing,SHAW TRUST LTD,03/06/2013,139.85
Bath & North East Somerset Council,80222803,LL8,Individualised Budget,P03,Wellbeing,SHAW TRUST LTD,03/06/2013,143.57
Bath & North East Somerset Council,80222803,LL8,Individualised Budget,P03,Wellbeing,SHAW TRUST LTD,03/06/2013,143.57
Bath & North East Somerset Council,80222803,LL8,Individualised Budget,P03,Wellbeing,SHAW TRUST LTD,03/06/2013,146.27
Bath & North East Somerset Council,80222803,LL8,Individualised Budget,P03,Wellbeing,SHAW TRUST LTD,03/06/2013,146.27
Bath & North East Somerset Council,80222803,LL8,Individualised Budget,P03,Wellbeing,SHAW TRUST LTD,03/06/2013,150.28
Bath & North East Somerset Council,80222803,LL8,Individualised Budget,P03,Wellbeing,SHAW TRUST LTD,03/06/2013,150.28
Bath & North East Somerset Council,80222803,LL8,Individualised Budget,P03,Wellbeing,SHAW TRUST LTD,03/06/2013,150.52
Bath & North East Somerset Council,80222803,LL8,Individualised Budget,P03,Wellbeing,SHAW TRUST LTD,03/06/2013,150.52
Bath & North East Somerset Council,80222803,LL8,Individualised Budget,P03,Wellbeing,SHAW TRUST LTD,03/06/2013,164.04
Bath & North East Somerset Council,80222803,LL8,Individualised Budget,P03,Wellbeing,SHAW TRUST LTD,03/06/2013,164.04
Bath & North East Somerset Council,80222803,LL8,Individualised Budget,P03,Wellbeing,SHAW TRUST LTD,03/06/2013,165.62
Bath & North East Somerset Council,80222803,LL8,Individualised Budget,P03,Wellbeing,SHAW TRUST LTD,03/06/2013,165.62
Bath & North East Somerset Council,80222803,LL8,Individualised Budget,P03,Wellbeing,SHAW TRUST LTD,03/06/2013,167.12
Bath & North East Somerset Council,80222803,LL8,Individualised Budget,P03,Wellbeing,SHAW TRUST LTD,03/06/2013,167.12
Bath & North East Somerset Council,80222803,LL8,Individualised Budget,P03,Wellbeing,SHAW TRUST LTD,03/06/2013,169.2
Bath & North East Somerset Council,80222803,LL8,Individualised Budget,P03,Wellbeing,SHAW TRUST LTD,03/06/2013,169.2
Bath & North East Somerset Council,80222803,LL8,Individualised Budget,P03,Wellbeing,SHAW TRUST LTD,03/06/2013,171.93
Bath & North East Somerset Council,80222803,LL8,Individualised Budget,P03,Wellbeing,SHAW TRUST LTD,03/06/2013,171.93
Bath & North East Somerset Council,80222803,LL8,Individualised Budget,P03,Wellbeing,SHAW TRUST LTD,03/06/2013,184.97
Bath & North East Somerset Council,80222803,LL8,Individualised Budget,P03,Wellbeing,SHAW TRUST LTD,03/06/2013,184.97
Bath & North East Somerset Council,80222803,LL8,Individualised Budget,P03,Wellbeing,SHAW TRUST LTD,03/06/2013,198.88
Bath & North East Somerset Council,80222803,LL8,Individualised Budget,P03,Wellbeing,SHAW TRUST LTD,03/06/2013,198.88
Bath & North East Somerset Council,80222803,LL8,Individualised Budget,P03,Wellbeing,SHAW TRUST LTD,03/06/2013,200.58
Bath & North East Somerset Council,80222803,LL8,Individualised Budget,P03,Wellbeing,SHAW TRUST LTD,03/06/2013,200.58
Bath & North East Somerset Council,80222803,LL8,Individualised Budget,P03,Wellbeing,SHAW TRUST LTD,03/06/2013,202.8
Bath & North East Somerset Council,80222803,LL8,Individualised Budget,P03,Wellbeing,SHAW TRUST LTD,03/06/2013,202.8
Bath & North East Somerset Council,80222803,LL8,Individualised Budget,P03,Wellbeing,SHAW TRUST LTD,03/06/2013,215.89
Bath & North East Somerset Council,80222803,LL8,Individualised Budget,P03,Wellbeing,SHAW TRUST LTD,03/06/2013,215.89
Bath & North East Somerset Council,80222803,LL8,Individualised Budget,P03,Wellbeing,SHAW TRUST LTD,03/06/2013,272.72
Bath & North East Somerset Council,80222803,LL8,Individualised Budget,P03,Wellbeing,SHAW TRUST LTD,03/06/2013,272.72
Bath & North East Somerset Council,80222803,LL8,Individualised Budget,P03,Wellbeing,SHAW TRUST LTD,03/06/2013,294.71
Bath & North East Somerset Council,80222803,LL8,Individualised Budget,P03,Wellbeing,SHAW TRUST LTD,03/06/2013,294.71
Bath & North East Somerset Council,80222803,LL8,Individualised Budget,P03,Wellbeing,SHAW TRUST LTD,03/06/2013,295.71
Bath & North East Somerset Council,80222803,LL8,Individualised Budget,P03,Wellbeing,SHAW TRUST LTD,03/06/2013,295.71
Bath & North East Somerset Council,80222803,LL8,Individualised Budget,P03,Wellbeing,SHAW TRUST LTD,03/06/2013,309.92
Bath & North East Somerset Council,80222803,LL8,Individualised Budget,P03,Wellbeing,SHAW TRUST LTD,03/06/2013,309.92
Bath & North East Somerset Council,80222803,LL8,Individualised Budget,P03,Wellbeing,SHAW TRUST LTD,03/06/2013,315.02
Bath & North East Somerset Council,80222803,LL8,Individualised Budget,P03,Wellbeing,SHAW TRUST LTD,03/06/2013,315.02
Bath & North East Somerset Council,80222803,LL8,Individualised Budget,P03,Wellbeing,SHAW TRUST LTD,03/06/2013,334.01
Bath & North East Somerset Council,80222803,LL8,Individualised Budget,P03,Wellbeing,SHAW TRUST LTD,03/06/2013,334.01
Bath & North East Somerset Council,80222803,LL8,Individualised Budget,P03,Wellbeing,SHAW TRUST LTD,03/06/2013,334.29
Bath & North East Somerset Council,80222803,LL8,Individualised Budget,P03,Wellbeing,SHAW TRUST LTD,03/06/2013,334.29
Bath & North East Somerset Council,80222803,LL8,Individualised Budget,P03,Wellbeing,SHAW TRUST LTD,03/06/2013,338.27
Bath & North East Somerset Council,80222803,LL8,Individualised Budget,P03,Wellbeing,SHAW TRUST LTD,03/06/2013,338.27
Bath & North East Somerset Council,80222803,LL8,Individualised Budget,P03,Wellbeing,SHAW TRUST LTD,03/06/2013,345.23
Bath & North East Somerset Council,80222803,LL8,Individualised Budget,P03,Wellbeing,SHAW TRUST LTD,03/06/2013,345.23
Bath & North East Somerset Council,80222803,LL8,Individualised Budget,P03,Wellbeing,SHAW TRUST LTD,03/06/2013,345.23
Bath & North East Somerset Council,80222803,LL8,Individualised Budget,P03,Wellbeing,SHAW TRUST LTD,03/06/2013,345.23
Bath & North East Somerset Council,80222803,LL8,Individualised Budget,P03,Wellbeing,SHAW TRUST LTD,03/06/2013,345.23
Bath & North East Somerset Council,80222803,LL8,Individualised Budget,P03,Wellbeing,SHAW TRUST LTD,03/06/2013,345.23
Bath & North East Somerset Council,80222803,LL8,Individualised Budget,P03,Wellbeing,SHAW TRUST LTD,03/06/2013,345.23
Bath & North East Somerset Council,80222803,LL8,Individualised Budget,P03,Wellbeing,SHAW TRUST LTD,03/06/2013,345.23
Bath & North East Somerset Council,80222803,LL8,Individualised Budget,P03,Wellbeing,SHAW TRUST LTD,03/06/2013,345.23
Bath & North East Somerset Council,80222803,LL8,Individualised Budget,P03,Wellbeing,SHAW TRUST LTD,03/06/2013,345.23
Bath & North East Somerset Council,80222803,LL8,Individualised Budget,P03,Wellbeing,SHAW TRUST LTD,03/06/2013,345.23
Bath & North East Somerset Council,80222803,LL8,Individualised Budget,P03,Wellbeing,SHAW TRUST LTD,03/06/2013,345.23
Bath & North East Somerset Council,80222803,LL8,Individualised Budget,P03,Wellbeing,SHAW TRUST LTD,03/06/2013,345.23
Bath & North East Somerset Council,80222803,LL8,Individualised Budget,P03,Wellbeing,SHAW TRUST LTD,03/06/2013,383.43
Bath & North East Somerset Council,80222803,LL8,Individualised Budget,P03,Wellbeing,SHAW TRUST LTD,03/06/2013,383.43
Bath & North East Somerset Council,80222803,LL8,Individualised Budget,P03,Wellbeing,SHAW TRUST LTD,03/06/2013,395
Bath & North East Somerset Council,80222803,LL8,Individualised Budget,P03,Wellbeing,SHAW TRUST LTD,03/06/2013,395
Bath & North East Somerset Council,80222803,LL8,Individualised Budget,P03,Wellbeing,SHAW TRUST LTD,03/06/2013,401.1
Bath & North East Somerset Council,80222803,LL8,Individualised Budget,P03,Wellbeing,SHAW TRUST LTD,03/06/2013,401.1
Bath & North East Somerset Council,80222803,LL8,Individualised Budget,P03,Wellbeing,SHAW TRUST LTD,03/06/2013,433.61
Bath & North East Somerset Council,80222803,LL8,Individualised Budget,P03,Wellbeing,SHAW TRUST LTD,03/06/2013,433.61
Bath & North East Somerset Council,80222803,LL8,Individualised Budget,P03,Wellbeing,SHAW TRUST LTD,03/06/2013,450.28
Bath & North East Somerset Council,80222803,LL8,Individualised Budget,P03,Wellbeing,SHAW TRUST LTD,03/06/2013,450.28
Bath & North East Somerset Council,80222803,LL8,Individualised Budget,P03,Wellbeing,SHAW TRUST LTD,03/06/2013,454.06
Bath & North East Somerset Council,80222803,LL8,Individualised Budget,P03,Wellbeing,SHAW TRUST LTD,03/06/2013,454.06
Bath & North East Somerset Council,80222803,LL8,Individualised Budget,P03,Wellbeing,SHAW TRUST LTD,03/06/2013,458.32
Bath & North East Somerset Council,80222803,LL8,Individualised Budget,P03,Wellbeing,SHAW TRUST LTD,03/06/2013,458.32
Bath & North East Somerset Council,80222803,LL8,Individualised Budget,P03,Wellbeing,SHAW TRUST LTD,03/06/2013,696.77
Bath & North East Somerset Council,80222803,LL8,Individualised Budget,P03,Wellbeing,SHAW TRUST LTD,03/06/2013,696.77
Bath & North East Somerset Council,80222803,LL8,Individualised Budget,P03,Wellbeing,SHAW TRUST LTD,03/06/2013,716.92
Bath & North East Somerset Council,80222803,LL8,Individualised Budget,P03,Wellbeing,SHAW TRUST LTD,03/06/2013,742.47
Bath & North East Somerset Council,80222803,LL8,Individualised Budget,P03,Wellbeing,SHAW TRUST LTD,03/06/2013,742.47
Bath & North East Somerset Council,80222803,LL8,Individualised Budget,P03,Wellbeing,SHAW TRUST LTD,03/06/2013,766.47
Bath & North East Somerset Council,80222803,LL8,Individualised Budget,P03,Wellbeing,SHAW TRUST LTD,03/06/2013,766.47
Bath & North East Somerset Council,80222803,LL8,Individualised Budget,P03,Wellbeing,SHAW TRUST LTD,03/06/2013,989.25
Bath & North East Somerset Council,80222803,LL8,Individualised Budget,P03,Wellbeing,SHAW TRUST LTD,03/06/2013,989.25
Bath & North East Somerset Council,80222803,LL8,Individualised Budget,P03,Wellbeing,SHAW TRUST LTD,03/06/2013,1778.16
Bath & North East Somerset Council,80222803,LL8,Individualised Budget,P03,Wellbeing,SHAW TRUST LTD,03/06/2013,1778.16
Bath & North East Somerset Council,80222803,LL8,Individualised Budget,P03,Wellbeing,SHAW TRUST LTD,03/06/2013,1870
Bath & North East Somerset Council,80222704,LM6,Nursing Care,P03,Wellbeing,SHERWOOD LODGE,03/06/2013,1361.76
Bath & North East Somerset Council,80222704,LM6,Nursing Care,P03,Wellbeing,SHERWOOD LODGE,03/06/2013,1361.76
Bath & North East Somerset Council,10700218,LA4,Equipment Hire/Rent,P07,Community Resources,XEROX FINANCE LIMITED,03/06/2013,992.73
Bath & North East Somerset Council,80223088,LM8,Home Care,P03,Wellbeing,SOMERSET CARE AT HOME LTD,03/06/2013,57
Bath & North East Somerset Council,80223088,LM8,Home Care,P03,Wellbeing,SOMERSET CARE AT HOME LTD,03/06/2013,57
Bath & North East Somerset Council,80223088,LM8,Home Care,P03,Wellbeing,SOMERSET CARE AT HOME LTD,03/06/2013,114
Bath & North East Somerset Council,80223088,LM8,Home Care,P03,Wellbeing,SOMERSET CARE AT HOME LTD,03/06/2013,114
Bath & North East Somerset Council,80223088,LM8,Home Care,P03,Wellbeing,SOMERSET CARE AT HOME LTD,03/06/2013,114
Bath & North East Somerset Council,80223088,LM8,Home Care,P03,Wellbeing,SOMERSET CARE AT HOME LTD,03/06/2013,114
Bath & North East Somerset Council,10701993,DB1,Agency Staff,P01,Transport,C R DAWSON LTD,03/06/2013,1059.89
Bath & North East Somerset Council,10701692,LJ2,Legal Fees,P02,"Early Years, Children & Youth",PROFESSOR P M SALKOVSKIS & MRS L I HOGG,03/06/2013,1071
Bath & North East Somerset Council,10701059,LA1,Equipment Purchase (Non Medical),P05,Neighbourhoods,G. B. SPORT & LEISURE UK LTD,03/06/2013,1089.34
Bath & North East Somerset Council,10701267,DB1,Agency Staff,P05,Neighbourhoods,S P WATKINS,03/06/2013,1090
Bath & North East Somerset Council,10700180,LA1,Equipment Purchase (Non Medical),P05,Neighbourhoods,OPENING THE BOOK PROMOTIONS LTD,03/06/2013,1100
Bath & North East Somerset Council,10700757,LA1,Equipment Purchase (Non Medical),P03,Wellbeing,OTS LTD,03/06/2013,1118.85
Bath & North East Somerset Council,80222715,LM6,Nursing Care,P03,Wellbeing,STANTON COURT,03/06/2013,650
Bath & North East Somerset Council,80222715,LM6,Nursing Care,P03,Wellbeing,STANTON COURT,03/06/2013,650
Bath & North East Somerset Council,80222715,LM6,Nursing Care,P03,Wellbeing,STANTON COURT,03/06/2013,650
Bath & North East Somerset Council,80222715,LM6,Nursing Care,P03,Wellbeing,STANTON COURT,03/06/2013,650
Bath & North East Somerset Council,80222715,LM6,Nursing Care,P03,Wellbeing,STANTON COURT,03/06/2013,750
Bath & North East Somerset Council,80222715,LM6,Nursing Care,P03,Wellbeing,STANTON COURT,03/06/2013,750
Bath & North East Somerset Council,80222715,LM6,Nursing Care,P03,Wellbeing,STANTON COURT,03/06/2013,836.8
Bath & North East Somerset Council,80222715,LM6,Nursing Care,P03,Wellbeing,STANTON COURT,03/06/2013,836.8
Bath & North East Somerset Council,10701997,DB1,Agency Staff,P01,Transport,C R DAWSON LTD,03/06/2013,1231.57
Bath & North East Somerset Council,10701142,LH5,Marketing,P06,Sustainable Development,FUSION WORKSHOP LTD,03/06/2013,1233
Bath & North East Somerset Council,80223041,LM8,Home Care,P03,Wellbeing,STAR HOME CARE SERVICES LIMITED,03/06/2013,524.03
Bath & North East Somerset Council,80223052,LM8,Home Care,P03,Wellbeing,STAR HOME CARE SERVICES LIMITED,03/06/2013,524.03
Bath & North East Somerset Council,80222708,LM6,Nursing Care,P03,Wellbeing,SUNNYMEDE LTD,03/06/2013,371.43
Bath & North East Somerset Council,80222708,LM6,Nursing Care,P03,Wellbeing,SUNNYMEDE LTD,03/06/2013,650
Bath & North East Somerset Council,80222708,LM6,Nursing Care,P03,Wellbeing,SUNNYMEDE LTD,03/06/2013,650
Bath & North East Somerset Council,80222708,LM6,Nursing Care,P03,Wellbeing,SUNNYMEDE LTD,03/06/2013,650
Bath & North East Somerset Council,80222708,LM6,Nursing Care,P03,Wellbeing,SUNNYMEDE LTD,03/06/2013,650
Bath & North East Somerset Council,80222708,LM6,Nursing Care,P03,Wellbeing,SUNNYMEDE LTD,03/06/2013,650
Bath & North East Somerset Council,80222708,LM6,Nursing Care,P03,Wellbeing,SUNNYMEDE LTD,03/06/2013,650
Bath & North East Somerset Council,10701929,LJ4,Contracts,P06,Sustainable Development,LORNA OSBON,03/06/2013,1368.84
Bath & North East Somerset Council,10701930,LJ4,Contracts,P06,Sustainable Development,ROBERT HYMAN,03/06/2013,1368.84
Bath & North East Somerset Council,80223033,LL3,Supported Living,P03,Wellbeing,SUPPORTED INDEPENDENCE,03/06/2013,528.36
Bath & North East Somerset Council,80223033,LL3,Supported Living,P03,Wellbeing,SUPPORTED INDEPENDENCE,03/06/2013,528.36
Bath & North East Somerset Council,80223033,LL3,Supported Living,P03,Wellbeing,SUPPORTED INDEPENDENCE,03/06/2013,528.36
Bath & North East Somerset Council,80223033,LL3,Supported Living,P03,Wellbeing,SUPPORTED INDEPENDENCE,03/06/2013,528.36
Bath & North East Somerset Council,80223034,LL3,Supported Living,P03,Wellbeing,SUPPORTED INDEPENDENCE,03/06/2013,528.36
Bath & North East Somerset Council,80223034,LL3,Supported Living,P03,Wellbeing,SUPPORTED INDEPENDENCE,03/06/2013,528.36
Bath & North East Somerset Council,80223034,LL3,Supported Living,P03,Wellbeing,SUPPORTED INDEPENDENCE,03/06/2013,528.36
Bath & North East Somerset Council,80223034,LL3,Supported Living,P03,Wellbeing,SUPPORTED INDEPENDENCE,03/06/2013,528.36
Bath & North East Somerset Council,80222720,LM6,Nursing Care,P03,Wellbeing,T C CAREHOME LTD,03/06/2013,650
Bath & North East Somerset Council,80222720,LM6,Nursing Care,P03,Wellbeing,T C CAREHOME LTD,03/06/2013,650
Bath & North East Somerset Council,80222720,LM6,Nursing Care,P03,Wellbeing,T C CAREHOME LTD,03/06/2013,650
Bath & North East Somerset Council,80222720,LM6,Nursing Care,P03,Wellbeing,T C CAREHOME LTD,03/06/2013,650
Bath & North East Somerset Council,80222720,LM6,Nursing Care,P03,Wellbeing,T C CAREHOME LTD,03/06/2013,675
Bath & North East Somerset Council,80222720,LM6,Nursing Care,P03,Wellbeing,T C CAREHOME LTD,03/06/2013,675
Bath & North East Somerset Council,10701895,DB1,Agency Staff,P04,Leader,HAYS HR PERSONNEL,03/06/2013,1534.64
Bath & North East Somerset Council,80223029,LL3,Supported Living,P03,Wellbeing,THE BRANDON TRUST,03/06/2013,125.48
Bath & North East Somerset Council,10700751,LA1,Equipment Purchase (Non Medical),P03,Wellbeing,INVACARE (UK) LTD,03/06/2013,1611
Bath & North East Somerset Council,80223029,LL3,Supported Living,P03,Wellbeing,THE BRANDON TRUST,03/06/2013,1037
Bath & North East Somerset Council,80223029,LL3,Supported Living,P03,Wellbeing,THE BRANDON TRUST,03/06/2013,1037
Bath & North East Somerset Council,80223029,LL3,Supported Living,P03,Wellbeing,THE BRANDON TRUST,03/06/2013,1037
Bath & North East Somerset Council,80223029,LL3,Supported Living,P03,Wellbeing,THE BRANDON TRUST,03/06/2013,1037
Bath & North East Somerset Council,10701897,LP5,Software Support,P04,Leader,METRIC GROUP LIMITED,03/06/2013,688.5
Bath & North East Somerset Council,80222728,LM6,Nursing Care,P03,Wellbeing,THE SUSSEX BEACON,03/06/2013,1400
Bath & North East Somerset Council,80222728,LM6,Nursing Care,P03,Wellbeing,THE SUSSEX BEACON,03/06/2013,1400
Bath & North East Somerset Council,10701589,LA1,Equipment Purchase (Non Medical),P03,Wellbeing,HARVEST HEALTHCARE,03/06/2013,1752.5
Bath & North East Somerset Council,10701989,PB4,Payments to Private Contractors,P05,Neighbourhoods,R J KING & SONS,03/06/2013,1944
Bath & North East Somerset Council,10699777,HA3,Planned Maintenance,P06,Sustainable Development,THE HUB LIMITED,03/06/2013,2000
Bath & North East Somerset Council,10701961,HE1,General Maintenance,P01,Transport,E W HOBBS,03/06/2013,2059.5
Bath & North East Somerset Council,80222730,LM6,Nursing Care,P03,Wellbeing,TRU REHABILITATION UNIT LTD,03/06/2013,2870
Bath & North East Somerset Council,80222730,LM6,Nursing Care,P03,Wellbeing,TRU REHABILITATION UNIT LTD,03/06/2013,2870
Bath & North East Somerset Council,10701985,LF5,Postages,P07,Community Resources,TNT POST SOUTH WEST LTD,03/06/2013,2261.64
Bath & North East Somerset Council,10700356,3G1,Grants/Advances,P03,Wellbeing,STANNAH LIFT SERVICES LIMITED,03/06/2013,1838
Bath & North East Somerset Council,10701928,LV2,Contributions to Organisations,P04,Leader,CARE FORUM - BATH & NTH EAST S,03/06/2013,2500
Bath & North East Somerset Council,10701931,LV2,Contributions to Organisations,P04,Leader,CARE FORUM - BATH & NTH EAST S,03/06/2013,2500
Bath & North East Somerset Council,10701995,KA3,Fuel,P01,Transport,ALLSTAR BUSINESS SOLUTIONS LTD,03/06/2013,2571.1
Bath & North East Somerset Council,10701998,LJ4,Contracts,P01,Transport,HIGHWAY TAXIS & TRAVEL,03/06/2013,2590.88
Bath & North East Somerset Council,10701938,LJ4,Contracts,P06,Sustainable Development,DEREK STUART CLARK,03/06/2013,2737.68
Bath & North East Somerset Council,10701937,LJ4,Contracts,P06,Sustainable Development,KEITH TEMPEST,03/06/2013,2737.68
Bath & North East Somerset Council,10701998,LJ4,Contracts,P01,Transport,HIGHWAY TAXIS & TRAVEL,03/06/2013,2801.6
Bath & North East Somerset Council,10701786,LM2,Foster Carer Allowances,P02,"Early Years, Children & Youth",PATHWAY CARE (BRISTOL) LTD,03/06/2013,3410
Bath & North East Somerset Council,10701136,DB1,Agency Staff,P05,Neighbourhoods,S P WATKINS,03/06/2013,3775
Bath & North East Somerset Council,80222726,LM6,Nursing Care,P03,Wellbeing,WESTCROFT CARE LTD,03/06/2013,650
Bath & North East Somerset Council,80222726,LM6,Nursing Care,P03,Wellbeing,WESTCROFT CARE LTD,03/06/2013,650
Bath & North East Somerset Council,80222726,LM6,Nursing Care,P03,Wellbeing,WESTCROFT CARE LTD,03/06/2013,650
Bath & North East Somerset Council,80222726,LM6,Nursing Care,P03,Wellbeing,WESTCROFT CARE LTD,03/06/2013,650
Bath & North East Somerset Council,80222726,LM6,Nursing Care,P03,Wellbeing,WESTCROFT CARE LTD,03/06/2013,711.9
Bath & North East Somerset Council,10700578,LJ2,Legal Fees,P09,Homes & Planning,LANDMARK CHAMBERS LTD,03/06/2013,4200
Bath & North East Somerset Council,80222726,LM6,Nursing Care,P03,Wellbeing,WESTCROFT CARE LTD,03/06/2013,711.9
Bath & North East Somerset Council,80222723,LM6,Nursing Care,P03,Wellbeing,WESTMINSTER HEALTHCARE LTD,03/06/2013,966.15
Bath & North East Somerset Council,80222723,LM6,Nursing Care,P03,Wellbeing,WESTMINSTER HEALTHCARE LTD,03/06/2013,966.15
Bath & North East Somerset Council,10701933,PB4,Payments to Private Contractors,P05,Neighbourhoods,CORY ENVIRONMENTAL (GLOUCS) LT,03/06/2013,5745.6
Bath & North East Somerset Council,10701933,PB4,Payments to Private Contractors,P05,Neighbourhoods,CORY ENVIRONMENTAL (GLOUCS) LT,03/06/2013,14201.28
Bath & North East Somerset Council,80223213,LK4,Nursery/Childcare Vouchers,P02,"Early Years, Children & Youth",3-2-4 PLAYGROUP,05/06/2013,9274.38
Bath & North East Somerset Council,80223451,LM3,Residential Care,P03,Wellbeing,6 THE AVENUE -KEYNSHAM MENCAP,05/06/2013,577.87
Bath & North East Somerset Council,80223451,LM3,Residential Care,P03,Wellbeing,6 THE AVENUE -KEYNSHAM MENCAP,05/06/2013,577.87
Bath & North East Somerset Council,80223451,LM3,Residential Care,P03,Wellbeing,6 THE AVENUE -KEYNSHAM MENCAP,05/06/2013,577.87
Bath & North East Somerset Council,80223451,LM3,Residential Care,P03,Wellbeing,6 THE AVENUE -KEYNSHAM MENCAP,05/06/2013,577.87
Bath & North East Somerset Council,80223451,LM3,Residential Care,P03,Wellbeing,6 THE AVENUE -KEYNSHAM MENCAP,05/06/2013,577.87
Bath & North East Somerset Council,80223451,LM3,Residential Care,P03,Wellbeing,6 THE AVENUE -KEYNSHAM MENCAP,05/06/2013,577.87
Bath & North East Somerset Council,80223451,LM3,Residential Care,P03,Wellbeing,6 THE AVENUE -KEYNSHAM MENCAP,05/06/2013,577.87
Bath & North East Somerset Council,80223451,LM3,Residential Care,P03,Wellbeing,6 THE AVENUE -KEYNSHAM MENCAP,05/06/2013,577.87
Bath & North East Somerset Council,80223451,LM3,Residential Care,P03,Wellbeing,6 THE AVENUE -KEYNSHAM MENCAP,05/06/2013,577.87
Bath & North East Somerset Council,80223451,LM3,Residential Care,P03,Wellbeing,6 THE AVENUE -KEYNSHAM MENCAP,05/06/2013,577.87
Bath & North East Somerset Council,80223451,LM3,Residential Care,P03,Wellbeing,6 THE AVENUE -KEYNSHAM MENCAP,05/06/2013,971.93
Bath & North East Somerset Council,80223451,LM3,Residential Care,P03,Wellbeing,6 THE AVENUE -KEYNSHAM MENCAP,05/06/2013,971.93
Bath & North East Somerset Council,80223451,LM3,Residential Care,P03,Wellbeing,6 THE AVENUE -KEYNSHAM MENCAP,05/06/2013,971.93
Bath & North East Somerset Council,80223451,LM3,Residential Care,P03,Wellbeing,6 THE AVENUE -KEYNSHAM MENCAP,05/06/2013,971.93
Bath & North East Somerset Council,10700912,LJ2,Legal Fees,P02,"Early Years, Children & Youth",REFERRE LTD,05/06/2013,4.98
Bath & North East Somerset Council,80223393,LM6,Nursing Care,P03,Wellbeing,ADIEMUS CARE LTD - T/A WICKWAR,05/06/2013,552
Bath & North East Somerset Council,80223393,LM6,Nursing Care,P03,Wellbeing,ADIEMUS CARE LTD - T/A WICKWAR,05/06/2013,552
Bath & North East Somerset Council,80223332,LM3,Residential Care,P03,Wellbeing,ALPINE VILLA CARE HOME LTD,05/06/2013,700
Bath & North East Somerset Council,80223332,LM3,Residential Care,P03,Wellbeing,ALPINE VILLA CARE HOME LTD,05/06/2013,700
Bath & North East Somerset Council,80223375,LM3,Residential Care,P03,Wellbeing,AMBER CARE LTD T/A BRYN EDWIN HALL,05/06/2013,493.22
Bath & North East Somerset Council,80223375,LM3,Residential Care,P03,Wellbeing,AMBER CARE LTD T/A BRYN EDWIN HALL,05/06/2013,493.22
Bath & North East Somerset Council,10702251,LJ4,Contracts,P01,Transport,STEVE WARREN TRANSPORT SERVICES LTD,05/06/2013,32.5
Bath & North East Somerset Council,80223245,LM3,Residential Care,P03,Wellbeing,ANCHOR TRUST,05/06/2013,433.5
Bath & North East Somerset Council,80223245,LM3,Residential Care,P03,Wellbeing,ANCHOR TRUST,05/06/2013,433.5
Bath & North East Somerset Council,80223245,LM3,Residential Care,P03,Wellbeing,ANCHOR TRUST,05/06/2013,515.45
Bath & North East Somerset Council,80223245,LM3,Residential Care,P03,Wellbeing,ANCHOR TRUST,05/06/2013,515.45
Bath & North East Somerset Council,10700833,LK1,Fees,P03,Wellbeing,CO-OPERATIVE FUNERALCARE,05/06/2013,37.5
Bath & North East Somerset Council,80223245,LM3,Residential Care,P03,Wellbeing,ANCHOR TRUST,05/06/2013,550
Bath & North East Somerset Council,80223245,LM3,Residential Care,P03,Wellbeing,ANCHOR TRUST,05/06/2013,550
Bath & North East Somerset Council,80223245,LM3,Residential Care,P03,Wellbeing,ANCHOR TRUST,05/06/2013,550
Bath & North East Somerset Council,80223245,LM3,Residential Care,P03,Wellbeing,ANCHOR TRUST,05/06/2013,550
Bath & North East Somerset Council,10700765,LK1,Fees,P01,Transport,DYNAMIC INITIATIVES LTD,05/06/2013,40
Bath & North East Somerset Council,80223245,LM6,Nursing Care,P03,Wellbeing,ANCHOR TRUST,05/06/2013,575
Bath & North East Somerset Council,80223245,LM6,Nursing Care,P03,Wellbeing,ANCHOR TRUST,05/06/2013,575
Bath & North East Somerset Council,80223245,LM3,Residential Care,P03,Wellbeing,ANCHOR TRUST,05/06/2013,600
Bath & North East Somerset Council,80223245,LM3,Residential Care,P03,Wellbeing,ANCHOR TRUST,05/06/2013,600
Bath & North East Somerset Council,80223245,LM3,Residential Care,P03,Wellbeing,ANCHOR TRUST,05/06/2013,680
Bath & North East Somerset Council,80223245,LM3,Residential Care,P03,Wellbeing,ANCHOR TRUST,05/06/2013,680
Bath & North East Somerset Council,80223245,LM3,Residential Care,P03,Wellbeing,ANCHOR TRUST,05/06/2013,708
Bath & North East Somerset Council,80223245,LM3,Residential Care,P03,Wellbeing,ANCHOR TRUST,05/06/2013,708
Bath & North East Somerset Council,80223323,YF2,Fees & Charges,P03,Wellbeing,ARTI SERVICES LTD T/A THE MANOR FARM HOUSE,05/06/2013,48.86
Bath & North East Somerset Council,80223323,YF2,Fees & Charges,P03,Wellbeing,ARTI SERVICES LTD T/A THE MANOR FARM HOUSE,05/06/2013,114.01
Bath & North East Somerset Council,80223323,LM3,Residential Care,P03,Wellbeing,ARTI SERVICES LTD T/A THE MANOR FARM HOUSE,05/06/2013,433.5
Bath & North East Somerset Council,80223323,LM3,Residential Care,P03,Wellbeing,ARTI SERVICES LTD T/A THE MANOR FARM HOUSE,05/06/2013,433.5
Bath & North East Somerset Council,80223323,LM3,Residential Care,P03,Wellbeing,ARTI SERVICES LTD T/A THE MANOR FARM HOUSE,05/06/2013,433.5
Bath & North East Somerset Council,80223323,LM3,Residential Care,P03,Wellbeing,ARTI SERVICES LTD T/A THE MANOR FARM HOUSE,05/06/2013,433.5
Bath & North East Somerset Council,80223323,LM3,Residential Care,P03,Wellbeing,ARTI SERVICES LTD T/A THE MANOR FARM HOUSE,05/06/2013,433.5
Bath & North East Somerset Council,80223323,LM3,Residential Care,P03,Wellbeing,ARTI SERVICES LTD T/A THE MANOR FARM HOUSE,05/06/2013,433.5
Bath & North East Somerset Council,80223323,LM3,Residential Care,P03,Wellbeing,ARTI SERVICES LTD T/A THE MANOR FARM HOUSE,05/06/2013,475
Bath & North East Somerset Council,80223323,LM3,Residential Care,P03,Wellbeing,ARTI SERVICES LTD T/A THE MANOR FARM HOUSE,05/06/2013,475
Bath & North East Somerset Council,80223323,LM3,Residential Care,P03,Wellbeing,ARTI SERVICES LTD T/A THE MANOR FARM HOUSE,05/06/2013,475
Bath & North East Somerset Council,80223323,LM3,Residential Care,P03,Wellbeing,ARTI SERVICES LTD T/A THE MANOR FARM HOUSE,05/06/2013,475
Bath & North East Somerset Council,80223323,LM3,Residential Care,P03,Wellbeing,ARTI SERVICES LTD T/A THE MANOR FARM HOUSE,05/06/2013,475
Bath & North East Somerset Council,80223323,LM3,Residential Care,P03,Wellbeing,ARTI SERVICES LTD T/A THE MANOR FARM HOUSE,05/06/2013,475
Bath & North East Somerset Council,80223323,LM3,Residential Care,P03,Wellbeing,ARTI SERVICES LTD T/A THE MANOR FARM HOUSE,05/06/2013,475
Bath & North East Somerset Council,80223323,LM3,Residential Care,P03,Wellbeing,ARTI SERVICES LTD T/A THE MANOR FARM HOUSE,05/06/2013,475
Bath & North East Somerset Council,80223323,LM3,Residential Care,P03,Wellbeing,ARTI SERVICES LTD T/A THE MANOR FARM HOUSE,05/06/2013,475
Bath & North East Somerset Council,80223323,LM3,Residential Care,P03,Wellbeing,ARTI SERVICES LTD T/A THE MANOR FARM HOUSE,05/06/2013,475
Bath & North East Somerset Council,80223323,LM3,Residential Care,P03,Wellbeing,ARTI SERVICES LTD T/A THE MANOR FARM HOUSE,05/06/2013,486.25
Bath & North East Somerset Council,80223323,LM3,Residential Care,P03,Wellbeing,ARTI SERVICES LTD T/A THE MANOR FARM HOUSE,05/06/2013,486.25
Bath & North East Somerset Council,80223323,LM3,Residential Care,P03,Wellbeing,ARTI SERVICES LTD T/A THE MANOR FARM HOUSE,05/06/2013,495
Bath & North East Somerset Council,80223323,LM3,Residential Care,P03,Wellbeing,ARTI SERVICES LTD T/A THE MANOR FARM HOUSE,05/06/2013,495
Bath & North East Somerset Council,80223246,LM3,Residential Care,P03,Wellbeing,ASPECTS & MILESTONES TRUST,05/06/2013,843.17
Bath & North East Somerset Council,80223246,LM3,Residential Care,P03,Wellbeing,ASPECTS & MILESTONES TRUST,05/06/2013,843.17
Bath & North East Somerset Council,10701708,3N7,Misc. Costs,P07,Community Resources,DICKON ROBINSON,05/06/2013,68
Bath & North East Somerset Council,80223251,LM3,Residential Care,P03,Wellbeing,ASPECTS & MILESTONES TRUST,05/06/2013,886.06
Bath & North East Somerset Council,80223251,LM3,Residential Care,P03,Wellbeing,ASPECTS & MILESTONES TRUST,05/06/2013,886.06
Bath & North East Somerset Council,80223250,LM6,Nursing Care,P03,Wellbeing,ASPECTS & MILESTONES TRUST,05/06/2013,1423.09
Bath & North East Somerset Council,80223250,LM6,Nursing Care,P03,Wellbeing,ASPECTS & MILESTONES TRUST,05/06/2013,1423.09
Bath & North East Somerset Council,80223248,LM3,Residential Care,P03,Wellbeing,ASPECTS & MILESTONES TRUST,05/06/2013,1877.25
Bath & North East Somerset Council,80223248,LM3,Residential Care,P03,Wellbeing,ASPECTS & MILESTONES TRUST,05/06/2013,1877.25
Bath & North East Somerset Council,80223249,LM3,Residential Care,P03,Wellbeing,ASPECTS & MILESTONES TRUST,05/06/2013,2202.48
Bath & North East Somerset Council,80223249,LM3,Residential Care,P03,Wellbeing,ASPECTS & MILESTONES TRUST,05/06/2013,2202.48
Bath & North East Somerset Council,10702453,LA5,Materials,P05,Neighbourhoods,H & T PROCTOR,05/06/2013,70.15
Bath & North East Somerset Council,80223249,LM3,Residential Care,P03,Wellbeing,ASPECTS & MILESTONES TRUST,05/06/2013,2508.64
Bath & North East Somerset Council,80223249,LM3,Residential Care,P03,Wellbeing,ASPECTS & MILESTONES TRUST,05/06/2013,2508.64
Bath & North East Somerset Council,80223285,LM3,Residential Care,P03,Wellbeing,AUTISM SPECIALISED CARE HOMES LTD,05/06/2013,1284.26
Bath & North East Somerset Council,80223285,LM3,Residential Care,P03,Wellbeing,AUTISM SPECIALISED CARE HOMES LTD,05/06/2013,1284.26
Bath & North East Somerset Council,80223351,LM3,Residential Care,P03,Wellbeing,AVERY HOMES BRISTOL LIMITED,05/06/2013,475
Bath & North East Somerset Council,80223351,LM3,Residential Care,P03,Wellbeing,AVERY HOMES BRISTOL LIMITED,05/06/2013,475
Bath & North East Somerset Council,80223386,LM3,Residential Care,P03,Wellbeing,AVERY HOMES CHIPPENHAM,05/06/2013,536
Bath & North East Somerset Council,80223386,LM3,Residential Care,P03,Wellbeing,AVERY HOMES CHIPPENHAM,05/06/2013,536
Bath & North East Somerset Council,80223381,LM3,Residential Care,P03,Wellbeing,AVONPARK VILLAGE (CARE HOMES) LTD,05/06/2013,433.5
Bath & North East Somerset Council,80223381,LM3,Residential Care,P03,Wellbeing,AVONPARK VILLAGE (CARE HOMES) LTD,05/06/2013,433.5
Bath & North East Somerset Council,80223411,LM6,Nursing Care,P03,Wellbeing,BARCHESTER HEALTH CARE,05/06/2013,552
Bath & North East Somerset Council,80223411,LM6,Nursing Care,P03,Wellbeing,BARCHESTER HEALTH CARE,05/06/2013,552
Bath & North East Somerset Council,80223411,LM6,Nursing Care,P03,Wellbeing,BARCHESTER HEALTH CARE,05/06/2013,900
Bath & North East Somerset Council,80223411,LM6,Nursing Care,P03,Wellbeing,BARCHESTER HEALTH CARE,05/06/2013,900
Bath & North East Somerset Council,80223411,LM6,Nursing Care,P03,Wellbeing,BARCHESTER HEALTH CARE,05/06/2013,993
Bath & North East Somerset Council,80223411,LM6,Nursing Care,P03,Wellbeing,BARCHESTER HEALTH CARE,05/06/2013,993
Bath & North East Somerset Council,80223287,LM6,Nursing Care,P03,Wellbeing,BARCHESTER HEALTHCARE,05/06/2013,700
Bath & North East Somerset Council,80223287,LM6,Nursing Care,P03,Wellbeing,BARCHESTER HEALTHCARE,05/06/2013,700
Bath & North East Somerset Council,80223287,LM6,Nursing Care,P03,Wellbeing,BARCHESTER HEALTHCARE,05/06/2013,700
Bath & North East Somerset Council,80223287,LM6,Nursing Care,P03,Wellbeing,BARCHESTER HEALTHCARE,05/06/2013,700
Bath & North East Somerset Council,80223439,YF2,Fees & Charges,P03,Wellbeing,BARCHESTER HEALTHCARE HOMES LTD,05/06/2013,36.63
Bath & North East Somerset Council,80223439,YF2,Fees & Charges,P03,Wellbeing,BARCHESTER HEALTHCARE HOMES LTD,05/06/2013,128.2
Bath & North East Somerset Council,80223439,LM6,Nursing Care,P03,Wellbeing,BARCHESTER HEALTHCARE HOMES LTD,05/06/2013,321.43
Bath & North East Somerset Council,80223439,LM6,Nursing Care,P03,Wellbeing,BARCHESTER HEALTHCARE HOMES LTD,05/06/2013,321.43
Bath & North East Somerset Council,80223439,LM3,Residential Care,P03,Wellbeing,BARCHESTER HEALTHCARE HOMES LTD,05/06/2013,433.5
Bath & North East Somerset Council,80223439,LM3,Residential Care,P03,Wellbeing,BARCHESTER HEALTHCARE HOMES LTD,05/06/2013,433.5
Bath & North East Somerset Council,80223439,LM3,Residential Care,P03,Wellbeing,BARCHESTER HEALTHCARE HOMES LTD,05/06/2013,505
Bath & North East Somerset Council,80223439,LM3,Residential Care,P03,Wellbeing,BARCHESTER HEALTHCARE HOMES LTD,05/06/2013,505
Bath & North East Somerset Council,80223439,LM6,Nursing Care,P03,Wellbeing,BARCHESTER HEALTHCARE HOMES LTD,05/06/2013,552
Bath & North East Somerset Council,80223439,LM6,Nursing Care,P03,Wellbeing,BARCHESTER HEALTHCARE HOMES LTD,05/06/2013,552
Bath & North East Somerset Council,80223439,LM6,Nursing Care,P03,Wellbeing,BARCHESTER HEALTHCARE HOMES LTD,05/06/2013,552
Bath & North East Somerset Council,80223439,LM6,Nursing Care,P03,Wellbeing,BARCHESTER HEALTHCARE HOMES LTD,05/06/2013,552
Bath & North East Somerset Council,80223439,LM6,Nursing Care,P03,Wellbeing,BARCHESTER HEALTHCARE HOMES LTD,05/06/2013,552
Bath & North East Somerset Council,80223439,LM6,Nursing Care,P03,Wellbeing,BARCHESTER HEALTHCARE HOMES LTD,05/06/2013,552
Bath & North East Somerset Council,80223439,LM6,Nursing Care,P03,Wellbeing,BARCHESTER HEALTHCARE HOMES LTD,05/06/2013,552
Bath & North East Somerset Council,80223439,LM6,Nursing Care,P03,Wellbeing,BARCHESTER HEALTHCARE HOMES LTD,05/06/2013,552
Bath & North East Somerset Council,80223439,LM6,Nursing Care,P03,Wellbeing,BARCHESTER HEALTHCARE HOMES LTD,05/06/2013,552
Bath & North East Somerset Council,80223439,LM6,Nursing Care,P03,Wellbeing,BARCHESTER HEALTHCARE HOMES LTD,05/06/2013,552
Bath & North East Somerset Council,80223439,LM6,Nursing Care,P03,Wellbeing,BARCHESTER HEALTHCARE HOMES LTD,05/06/2013,552
Bath & North East Somerset Council,80223439,LM6,Nursing Care,P03,Wellbeing,BARCHESTER HEALTHCARE HOMES LTD,05/06/2013,552
Bath & North East Somerset Council,80223439,LM6,Nursing Care,P03,Wellbeing,BARCHESTER HEALTHCARE HOMES LTD,05/06/2013,552
Bath & North East Somerset Council,80223439,LM6,Nursing Care,P03,Wellbeing,BARCHESTER HEALTHCARE HOMES LTD,05/06/2013,552
Bath & North East Somerset Council,80223439,LM6,Nursing Care,P03,Wellbeing,BARCHESTER HEALTHCARE HOMES LTD,05/06/2013,552
Bath & North East Somerset Council,80223439,LM6,Nursing Care,P03,Wellbeing,BARCHESTER HEALTHCARE HOMES LTD,05/06/2013,552
Bath & North East Somerset Council,80223439,LM6,Nursing Care,P03,Wellbeing,BARCHESTER HEALTHCARE HOMES LTD,05/06/2013,560.55
Bath & North East Somerset Council,80223439,LM6,Nursing Care,P03,Wellbeing,BARCHESTER HEALTHCARE HOMES LTD,05/06/2013,560.55
Bath & North East Somerset Council,80223439,LM6,Nursing Care,P03,Wellbeing,BARCHESTER HEALTHCARE HOMES LTD,05/06/2013,575
Bath & North East Somerset Council,80223439,LM6,Nursing Care,P03,Wellbeing,BARCHESTER HEALTHCARE HOMES LTD,05/06/2013,575
Bath & North East Somerset Council,80223439,LM6,Nursing Care,P03,Wellbeing,BARCHESTER HEALTHCARE HOMES LTD,05/06/2013,575
Bath & North East Somerset Council,80223439,LM6,Nursing Care,P03,Wellbeing,BARCHESTER HEALTHCARE HOMES LTD,05/06/2013,575
Bath & North East Somerset Council,80223439,LM6,Nursing Care,P03,Wellbeing,BARCHESTER HEALTHCARE HOMES LTD,05/06/2013,575
Bath & North East Somerset Council,80223439,LM6,Nursing Care,P03,Wellbeing,BARCHESTER HEALTHCARE HOMES LTD,05/06/2013,575
Bath & North East Somerset Council,80223439,LM6,Nursing Care,P03,Wellbeing,BARCHESTER HEALTHCARE HOMES LTD,05/06/2013,596
Bath & North East Somerset Council,80223439,LM6,Nursing Care,P03,Wellbeing,BARCHESTER HEALTHCARE HOMES LTD,05/06/2013,596
Bath & North East Somerset Council,80223439,LM6,Nursing Care,P03,Wellbeing,BARCHESTER HEALTHCARE HOMES LTD,05/06/2013,600
Bath & North East Somerset Council,80223439,LM6,Nursing Care,P03,Wellbeing,BARCHESTER HEALTHCARE HOMES LTD,05/06/2013,600
Bath & North East Somerset Council,80223439,LM6,Nursing Care,P03,Wellbeing,BARCHESTER HEALTHCARE HOMES LTD,05/06/2013,650
Bath & North East Somerset Council,80223439,LM6,Nursing Care,P03,Wellbeing,BARCHESTER HEALTHCARE HOMES LTD,05/06/2013,650
Bath & North East Somerset Council,80223439,LM6,Nursing Care,P03,Wellbeing,BARCHESTER HEALTHCARE HOMES LTD,05/06/2013,656.5
Bath & North East Somerset Council,80223439,LM6,Nursing Care,P03,Wellbeing,BARCHESTER HEALTHCARE HOMES LTD,05/06/2013,656.5
Bath & North East Somerset Council,80223439,LM6,Nursing Care,P03,Wellbeing,BARCHESTER HEALTHCARE HOMES LTD,05/06/2013,700
Bath & North East Somerset Council,80223439,LM6,Nursing Care,P03,Wellbeing,BARCHESTER HEALTHCARE HOMES LTD,05/06/2013,700
Bath & North East Somerset Council,80223439,LM6,Nursing Care,P03,Wellbeing,BARCHESTER HEALTHCARE HOMES LTD,05/06/2013,750
Bath & North East Somerset Council,80223439,LM6,Nursing Care,P03,Wellbeing,BARCHESTER HEALTHCARE HOMES LTD,05/06/2013,750
Bath & North East Somerset Council,80223439,LM6,Nursing Care,P03,Wellbeing,BARCHESTER HEALTHCARE HOMES LTD,05/06/2013,750
Bath & North East Somerset Council,80223439,LM6,Nursing Care,P03,Wellbeing,BARCHESTER HEALTHCARE HOMES LTD,05/06/2013,750
Bath & North East Somerset Council,80223439,LM6,Nursing Care,P03,Wellbeing,BARCHESTER HEALTHCARE HOMES LTD,05/06/2013,750
Bath & North East Somerset Council,80223439,LM6,Nursing Care,P03,Wellbeing,BARCHESTER HEALTHCARE HOMES LTD,05/06/2013,750
Bath & North East Somerset Council,80223439,LM6,Nursing Care,P03,Wellbeing,BARCHESTER HEALTHCARE HOMES LTD,05/06/2013,750
Bath & North East Somerset Council,80223439,LM6,Nursing Care,P03,Wellbeing,BARCHESTER HEALTHCARE HOMES LTD,05/06/2013,750
Bath & North East Somerset Council,80223439,LM6,Nursing Care,P03,Wellbeing,BARCHESTER HEALTHCARE HOMES LTD,05/06/2013,816.66
Bath & North East Somerset Council,80223439,LM6,Nursing Care,P03,Wellbeing,BARCHESTER HEALTHCARE HOMES LTD,05/06/2013,816.66
Bath & North East Somerset Council,80223439,LM6,Nursing Care,P03,Wellbeing,BARCHESTER HEALTHCARE HOMES LTD,05/06/2013,875
Bath & North East Somerset Council,80223439,LM6,Nursing Care,P03,Wellbeing,BARCHESTER HEALTHCARE HOMES LTD,05/06/2013,875
Bath & North East Somerset Council,80223439,LM6,Nursing Care,P03,Wellbeing,BARCHESTER HEALTHCARE HOMES LTD,05/06/2013,900
Bath & North East Somerset Council,80223439,LM6,Nursing Care,P03,Wellbeing,BARCHESTER HEALTHCARE HOMES LTD,05/06/2013,900
Bath & North East Somerset Council,80223439,LM6,Nursing Care,P03,Wellbeing,BARCHESTER HEALTHCARE HOMES LTD,05/06/2013,959.5
Bath & North East Somerset Council,80223439,LM6,Nursing Care,P03,Wellbeing,BARCHESTER HEALTHCARE HOMES LTD,05/06/2013,959.5
Bath & North East Somerset Council,80223350,LM3,Residential Care,P03,Wellbeing,BARCHESTER HEALTHCARE HOMES LTD,05/06/2013,1735
Bath & North East Somerset Council,80223350,LM3,Residential Care,P03,Wellbeing,BARCHESTER HEALTHCARE HOMES LTD,05/06/2013,1735
Bath & North East Somerset Council,80223339,YF2,Fees & Charges,P03,Wellbeing,BARKER CHEMICALS LTD T/A ST TERESA'S NH,05/06/2013,118.25
Bath & North East Somerset Council,80223339,YF2,Fees & Charges,P03,Wellbeing,BARKER CHEMICALS LTD T/A ST TERESA'S NH,05/06/2013,118.25
Bath & North East Somerset Council,80223339,YF2,Fees & Charges,P03,Wellbeing,BARKER CHEMICALS LTD T/A ST TERESA'S NH,05/06/2013,118.25
Bath & North East Somerset Council,80223339,YF2,Fees & Charges,P03,Wellbeing,BARKER CHEMICALS LTD T/A ST TERESA'S NH,05/06/2013,118.25
Bath & North East Somerset Council,80223339,YF2,Fees & Charges,P03,Wellbeing,BARKER CHEMICALS LTD T/A ST TERESA'S NH,05/06/2013,118.25
Bath & North East Somerset Council,80223339,YF2,Fees & Charges,P03,Wellbeing,BARKER CHEMICALS LTD T/A ST TERESA'S NH,05/06/2013,118.25
Bath & North East Somerset Council,80223339,YF2,Fees & Charges,P03,Wellbeing,BARKER CHEMICALS LTD T/A ST TERESA'S NH,05/06/2013,118.25
Bath & North East Somerset Council,80223339,YF2,Fees & Charges,P03,Wellbeing,BARKER CHEMICALS LTD T/A ST TERESA'S NH,05/06/2013,119.2
Bath & North East Somerset Council,80223339,YF2,Fees & Charges,P03,Wellbeing,BARKER CHEMICALS LTD T/A ST TERESA'S NH,05/06/2013,119.2
Bath & North East Somerset Council,80223339,YF2,Fees & Charges,P03,Wellbeing,BARKER CHEMICALS LTD T/A ST TERESA'S NH,05/06/2013,119.2
Bath & North East Somerset Council,80223339,YF2,Fees & Charges,P03,Wellbeing,BARKER CHEMICALS LTD T/A ST TERESA'S NH,05/06/2013,119.2
Bath & North East Somerset Council,80223339,YF2,Fees & Charges,P03,Wellbeing,BARKER CHEMICALS LTD T/A ST TERESA'S NH,05/06/2013,119.2
Bath & North East Somerset Council,80223339,YF2,Fees & Charges,P03,Wellbeing,BARKER CHEMICALS LTD T/A ST TERESA'S NH,05/06/2013,119.2
Bath & North East Somerset Council,80223339,YF2,Fees & Charges,P03,Wellbeing,BARKER CHEMICALS LTD T/A ST TERESA'S NH,05/06/2013,119.2
Bath & North East Somerset Council,80223339,YF2,Fees & Charges,P03,Wellbeing,BARKER CHEMICALS LTD T/A ST TERESA'S NH,05/06/2013,125.89
Bath & North East Somerset Council,80223339,YF2,Fees & Charges,P03,Wellbeing,BARKER CHEMICALS LTD T/A ST TERESA'S NH,05/06/2013,125.89
Bath & North East Somerset Council,80223339,YF2,Fees & Charges,P03,Wellbeing,BARKER CHEMICALS LTD T/A ST TERESA'S NH,05/06/2013,125.89
Bath & North East Somerset Council,80223339,YF2,Fees & Charges,P03,Wellbeing,BARKER CHEMICALS LTD T/A ST TERESA'S NH,05/06/2013,125.89
Bath & North East Somerset Council,80223339,YF2,Fees & Charges,P03,Wellbeing,BARKER CHEMICALS LTD T/A ST TERESA'S NH,05/06/2013,125.89
Bath & North East Somerset Council,80223339,YF2,Fees & Charges,P03,Wellbeing,BARKER CHEMICALS LTD T/A ST TERESA'S NH,05/06/2013,125.89
Bath & North East Somerset Council,80223339,YF2,Fees & Charges,P03,Wellbeing,BARKER CHEMICALS LTD T/A ST TERESA'S NH,05/06/2013,125.89
Bath & North East Somerset Council,80223339,LM6,Nursing Care,P03,Wellbeing,BARKER CHEMICALS LTD T/A ST TERESA'S NH,05/06/2013,552
Bath & North East Somerset Council,80223339,LM6,Nursing Care,P03,Wellbeing,BARKER CHEMICALS LTD T/A ST TERESA'S NH,05/06/2013,552
Bath & North East Somerset Council,80223339,LM6,Nursing Care,P03,Wellbeing,BARKER CHEMICALS LTD T/A ST TERESA'S NH,05/06/2013,552
Bath & North East Somerset Council,80223339,LM6,Nursing Care,P03,Wellbeing,BARKER CHEMICALS LTD T/A ST TERESA'S NH,05/06/2013,552
Bath & North East Somerset Council,80223339,LM6,Nursing Care,P03,Wellbeing,BARKER CHEMICALS LTD T/A ST TERESA'S NH,05/06/2013,552
Bath & North East Somerset Council,80223339,LM6,Nursing Care,P03,Wellbeing,BARKER CHEMICALS LTD T/A ST TERESA'S NH,05/06/2013,552
Bath & North East Somerset Council,80223339,LM6,Nursing Care,P03,Wellbeing,BARKER CHEMICALS LTD T/A ST TERESA'S NH,05/06/2013,552
Bath & North East Somerset Council,80223339,LM6,Nursing Care,P03,Wellbeing,BARKER CHEMICALS LTD T/A ST TERESA'S NH,05/06/2013,552
Bath & North East Somerset Council,80223339,LM6,Nursing Care,P03,Wellbeing,BARKER CHEMICALS LTD T/A ST TERESA'S NH,05/06/2013,552
Bath & North East Somerset Council,80223339,LM6,Nursing Care,P03,Wellbeing,BARKER CHEMICALS LTD T/A ST TERESA'S NH,05/06/2013,552
Bath & North East Somerset Council,80223339,LM6,Nursing Care,P03,Wellbeing,BARKER CHEMICALS LTD T/A ST TERESA'S NH,05/06/2013,552
Bath & North East Somerset Council,80223339,LM6,Nursing Care,P03,Wellbeing,BARKER CHEMICALS LTD T/A ST TERESA'S NH,05/06/2013,552
Bath & North East Somerset Council,80223339,LM6,Nursing Care,P03,Wellbeing,BARKER CHEMICALS LTD T/A ST TERESA'S NH,05/06/2013,552
Bath & North East Somerset Council,80223339,LM6,Nursing Care,P03,Wellbeing,BARKER CHEMICALS LTD T/A ST TERESA'S NH,05/06/2013,552
Bath & North East Somerset Council,80223339,LM6,Nursing Care,P03,Wellbeing,BARKER CHEMICALS LTD T/A ST TERESA'S NH,05/06/2013,575
Bath & North East Somerset Council,80223339,LM6,Nursing Care,P03,Wellbeing,BARKER CHEMICALS LTD T/A ST TERESA'S NH,05/06/2013,575
Bath & North East Somerset Council,80223339,LM6,Nursing Care,P03,Wellbeing,BARKER CHEMICALS LTD T/A ST TERESA'S NH,05/06/2013,575
Bath & North East Somerset Council,80223339,LM6,Nursing Care,P03,Wellbeing,BARKER CHEMICALS LTD T/A ST TERESA'S NH,05/06/2013,575
Bath & North East Somerset Council,80223339,LM6,Nursing Care,P03,Wellbeing,BARKER CHEMICALS LTD T/A ST TERESA'S NH,05/06/2013,575
Bath & North East Somerset Council,80223339,LM6,Nursing Care,P03,Wellbeing,BARKER CHEMICALS LTD T/A ST TERESA'S NH,05/06/2013,575
Bath & North East Somerset Council,80223339,LM6,Nursing Care,P03,Wellbeing,BARKER CHEMICALS LTD T/A ST TERESA'S NH,05/06/2013,575
Bath & North East Somerset Council,80223339,LM6,Nursing Care,P03,Wellbeing,BARKER CHEMICALS LTD T/A ST TERESA'S NH,05/06/2013,575
Bath & North East Somerset Council,80223339,LM6,Nursing Care,P03,Wellbeing,BARKER CHEMICALS LTD T/A ST TERESA'S NH,05/06/2013,575
Bath & North East Somerset Council,80223339,LM6,Nursing Care,P03,Wellbeing,BARKER CHEMICALS LTD T/A ST TERESA'S NH,05/06/2013,575
Bath & North East Somerset Council,80223339,LM6,Nursing Care,P03,Wellbeing,BARKER CHEMICALS LTD T/A ST TERESA'S NH,05/06/2013,575
Bath & North East Somerset Council,80223339,LM6,Nursing Care,P03,Wellbeing,BARKER CHEMICALS LTD T/A ST TERESA'S NH,05/06/2013,575
Bath & North East Somerset Council,80223339,LM6,Nursing Care,P03,Wellbeing,BARKER CHEMICALS LTD T/A ST TERESA'S NH,05/06/2013,600
Bath & North East Somerset Council,80223339,LM6,Nursing Care,P03,Wellbeing,BARKER CHEMICALS LTD T/A ST TERESA'S NH,05/06/2013,600
Bath & North East Somerset Council,80223339,LM6,Nursing Care,P03,Wellbeing,BARKER CHEMICALS LTD T/A ST TERESA'S NH,05/06/2013,600
Bath & North East Somerset Council,80223339,LM6,Nursing Care,P03,Wellbeing,BARKER CHEMICALS LTD T/A ST TERESA'S NH,05/06/2013,600
Bath & North East Somerset Council,80223339,LM6,Nursing Care,P03,Wellbeing,BARKER CHEMICALS LTD T/A ST TERESA'S NH,05/06/2013,600
Bath & North East Somerset Council,80223339,LM6,Nursing Care,P03,Wellbeing,BARKER CHEMICALS LTD T/A ST TERESA'S NH,05/06/2013,600
Bath & North East Somerset Council,80223339,LM6,Nursing Care,P03,Wellbeing,BARKER CHEMICALS LTD T/A ST TERESA'S NH,05/06/2013,600
Bath & North East Somerset Council,80223339,LM6,Nursing Care,P03,Wellbeing,BARKER CHEMICALS LTD T/A ST TERESA'S NH,05/06/2013,600
Bath & North East Somerset Council,80223339,LM6,Nursing Care,P03,Wellbeing,BARKER CHEMICALS LTD T/A ST TERESA'S NH,05/06/2013,600
Bath & North East Somerset Council,80223339,LM6,Nursing Care,P03,Wellbeing,BARKER CHEMICALS LTD T/A ST TERESA'S NH,05/06/2013,600
Bath & North East Somerset Council,80223339,LM6,Nursing Care,P03,Wellbeing,BARKER CHEMICALS LTD T/A ST TERESA'S NH,05/06/2013,600
Bath & North East Somerset Council,80223339,LM6,Nursing Care,P03,Wellbeing,BARKER CHEMICALS LTD T/A ST TERESA'S NH,05/06/2013,600
Bath & North East Somerset Council,80223339,LM6,Nursing Care,P03,Wellbeing,BARKER CHEMICALS LTD T/A ST TERESA'S NH,05/06/2013,600
Bath & North East Somerset Council,80223339,LM6,Nursing Care,P03,Wellbeing,BARKER CHEMICALS LTD T/A ST TERESA'S NH,05/06/2013,600
Bath & North East Somerset Council,80223339,LM6,Nursing Care,P03,Wellbeing,BARKER CHEMICALS LTD T/A ST TERESA'S NH,05/06/2013,600
Bath & North East Somerset Council,80223339,LM6,Nursing Care,P03,Wellbeing,BARKER CHEMICALS LTD T/A ST TERESA'S NH,05/06/2013,600
Bath & North East Somerset Council,80223339,LM6,Nursing Care,P03,Wellbeing,BARKER CHEMICALS LTD T/A ST TERESA'S NH,05/06/2013,600
Bath & North East Somerset Council,80223339,LM6,Nursing Care,P03,Wellbeing,BARKER CHEMICALS LTD T/A ST TERESA'S NH,05/06/2013,600
Bath & North East Somerset Council,80223339,LM6,Nursing Care,P03,Wellbeing,BARKER CHEMICALS LTD T/A ST TERESA'S NH,05/06/2013,600
Bath & North East Somerset Council,80223339,LM6,Nursing Care,P03,Wellbeing,BARKER CHEMICALS LTD T/A ST TERESA'S NH,05/06/2013,600
Bath & North East Somerset Council,80223339,LM6,Nursing Care,P03,Wellbeing,BARKER CHEMICALS LTD T/A ST TERESA'S NH,05/06/2013,607.25
Bath & North East Somerset Council,80223339,LM6,Nursing Care,P03,Wellbeing,BARKER CHEMICALS LTD T/A ST TERESA'S NH,05/06/2013,607.25
Bath & North East Somerset Council,80223339,LM6,Nursing Care,P03,Wellbeing,BARKER CHEMICALS LTD T/A ST TERESA'S NH,05/06/2013,650
Bath & North East Somerset Council,80223339,LM6,Nursing Care,P03,Wellbeing,BARKER CHEMICALS LTD T/A ST TERESA'S NH,05/06/2013,650
Bath & North East Somerset Council,80223339,LM6,Nursing Care,P03,Wellbeing,BARKER CHEMICALS LTD T/A ST TERESA'S NH,05/06/2013,650
Bath & North East Somerset Council,80223339,LM6,Nursing Care,P03,Wellbeing,BARKER CHEMICALS LTD T/A ST TERESA'S NH,05/06/2013,650
Bath & North East Somerset Council,80223339,LM6,Nursing Care,P03,Wellbeing,BARKER CHEMICALS LTD T/A ST TERESA'S NH,05/06/2013,650
Bath & North East Somerset Council,80223339,LM6,Nursing Care,P03,Wellbeing,BARKER CHEMICALS LTD T/A ST TERESA'S NH,05/06/2013,650
Bath & North East Somerset Council,80223339,LM6,Nursing Care,P03,Wellbeing,BARKER CHEMICALS LTD T/A ST TERESA'S NH,05/06/2013,650
Bath & North East Somerset Council,80223339,LM6,Nursing Care,P03,Wellbeing,BARKER CHEMICALS LTD T/A ST TERESA'S NH,05/06/2013,650
Bath & North East Somerset Council,80223212,LK4,Nursery/Childcare Vouchers,P02,"Early Years, Children & Youth",BARNABY PRE-SCHOOL,05/06/2013,6128.85
Bath & North East Somerset Council,80223253,LM3,Residential Care,P03,Wellbeing,BATH MIND,05/06/2013,639.79
Bath & North East Somerset Council,80223253,LM3,Residential Care,P03,Wellbeing,BATH MIND,05/06/2013,639.79
Bath & North East Somerset Council,80223253,LM3,Residential Care,P03,Wellbeing,BATH MIND,05/06/2013,639.79
Bath & North East Somerset Council,80223253,LM3,Residential Care,P03,Wellbeing,BATH MIND,05/06/2013,639.79
Bath & North East Somerset Council,80223253,LM3,Residential Care,P03,Wellbeing,BATH MIND,05/06/2013,639.79
Bath & North East Somerset Council,80223253,LM3,Residential Care,P03,Wellbeing,BATH MIND,05/06/2013,639.79
Bath & North East Somerset Council,80223253,LM3,Residential Care,P03,Wellbeing,BATH MIND,05/06/2013,639.79
Bath & North East Somerset Council,80223253,LM3,Residential Care,P03,Wellbeing,BATH MIND,05/06/2013,639.79
Bath & North East Somerset Council,80223253,LM3,Residential Care,P03,Wellbeing,BATH MIND,05/06/2013,639.79
Bath & North East Somerset Council,80223253,LM3,Residential Care,P03,Wellbeing,BATH MIND,05/06/2013,639.79
Bath & North East Somerset Council,80223253,LM3,Residential Care,P03,Wellbeing,BATH MIND,05/06/2013,639.79
Bath & North East Somerset Council,80223253,LM3,Residential Care,P03,Wellbeing,BATH MIND,05/06/2013,639.79
Bath & North East Somerset Council,80223460,YF2,Fees & Charges,P03,Wellbeing,BCVS HOMES,05/06/2013,153.61
Bath & North East Somerset Council,80223460,YF2,Fees & Charges,P03,Wellbeing,BCVS HOMES,05/06/2013,215.05
Bath & North East Somerset Council,80223461,LM3,Residential Care,P03,Wellbeing,BCVS HOMES,05/06/2013,234
Bath & North East Somerset Council,80223461,LM3,Residential Care,P03,Wellbeing,BCVS HOMES,05/06/2013,312
Bath & North East Somerset Council,80223461,LM3,Residential Care,P03,Wellbeing,BCVS HOMES,05/06/2013,427.23
Bath & North East Somerset Council,80223461,LM3,Residential Care,P03,Wellbeing,BCVS HOMES,05/06/2013,427.23
Bath & North East Somerset Council,80223461,LM3,Residential Care,P03,Wellbeing,BCVS HOMES,05/06/2013,433.5
Bath & North East Somerset Council,80223461,LM3,Residential Care,P03,Wellbeing,BCVS HOMES,05/06/2013,433.5
Bath & North East Somerset Council,80223461,LM3,Residential Care,P03,Wellbeing,BCVS HOMES,05/06/2013,433.5
Bath & North East Somerset Council,80223461,LM3,Residential Care,P03,Wellbeing,BCVS HOMES,05/06/2013,433.5
Bath & North East Somerset Council,80223461,LM3,Residential Care,P03,Wellbeing,BCVS HOMES,05/06/2013,433.5
Bath & North East Somerset Council,80223461,LM3,Residential Care,P03,Wellbeing,BCVS HOMES,05/06/2013,433.5
Bath & North East Somerset Council,80223461,LM3,Residential Care,P03,Wellbeing,BCVS HOMES,05/06/2013,433.5
Bath & North East Somerset Council,80223461,LM3,Residential Care,P03,Wellbeing,BCVS HOMES,05/06/2013,433.5
Bath & North East Somerset Council,80223461,LM3,Residential Care,P03,Wellbeing,BCVS HOMES,05/06/2013,454.5
Bath & North East Somerset Council,80223461,LM3,Residential Care,P03,Wellbeing,BCVS HOMES,05/06/2013,454.5
Bath & North East Somerset Council,80223461,LM3,Residential Care,P03,Wellbeing,BCVS HOMES,05/06/2013,455.51
Bath & North East Somerset Council,80223461,LM3,Residential Care,P03,Wellbeing,BCVS HOMES,05/06/2013,455.51
Bath & North East Somerset Council,80223461,LM3,Residential Care,P03,Wellbeing,BCVS HOMES,05/06/2013,468
Bath & North East Somerset Council,80223461,LM3,Residential Care,P03,Wellbeing,BCVS HOMES,05/06/2013,475
Bath & North East Somerset Council,80223461,LM3,Residential Care,P03,Wellbeing,BCVS HOMES,05/06/2013,475
Bath & North East Somerset Council,80223461,LM3,Residential Care,P03,Wellbeing,BCVS HOMES,05/06/2013,475
Bath & North East Somerset Council,80223461,LM3,Residential Care,P03,Wellbeing,BCVS HOMES,05/06/2013,475
Bath & North East Somerset Council,80223460,LM3,Residential Care,P03,Wellbeing,BCVS HOMES,05/06/2013,480
Bath & North East Somerset Council,80223460,LM3,Residential Care,P03,Wellbeing,BCVS HOMES,05/06/2013,480
Bath & North East Somerset Council,80223461,LM3,Residential Care,P03,Wellbeing,BCVS HOMES,05/06/2013,500
Bath & North East Somerset Council,80223461,LM3,Residential Care,P03,Wellbeing,BCVS HOMES,05/06/2013,500
Bath & North East Somerset Council,80223460,LM3,Residential Care,P03,Wellbeing,BCVS HOMES,05/06/2013,500.96
Bath & North East Somerset Council,80223460,LM3,Residential Care,P03,Wellbeing,BCVS HOMES,05/06/2013,500.96
Bath & North East Somerset Council,80223461,LM3,Residential Care,P03,Wellbeing,BCVS HOMES,05/06/2013,546
Bath & North East Somerset Council,80223461,LM3,Residential Care,P03,Wellbeing,BCVS HOMES,05/06/2013,546
Bath & North East Somerset Council,80223461,LM3,Residential Care,P03,Wellbeing,BCVS HOMES,05/06/2013,546
Bath & North East Somerset Council,80223461,LM3,Residential Care,P03,Wellbeing,BCVS HOMES,05/06/2013,546
Bath & North East Somerset Council,80223461,LM3,Residential Care,P03,Wellbeing,BCVS HOMES,05/06/2013,546
Bath & North East Somerset Council,80223461,LM3,Residential Care,P03,Wellbeing,BCVS HOMES,05/06/2013,546
Bath & North East Somerset Council,80223461,LM3,Residential Care,P03,Wellbeing,BCVS HOMES,05/06/2013,546
Bath & North East Somerset Council,80223461,LM3,Residential Care,P03,Wellbeing,BCVS HOMES,05/06/2013,546
Bath & North East Somerset Council,80223461,LM3,Residential Care,P03,Wellbeing,BCVS HOMES,05/06/2013,546
Bath & North East Somerset Council,80223461,LM3,Residential Care,P03,Wellbeing,BCVS HOMES,05/06/2013,546
Bath & North East Somerset Council,80223461,LM3,Residential Care,P03,Wellbeing,BCVS HOMES,05/06/2013,546
Bath & North East Somerset Council,80223461,LM3,Residential Care,P03,Wellbeing,BCVS HOMES,05/06/2013,546
Bath & North East Somerset Council,80223406,LM3,Residential Care,P03,Wellbeing,BEAUFORT CARE LIMITED,05/06/2013,550
Bath & North East Somerset Council,80223406,LM3,Residential Care,P03,Wellbeing,BEAUFORT CARE LIMITED,05/06/2013,550
Bath & North East Somerset Council,80223286,LM3,Residential Care,P03,Wellbeing,BEDROCK LODGE,05/06/2013,789.7
Bath & North East Somerset Council,80223286,LM3,Residential Care,P03,Wellbeing,BEDROCK LODGE,05/06/2013,789.7
Bath & North East Somerset Council,80223330,LM3,Residential Care,P03,Wellbeing,BELMONT VILLA RESIDENTIAL NURSING HOME LTD,05/06/2013,550
Bath & North East Somerset Council,80223330,LM3,Residential Care,P03,Wellbeing,BELMONT VILLA RESIDENTIAL NURSING HOME LTD,05/06/2013,550
Bath & North East Somerset Council,80223394,LM6,Nursing Care,P03,Wellbeing,BIRKDALE PARK NURSING HOME,05/06/2013,575
Bath & North East Somerset Council,80223394,LM6,Nursing Care,P03,Wellbeing,BIRKDALE PARK NURSING HOME,05/06/2013,575
Bath & North East Somerset Council,80223188,LK4,Nursery/Childcare Vouchers,P02,"Early Years, Children & Youth",BISHOP SUTTON PRE-SCHOOL,05/06/2013,1727.84
Bath & North East Somerset Council,80223199,LK4,Nursery/Childcare Vouchers,P02,"Early Years, Children & Youth",BISHOP SUTTON PRE-SCHOOL,05/06/2013,8517.66
Bath & North East Somerset Council,80223324,LM3,Residential Care,P03,Wellbeing,BOLE ALLER HOUSE LTD,05/06/2013,728.63
Bath & North East Somerset Council,80223324,LM3,Residential Care,P03,Wellbeing,BOLE ALLER HOUSE LTD,05/06/2013,728.63
Bath & North East Somerset Council,80223376,LM3,Residential Care,P03,Wellbeing,BOROUGH CARE LIMITED,05/06/2013,376
Bath & North East Somerset Council,80223376,LM3,Residential Care,P03,Wellbeing,BOROUGH CARE LIMITED,05/06/2013,376
Bath & North East Somerset Council,80223358,LM3,Residential Care,P03,Wellbeing,BRIDGE CARE LTD,05/06/2013,185.79
Bath & North East Somerset Council,80223358,LM3,Residential Care,P03,Wellbeing,BRIDGE CARE LTD,05/06/2013,433.5
Bath & North East Somerset Council,80223358,LM3,Residential Care,P03,Wellbeing,BRIDGE CARE LTD,05/06/2013,433.5
Bath & North East Somerset Council,80223358,LM3,Residential Care,P03,Wellbeing,BRIDGE CARE LTD,05/06/2013,433.5
Bath & North East Somerset Council,80223358,LM3,Residential Care,P03,Wellbeing,BRIDGE CARE LTD,05/06/2013,433.5
Bath & North East Somerset Council,80223358,LM3,Residential Care,P03,Wellbeing,BRIDGE CARE LTD,05/06/2013,433.5
Bath & North East Somerset Council,80223358,LM3,Residential Care,P03,Wellbeing,BRIDGE CARE LTD,05/06/2013,433.5
Bath & North East Somerset Council,80223358,LM3,Residential Care,P03,Wellbeing,BRIDGE CARE LTD,05/06/2013,433.5
Bath & North East Somerset Council,80223358,LM3,Residential Care,P03,Wellbeing,BRIDGE CARE LTD,05/06/2013,433.5
Bath & North East Somerset Council,80223358,LM3,Residential Care,P03,Wellbeing,BRIDGE CARE LTD,05/06/2013,433.5
Bath & North East Somerset Council,80223358,LM3,Residential Care,P03,Wellbeing,BRIDGE CARE LTD,05/06/2013,433.5
Bath & North East Somerset Council,80223358,LM3,Residential Care,P03,Wellbeing,BRIDGE CARE LTD,05/06/2013,433.5
Bath & North East Somerset Council,80223358,LM3,Residential Care,P03,Wellbeing,BRIDGE CARE LTD,05/06/2013,433.5
Bath & North East Somerset Council,80223358,LM3,Residential Care,P03,Wellbeing,BRIDGE CARE LTD,05/06/2013,433.5
Bath & North East Somerset Council,80223358,LM3,Residential Care,P03,Wellbeing,BRIDGE CARE LTD,05/06/2013,433.5
Bath & North East Somerset Council,80223358,LM3,Residential Care,P03,Wellbeing,BRIDGE CARE LTD,05/06/2013,433.5
Bath & North East Somerset Council,80223358,LM3,Residential Care,P03,Wellbeing,BRIDGE CARE LTD,05/06/2013,433.5
Bath & North East Somerset Council,80223358,LM3,Residential Care,P03,Wellbeing,BRIDGE CARE LTD,05/06/2013,433.5
Bath & North East Somerset Council,80223358,LM6,Nursing Care,P03,Wellbeing,BRIDGE CARE LTD,05/06/2013,552
Bath & North East Somerset Council,80223358,LM6,Nursing Care,P03,Wellbeing,BRIDGE CARE LTD,05/06/2013,552
Bath & North East Somerset Council,80223358,LM6,Nursing Care,P03,Wellbeing,BRIDGE CARE LTD,05/06/2013,552
Bath & North East Somerset Council,80223358,LM6,Nursing Care,P03,Wellbeing,BRIDGE CARE LTD,05/06/2013,552
Bath & North East Somerset Council,80223358,LM6,Nursing Care,P03,Wellbeing,BRIDGE CARE LTD,05/06/2013,552
Bath & North East Somerset Council,80223358,LM6,Nursing Care,P03,Wellbeing,BRIDGE CARE LTD,05/06/2013,552
Bath & North East Somerset Council,80223358,LM6,Nursing Care,P03,Wellbeing,BRIDGE CARE LTD,05/06/2013,552
Bath & North East Somerset Council,80223358,LM6,Nursing Care,P03,Wellbeing,BRIDGE CARE LTD,05/06/2013,552
Bath & North East Somerset Council,80223358,LM6,Nursing Care,P03,Wellbeing,BRIDGE CARE LTD,05/06/2013,552
Bath & North East Somerset Council,80223358,LM6,Nursing Care,P03,Wellbeing,BRIDGE CARE LTD,05/06/2013,552
Bath & North East Somerset Council,80223358,LM6,Nursing Care,P03,Wellbeing,BRIDGE CARE LTD,05/06/2013,552
Bath & North East Somerset Council,80223358,LM6,Nursing Care,P03,Wellbeing,BRIDGE CARE LTD,05/06/2013,552
Bath & North East Somerset Council,80223358,LM6,Nursing Care,P03,Wellbeing,BRIDGE CARE LTD,05/06/2013,552
Bath & North East Somerset Council,80223358,LM6,Nursing Care,P03,Wellbeing,BRIDGE CARE LTD,05/06/2013,552
Bath & North East Somerset Council,80223358,LM6,Nursing Care,P03,Wellbeing,BRIDGE CARE LTD,05/06/2013,606
Bath & North East Somerset Council,80223358,LM6,Nursing Care,P03,Wellbeing,BRIDGE CARE LTD,05/06/2013,606
Bath & North East Somerset Council,80223369,LM6,Nursing Care,P03,Wellbeing,BRIGHTBOW LODGE,05/06/2013,573.33
Bath & North East Somerset Council,80223369,LM6,Nursing Care,P03,Wellbeing,BRIGHTBOW LODGE,05/06/2013,573.33
Bath & North East Somerset Council,80223369,LM6,Nursing Care,P03,Wellbeing,BRIGHTBOW LODGE,05/06/2013,610.2
Bath & North East Somerset Council,80223369,LM6,Nursing Care,P03,Wellbeing,BRIGHTBOW LODGE,05/06/2013,610.2
Bath & North East Somerset Council,80223369,LM3,Residential Care,P03,Wellbeing,BRIGHTBOW LODGE,05/06/2013,610.2
Bath & North East Somerset Council,80223369,LM3,Residential Care,P03,Wellbeing,BRIGHTBOW LODGE,05/06/2013,610.2
Bath & North East Somerset Council,80223369,LM6,Nursing Care,P03,Wellbeing,BRIGHTBOW LODGE,05/06/2013,625.46
Bath & North East Somerset Council,80223369,LM6,Nursing Care,P03,Wellbeing,BRIGHTBOW LODGE,05/06/2013,625.46
Bath & North East Somerset Council,80223369,LM3,Residential Care,P03,Wellbeing,BRIGHTBOW LODGE,05/06/2013,735
Bath & North East Somerset Council,80223369,LM3,Residential Care,P03,Wellbeing,BRIGHTBOW LODGE,05/06/2013,735
Bath & North East Somerset Council,80223463,LM6,Nursing Care,P03,Wellbeing,BRISTOL AGE CARE,05/06/2013,600
Bath & North East Somerset Council,80223463,LM6,Nursing Care,P03,Wellbeing,BRISTOL AGE CARE,05/06/2013,600
Bath & North East Somerset Council,80223295,LM3,Residential Care,P03,Wellbeing,BROADWAY LODGE,05/06/2013,214.29
Bath & North East Somerset Council,80223295,LM3,Residential Care,P03,Wellbeing,BROADWAY LODGE,05/06/2013,500
Bath & North East Somerset Council,80223409,LM6,Nursing Care,P03,Wellbeing,BRONDESBURY LODGE LTD,05/06/2013,560.56
Bath & North East Somerset Council,80223409,LM6,Nursing Care,P03,Wellbeing,BRONDESBURY LODGE LTD,05/06/2013,560.56
Bath & North East Somerset Council,80223356,LM3,Residential Care,P03,Wellbeing,BROUGHTON LODGE CARE HOME,05/06/2013,433.5
Bath & North East Somerset Council,80223356,LM3,Residential Care,P03,Wellbeing,BROUGHTON LODGE CARE HOME,05/06/2013,433.5
Bath & North East Somerset Council,80223290,LM6,Nursing Care,P03,Wellbeing,BUPA CARE SERVICES BACS RECEIPTS,05/06/2013,552
Bath & North East Somerset Council,80223290,LM6,Nursing Care,P03,Wellbeing,BUPA CARE SERVICES BACS RECEIPTS,05/06/2013,552
Bath & North East Somerset Council,80223343,LM6,Nursing Care,P03,Wellbeing,BUPA CARE SERVICES BACS RECEIPTS,05/06/2013,552
Bath & North East Somerset Council,80223343,LM6,Nursing Care,P03,Wellbeing,BUPA CARE SERVICES BACS RECEIPTS,05/06/2013,552
Bath & North East Somerset Council,80223290,LM6,Nursing Care,P03,Wellbeing,BUPA CARE SERVICES BACS RECEIPTS,05/06/2013,575
Bath & North East Somerset Council,80223290,LM6,Nursing Care,P03,Wellbeing,BUPA CARE SERVICES BACS RECEIPTS,05/06/2013,575
Bath & North East Somerset Council,80223125,LK4,Nursery/Childcare Vouchers,P02,"Early Years, Children & Youth",BUTTERCUP BARN NURSERY,05/06/2013,1408.85
Bath & North East Somerset Council,80223126,LK4,Nursery/Childcare Vouchers,P02,"Early Years, Children & Youth",BUTTERCUP BARN NURSERY,05/06/2013,7718.59
Bath & North East Somerset Council,80223431,LM6,Nursing Care,P03,Wellbeing,BYBROOK HOUSE,05/06/2013,750
Bath & North East Somerset Council,80223431,LM6,Nursing Care,P03,Wellbeing,BYBROOK HOUSE,05/06/2013,750
Bath & North East Somerset Council,80223225,LK4,Nursery/Childcare Vouchers,P02,"Early Years, Children & Youth",CAMERTON C OF E PRIMARY SCHOOL,05/06/2013,1000
Bath & North East Somerset Council,80223226,LK4,Nursery/Childcare Vouchers,P02,"Early Years, Children & Youth",CAMERTON C OF E PRIMARY SCHOOL,05/06/2013,2128.75
Bath & North East Somerset Council,80223362,YF2,Fees & Charges,P03,Wellbeing,CAMPHILL DEVON COMMUNITY LTD,05/06/2013,77.85
Bath & North East Somerset Council,80223362,YF2,Fees & Charges,P03,Wellbeing,CAMPHILL DEVON COMMUNITY LTD,05/06/2013,77.85
Bath & North East Somerset Council,80223362,YF2,Fees & Charges,P03,Wellbeing,CAMPHILL DEVON COMMUNITY LTD,05/06/2013,77.85
Bath & North East Somerset Council,80223362,YF2,Fees & Charges,P03,Wellbeing,CAMPHILL DEVON COMMUNITY LTD,05/06/2013,77.85
Bath & North East Somerset Council,80223362,YF2,Fees & Charges,P03,Wellbeing,CAMPHILL DEVON COMMUNITY LTD,05/06/2013,77.85
Bath & North East Somerset Council,80223362,YF2,Fees & Charges,P03,Wellbeing,CAMPHILL DEVON COMMUNITY LTD,05/06/2013,77.85
Bath & North East Somerset Council,80223362,YF2,Fees & Charges,P03,Wellbeing,CAMPHILL DEVON COMMUNITY LTD,05/06/2013,77.85
Bath & North East Somerset Council,80223362,LM3,Residential Care,P03,Wellbeing,CAMPHILL DEVON COMMUNITY LTD,05/06/2013,841.5
Bath & North East Somerset Council,80223362,LM3,Residential Care,P03,Wellbeing,CAMPHILL DEVON COMMUNITY LTD,05/06/2013,841.5
Bath & North East Somerset Council,80223259,YF2,Fees & Charges,P03,Wellbeing,CARE FIRST CARE HOMES LTD,05/06/2013,118.2
Bath & North East Somerset Council,80223259,YF2,Fees & Charges,P03,Wellbeing,CARE FIRST CARE HOMES LTD,05/06/2013,118.2
Bath & North East Somerset Council,80223259,YF2,Fees & Charges,P03,Wellbeing,CARE FIRST CARE HOMES LTD,05/06/2013,118.2
Bath & North East Somerset Council,80223259,YF2,Fees & Charges,P03,Wellbeing,CARE FIRST CARE HOMES LTD,05/06/2013,118.2
Bath & North East Somerset Council,80223259,YF2,Fees & Charges,P03,Wellbeing,CARE FIRST CARE HOMES LTD,05/06/2013,118.2
Bath & North East Somerset Council,80223259,YF2,Fees & Charges,P03,Wellbeing,CARE FIRST CARE HOMES LTD,05/06/2013,118.2
Bath & North East Somerset Council,80223259,YF2,Fees & Charges,P03,Wellbeing,CARE FIRST CARE HOMES LTD,05/06/2013,118.2
Bath & North East Somerset Council,80223357,LM6,Nursing Care,P03,Wellbeing,CARE FIRST CARE HOMES LTD,05/06/2013,552
Bath & North East Somerset Council,80223357,LM6,Nursing Care,P03,Wellbeing,CARE FIRST CARE HOMES LTD,05/06/2013,552
Bath & North East Somerset Council,80223357,LM6,Nursing Care,P03,Wellbeing,CARE FIRST CARE HOMES LTD,05/06/2013,552
Bath & North East Somerset Council,80223357,LM6,Nursing Care,P03,Wellbeing,CARE FIRST CARE HOMES LTD,05/06/2013,552
Bath & North East Somerset Council,80223357,LM6,Nursing Care,P03,Wellbeing,CARE FIRST CARE HOMES LTD,05/06/2013,552
Bath & North East Somerset Council,80223357,LM6,Nursing Care,P03,Wellbeing,CARE FIRST CARE HOMES LTD,05/06/2013,552
Bath & North East Somerset Council,80223357,LM6,Nursing Care,P03,Wellbeing,CARE FIRST CARE HOMES LTD,05/06/2013,552
Bath & North East Somerset Council,80223357,LM6,Nursing Care,P03,Wellbeing,CARE FIRST CARE HOMES LTD,05/06/2013,552
Bath & North East Somerset Council,80223259,LM6,Nursing Care,P03,Wellbeing,CARE FIRST CARE HOMES LTD,05/06/2013,590.55
Bath & North East Somerset Council,80223259,LM6,Nursing Care,P03,Wellbeing,CARE FIRST CARE HOMES LTD,05/06/2013,590.55
Bath & North East Somerset Council,80223357,LM6,Nursing Care,P03,Wellbeing,CARE FIRST CARE HOMES LTD,05/06/2013,927.18
Bath & North East Somerset Council,80223357,LM6,Nursing Care,P03,Wellbeing,CARE FIRST CARE HOMES LTD,05/06/2013,927.18
Bath & North East Somerset Council,80223401,LM6,Nursing Care,P03,Wellbeing,CARE HOMES UK LTD,05/06/2013,552
Bath & North East Somerset Council,80223401,LM6,Nursing Care,P03,Wellbeing,CARE HOMES UK LTD,05/06/2013,552
Bath & North East Somerset Council,80223413,YF2,Fees & Charges,P03,Wellbeing,CARE UK COMMUNITY PARTNERSHIP LIMITED,05/06/2013,96.35
Bath & North East Somerset Council,80223413,YF2,Fees & Charges,P03,Wellbeing,CARE UK COMMUNITY PARTNERSHIP LIMITED,05/06/2013,96.35
Bath & North East Somerset Council,80223413,YF2,Fees & Charges,P03,Wellbeing,CARE UK COMMUNITY PARTNERSHIP LIMITED,05/06/2013,96.35
Bath & North East Somerset Council,80223413,YF2,Fees & Charges,P03,Wellbeing,CARE UK COMMUNITY PARTNERSHIP LIMITED,05/06/2013,96.35
Bath & North East Somerset Council,80223413,YF2,Fees & Charges,P03,Wellbeing,CARE UK COMMUNITY PARTNERSHIP LIMITED,05/06/2013,96.35
Bath & North East Somerset Council,80223413,YF2,Fees & Charges,P03,Wellbeing,CARE UK COMMUNITY PARTNERSHIP LIMITED,05/06/2013,96.35
Bath & North East Somerset Council,80223413,YF2,Fees & Charges,P03,Wellbeing,CARE UK COMMUNITY PARTNERSHIP LIMITED,05/06/2013,96.35
Bath & North East Somerset Council,80223413,LM3,Residential Care,P03,Wellbeing,CARE UK COMMUNITY PARTNERSHIP LIMITED,05/06/2013,732.95
Bath & North East Somerset Council,80223413,LM3,Residential Care,P03,Wellbeing,CARE UK COMMUNITY PARTNERSHIP LIMITED,05/06/2013,732.95
Bath & North East Somerset Council,80223366,YF2,Fees & Charges,P03,Wellbeing,CEDAR CARE HOMES LTD,05/06/2013,83.34
Bath & North East Somerset Council,80223366,YF2,Fees & Charges,P03,Wellbeing,CEDAR CARE HOMES LTD,05/06/2013,83.34
Bath & North East Somerset Council,80223366,YF2,Fees & Charges,P03,Wellbeing,CEDAR CARE HOMES LTD,05/06/2013,83.34
Bath & North East Somerset Council,80223366,YF2,Fees & Charges,P03,Wellbeing,CEDAR CARE HOMES LTD,05/06/2013,83.34
Bath & North East Somerset Council,80223366,YF2,Fees & Charges,P03,Wellbeing,CEDAR CARE HOMES LTD,05/06/2013,83.34
Bath & North East Somerset Council,80223366,YF2,Fees & Charges,P03,Wellbeing,CEDAR CARE HOMES LTD,05/06/2013,83.34
Bath & North East Somerset Council,80223366,YF2,Fees & Charges,P03,Wellbeing,CEDAR CARE HOMES LTD,05/06/2013,83.34
Bath & North East Somerset Council,80223366,YF2,Fees & Charges,P03,Wellbeing,CEDAR CARE HOMES LTD,05/06/2013,105.23
Bath & North East Somerset Council,80223366,YF2,Fees & Charges,P03,Wellbeing,CEDAR CARE HOMES LTD,05/06/2013,105.23
Bath & North East Somerset Council,80223366,YF2,Fees & Charges,P03,Wellbeing,CEDAR CARE HOMES LTD,05/06/2013,105.23
Bath & North East Somerset Council,80223366,YF2,Fees & Charges,P03,Wellbeing,CEDAR CARE HOMES LTD,05/06/2013,105.23
Bath & North East Somerset Council,80223366,YF2,Fees & Charges,P03,Wellbeing,CEDAR CARE HOMES LTD,05/06/2013,105.23
Bath & North East Somerset Council,80223366,YF2,Fees & Charges,P03,Wellbeing,CEDAR CARE HOMES LTD,05/06/2013,105.23
Bath & North East Somerset Council,80223366,YF2,Fees & Charges,P03,Wellbeing,CEDAR CARE HOMES LTD,05/06/2013,105.23
Bath & North East Somerset Council,80223293,YF2,Fees & Charges,P03,Wellbeing,CEDAR CARE HOMES LTD,05/06/2013,113.13
Bath & North East Somerset Council,80223293,YF2,Fees & Charges,P03,Wellbeing,CEDAR CARE HOMES LTD,05/06/2013,113.13
Bath & North East Somerset Council,80223293,YF2,Fees & Charges,P03,Wellbeing,CEDAR CARE HOMES LTD,05/06/2013,113.13
Bath & North East Somerset Council,80223293,YF2,Fees & Charges,P03,Wellbeing,CEDAR CARE HOMES LTD,05/06/2013,113.13
Bath & North East Somerset Council,80223293,YF2,Fees & Charges,P03,Wellbeing,CEDAR CARE HOMES LTD,05/06/2013,113.13
Bath & North East Somerset Council,80223293,YF2,Fees & Charges,P03,Wellbeing,CEDAR CARE HOMES LTD,05/06/2013,113.13
Bath & North East Somerset Council,80223293,YF2,Fees & Charges,P03,Wellbeing,CEDAR CARE HOMES LTD,05/06/2013,113.13
Bath & North East Somerset Council,80223366,YF2,Fees & Charges,P03,Wellbeing,CEDAR CARE HOMES LTD,05/06/2013,119.2
Bath & North East Somerset Council,80223366,YF2,Fees & Charges,P03,Wellbeing,CEDAR CARE HOMES LTD,05/06/2013,119.2
Bath & North East Somerset Council,80223366,YF2,Fees & Charges,P03,Wellbeing,CEDAR CARE HOMES LTD,05/06/2013,119.2
Bath & North East Somerset Council,80223366,YF2,Fees & Charges,P03,Wellbeing,CEDAR CARE HOMES LTD,05/06/2013,119.2
Bath & North East Somerset Council,80223366,YF2,Fees & Charges,P03,Wellbeing,CEDAR CARE HOMES LTD,05/06/2013,119.2
Bath & North East Somerset Council,80223366,YF2,Fees & Charges,P03,Wellbeing,CEDAR CARE HOMES LTD,05/06/2013,119.2
Bath & North East Somerset Council,80223366,YF2,Fees & Charges,P03,Wellbeing,CEDAR CARE HOMES LTD,05/06/2013,119.2
Bath & North East Somerset Council,80223293,YF2,Fees & Charges,P03,Wellbeing,CEDAR CARE HOMES LTD,05/06/2013,133.02
Bath & North East Somerset Council,80223293,YF2,Fees & Charges,P03,Wellbeing,CEDAR CARE HOMES LTD,05/06/2013,133.02
Bath & North East Somerset Council,80223293,YF2,Fees & Charges,P03,Wellbeing,CEDAR CARE HOMES LTD,05/06/2013,133.02
Bath & North East Somerset Council,80223293,YF2,Fees & Charges,P03,Wellbeing,CEDAR CARE HOMES LTD,05/06/2013,133.02
Bath & North East Somerset Council,10702257,LJ4,Contracts,P01,Transport,RIVERSIDE TAXIS,05/06/2013,137.4
Bath & North East Somerset Council,80223293,YF2,Fees & Charges,P03,Wellbeing,CEDAR CARE HOMES LTD,05/06/2013,133.02
Bath & North East Somerset Council,80223293,YF2,Fees & Charges,P03,Wellbeing,CEDAR CARE HOMES LTD,05/06/2013,133.02
Bath & North East Somerset Council,80223293,YF2,Fees & Charges,P03,Wellbeing,CEDAR CARE HOMES LTD,05/06/2013,133.02
Bath & North East Somerset Council,80223366,YF2,Fees & Charges,P03,Wellbeing,CEDAR CARE HOMES LTD,05/06/2013,135.33
Bath & North East Somerset Council,80223366,YF2,Fees & Charges,P03,Wellbeing,CEDAR CARE HOMES LTD,05/06/2013,135.33
Bath & North East Somerset Council,80223366,YF2,Fees & Charges,P03,Wellbeing,CEDAR CARE HOMES LTD,05/06/2013,135.33
Bath & North East Somerset Council,80223366,YF2,Fees & Charges,P03,Wellbeing,CEDAR CARE HOMES LTD,05/06/2013,135.33
Bath & North East Somerset Council,80223366,YF2,Fees & Charges,P03,Wellbeing,CEDAR CARE HOMES LTD,05/06/2013,135.33
Bath & North East Somerset Council,80223366,YF2,Fees & Charges,P03,Wellbeing,CEDAR CARE HOMES LTD,05/06/2013,135.33
Bath & North East Somerset Council,80223366,YF2,Fees & Charges,P03,Wellbeing,CEDAR CARE HOMES LTD,05/06/2013,135.33
Bath & North East Somerset Council,80223366,YF2,Fees & Charges,P03,Wellbeing,CEDAR CARE HOMES LTD,05/06/2013,135.33
Bath & North East Somerset Council,80223366,YF2,Fees & Charges,P03,Wellbeing,CEDAR CARE HOMES LTD,05/06/2013,135.33
Bath & North East Somerset Council,80223293,YF2,Fees & Charges,P03,Wellbeing,CEDAR CARE HOMES LTD,05/06/2013,136.34
Bath & North East Somerset Council,80223293,YF2,Fees & Charges,P03,Wellbeing,CEDAR CARE HOMES LTD,05/06/2013,136.34
Bath & North East Somerset Council,80223293,YF2,Fees & Charges,P03,Wellbeing,CEDAR CARE HOMES LTD,05/06/2013,136.34
Bath & North East Somerset Council,80223293,YF2,Fees & Charges,P03,Wellbeing,CEDAR CARE HOMES LTD,05/06/2013,136.34
Bath & North East Somerset Council,80223293,YF2,Fees & Charges,P03,Wellbeing,CEDAR CARE HOMES LTD,05/06/2013,136.34
Bath & North East Somerset Council,80223293,YF2,Fees & Charges,P03,Wellbeing,CEDAR CARE HOMES LTD,05/06/2013,136.34
Bath & North East Somerset Council,80223293,YF2,Fees & Charges,P03,Wellbeing,CEDAR CARE HOMES LTD,05/06/2013,136.34
Bath & North East Somerset Council,80223293,LM3,Residential Care,P03,Wellbeing,CEDAR CARE HOMES LTD,05/06/2013,203.57
Bath & North East Somerset Council,80223293,LM3,Residential Care,P03,Wellbeing,CEDAR CARE HOMES LTD,05/06/2013,461
Bath & North East Somerset Council,80223293,LM3,Residential Care,P03,Wellbeing,CEDAR CARE HOMES LTD,05/06/2013,461
Bath & North East Somerset Council,80223293,LM3,Residential Care,P03,Wellbeing,CEDAR CARE HOMES LTD,05/06/2013,475
Bath & North East Somerset Council,80223293,LM3,Residential Care,P03,Wellbeing,CEDAR CARE HOMES LTD,05/06/2013,475
Bath & North East Somerset Council,80223293,LM3,Residential Care,P03,Wellbeing,CEDAR CARE HOMES LTD,05/06/2013,475
Bath & North East Somerset Council,80223293,LM3,Residential Care,P03,Wellbeing,CEDAR CARE HOMES LTD,05/06/2013,475
Bath & North East Somerset Council,80223293,LM3,Residential Care,P03,Wellbeing,CEDAR CARE HOMES LTD,05/06/2013,475
Bath & North East Somerset Council,80223293,LM3,Residential Care,P03,Wellbeing,CEDAR CARE HOMES LTD,05/06/2013,475
Bath & North East Somerset Council,80223293,LM3,Residential Care,P03,Wellbeing,CEDAR CARE HOMES LTD,05/06/2013,475
Bath & North East Somerset Council,80223293,LM3,Residential Care,P03,Wellbeing,CEDAR CARE HOMES LTD,05/06/2013,475
Bath & North East Somerset Council,80223293,LM3,Residential Care,P03,Wellbeing,CEDAR CARE HOMES LTD,05/06/2013,475
Bath & North East Somerset Council,80223293,LM3,Residential Care,P03,Wellbeing,CEDAR CARE HOMES LTD,05/06/2013,475
Bath & North East Somerset Council,80223293,LM3,Residential Care,P03,Wellbeing,CEDAR CARE HOMES LTD,05/06/2013,475
Bath & North East Somerset Council,80223293,LM3,Residential Care,P03,Wellbeing,CEDAR CARE HOMES LTD,05/06/2013,475
Bath & North East Somerset Council,80223293,LM3,Residential Care,P03,Wellbeing,CEDAR CARE HOMES LTD,05/06/2013,475
Bath & North East Somerset Council,80223293,LM3,Residential Care,P03,Wellbeing,CEDAR CARE HOMES LTD,05/06/2013,475
Bath & North East Somerset Council,80223293,LM3,Residential Care,P03,Wellbeing,CEDAR CARE HOMES LTD,05/06/2013,500
Bath & North East Somerset Council,80223293,LM3,Residential Care,P03,Wellbeing,CEDAR CARE HOMES LTD,05/06/2013,500
Bath & North East Somerset Council,80223293,LM3,Residential Care,P03,Wellbeing,CEDAR CARE HOMES LTD,05/06/2013,510
Bath & North East Somerset Council,80223293,LM3,Residential Care,P03,Wellbeing,CEDAR CARE HOMES LTD,05/06/2013,510
Bath & North East Somerset Council,80223316,LM6,Nursing Care,P03,Wellbeing,CEDAR CARE HOMES LTD,05/06/2013,552
Bath & North East Somerset Council,80223316,LM6,Nursing Care,P03,Wellbeing,CEDAR CARE HOMES LTD,05/06/2013,552
Bath & North East Somerset Council,80223366,LM6,Nursing Care,P03,Wellbeing,CEDAR CARE HOMES LTD,05/06/2013,552
Bath & North East Somerset Council,80223366,LM6,Nursing Care,P03,Wellbeing,CEDAR CARE HOMES LTD,05/06/2013,552
Bath & North East Somerset Council,80223366,LM6,Nursing Care,P03,Wellbeing,CEDAR CARE HOMES LTD,05/06/2013,552
Bath & North East Somerset Council,80223366,LM6,Nursing Care,P03,Wellbeing,CEDAR CARE HOMES LTD,05/06/2013,552
Bath & North East Somerset Council,80223366,LM6,Nursing Care,P03,Wellbeing,CEDAR CARE HOMES LTD,05/06/2013,552
Bath & North East Somerset Council,80223366,LM6,Nursing Care,P03,Wellbeing,CEDAR CARE HOMES LTD,05/06/2013,552
Bath & North East Somerset Council,80223366,LM6,Nursing Care,P03,Wellbeing,CEDAR CARE HOMES LTD,05/06/2013,552
Bath & North East Somerset Council,80223366,LM6,Nursing Care,P03,Wellbeing,CEDAR CARE HOMES LTD,05/06/2013,552
Bath & North East Somerset Council,80223366,LM6,Nursing Care,P03,Wellbeing,CEDAR CARE HOMES LTD,05/06/2013,552
Bath & North East Somerset Council,80223366,LM6,Nursing Care,P03,Wellbeing,CEDAR CARE HOMES LTD,05/06/2013,552
Bath & North East Somerset Council,80223366,LM6,Nursing Care,P03,Wellbeing,CEDAR CARE HOMES LTD,05/06/2013,552
Bath & North East Somerset Council,80223366,LM6,Nursing Care,P03,Wellbeing,CEDAR CARE HOMES LTD,05/06/2013,552
Bath & North East Somerset Council,80223366,LM6,Nursing Care,P03,Wellbeing,CEDAR CARE HOMES LTD,05/06/2013,552
Bath & North East Somerset Council,80223366,LM6,Nursing Care,P03,Wellbeing,CEDAR CARE HOMES LTD,05/06/2013,552
Bath & North East Somerset Council,80223316,LM3,Residential Care,P03,Wellbeing,CEDAR CARE HOMES LTD,05/06/2013,569
Bath & North East Somerset Council,80223316,LM3,Residential Care,P03,Wellbeing,CEDAR CARE HOMES LTD,05/06/2013,569
Bath & North East Somerset Council,80223316,LM6,Nursing Care,P03,Wellbeing,CEDAR CARE HOMES LTD,05/06/2013,575
Bath & North East Somerset Council,80223316,LM6,Nursing Care,P03,Wellbeing,CEDAR CARE HOMES LTD,05/06/2013,575
Bath & North East Somerset Council,80223316,LM6,Nursing Care,P03,Wellbeing,CEDAR CARE HOMES LTD,05/06/2013,575
Bath & North East Somerset Council,80223316,LM6,Nursing Care,P03,Wellbeing,CEDAR CARE HOMES LTD,05/06/2013,575
Bath & North East Somerset Council,80223316,LM6,Nursing Care,P03,Wellbeing,CEDAR CARE HOMES LTD,05/06/2013,575
Bath & North East Somerset Council,80223316,LM6,Nursing Care,P03,Wellbeing,CEDAR CARE HOMES LTD,05/06/2013,575
Bath & North East Somerset Council,80223366,LM6,Nursing Care,P03,Wellbeing,CEDAR CARE HOMES LTD,05/06/2013,575
Bath & North East Somerset Council,80223366,LM6,Nursing Care,P03,Wellbeing,CEDAR CARE HOMES LTD,05/06/2013,575
Bath & North East Somerset Council,80223366,LM6,Nursing Care,P03,Wellbeing,CEDAR CARE HOMES LTD,05/06/2013,575
Bath & North East Somerset Council,80223366,LM6,Nursing Care,P03,Wellbeing,CEDAR CARE HOMES LTD,05/06/2013,575
Bath & North East Somerset Council,80223366,LM6,Nursing Care,P03,Wellbeing,CEDAR CARE HOMES LTD,05/06/2013,596.91
Bath & North East Somerset Council,80223366,LM6,Nursing Care,P03,Wellbeing,CEDAR CARE HOMES LTD,05/06/2013,596.91
Bath & North East Somerset Council,80223316,LM6,Nursing Care,P03,Wellbeing,CEDAR CARE HOMES LTD,05/06/2013,600
Bath & North East Somerset Council,80223316,LM6,Nursing Care,P03,Wellbeing,CEDAR CARE HOMES LTD,05/06/2013,600
Bath & North East Somerset Council,80223366,LM6,Nursing Care,P03,Wellbeing,CEDAR CARE HOMES LTD,05/06/2013,600
Bath & North East Somerset Council,80223366,LM6,Nursing Care,P03,Wellbeing,CEDAR CARE HOMES LTD,05/06/2013,600
Bath & North East Somerset Council,80223316,LM6,Nursing Care,P03,Wellbeing,CEDAR CARE HOMES LTD,05/06/2013,650
Bath & North East Somerset Council,80223316,LM6,Nursing Care,P03,Wellbeing,CEDAR CARE HOMES LTD,05/06/2013,650
Bath & North East Somerset Council,80223316,LM6,Nursing Care,P03,Wellbeing,CEDAR CARE HOMES LTD,05/06/2013,650
Bath & North East Somerset Council,80223316,LM6,Nursing Care,P03,Wellbeing,CEDAR CARE HOMES LTD,05/06/2013,650
Bath & North East Somerset Council,80223316,LM6,Nursing Care,P03,Wellbeing,CEDAR CARE HOMES LTD,05/06/2013,650
Bath & North East Somerset Council,80223316,LM6,Nursing Care,P03,Wellbeing,CEDAR CARE HOMES LTD,05/06/2013,650
Bath & North East Somerset Council,80223316,LM6,Nursing Care,P03,Wellbeing,CEDAR CARE HOMES LTD,05/06/2013,650
Bath & North East Somerset Council,80223316,LM6,Nursing Care,P03,Wellbeing,CEDAR CARE HOMES LTD,05/06/2013,650
Bath & North East Somerset Council,80223366,LM6,Nursing Care,P03,Wellbeing,CEDAR CARE HOMES LTD,05/06/2013,650
Bath & North East Somerset Council,80223366,LM6,Nursing Care,P03,Wellbeing,CEDAR CARE HOMES LTD,05/06/2013,650
Bath & North East Somerset Council,80223316,LM6,Nursing Care,P03,Wellbeing,CEDAR CARE HOMES LTD,05/06/2013,700
Bath & North East Somerset Council,80223316,LM6,Nursing Care,P03,Wellbeing,CEDAR CARE HOMES LTD,05/06/2013,700
Bath & North East Somerset Council,80223366,LM6,Nursing Care,P03,Wellbeing,CEDAR CARE HOMES LTD,05/06/2013,732.25
Bath & North East Somerset Council,80223366,LM6,Nursing Care,P03,Wellbeing,CEDAR CARE HOMES LTD,05/06/2013,732.25
Bath & North East Somerset Council,80223316,LM6,Nursing Care,P03,Wellbeing,CEDAR CARE HOMES LTD,05/06/2013,750
Bath & North East Somerset Council,80223316,LM6,Nursing Care,P03,Wellbeing,CEDAR CARE HOMES LTD,05/06/2013,750
Bath & North East Somerset Council,80223316,LM6,Nursing Care,P03,Wellbeing,CEDAR CARE HOMES LTD,05/06/2013,750
Bath & North East Somerset Council,80223316,LM6,Nursing Care,P03,Wellbeing,CEDAR CARE HOMES LTD,05/06/2013,750
Bath & North East Somerset Council,80223316,LM6,Nursing Care,P03,Wellbeing,CEDAR CARE HOMES LTD,05/06/2013,750
Bath & North East Somerset Council,80223316,LM6,Nursing Care,P03,Wellbeing,CEDAR CARE HOMES LTD,05/06/2013,750
Bath & North East Somerset Council,80223425,YF2,Fees & Charges,P03,Wellbeing,CEDAR PARK NURSING HOME,05/06/2013,130.2
Bath & North East Somerset Council,80223425,YF2,Fees & Charges,P03,Wellbeing,CEDAR PARK NURSING HOME,05/06/2013,130.2
Bath & North East Somerset Council,80223425,YF2,Fees & Charges,P03,Wellbeing,CEDAR PARK NURSING HOME,05/06/2013,130.2
Bath & North East Somerset Council,80223425,YF2,Fees & Charges,P03,Wellbeing,CEDAR PARK NURSING HOME,05/06/2013,130.2
Bath & North East Somerset Council,80223425,YF2,Fees & Charges,P03,Wellbeing,CEDAR PARK NURSING HOME,05/06/2013,130.2
Bath & North East Somerset Council,80223425,YF2,Fees & Charges,P03,Wellbeing,CEDAR PARK NURSING HOME,05/06/2013,130.2
Bath & North East Somerset Council,80223425,YF2,Fees & Charges,P03,Wellbeing,CEDAR PARK NURSING HOME,05/06/2013,130.2
Bath & North East Somerset Council,80223425,LM6,Nursing Care,P03,Wellbeing,CEDAR PARK NURSING HOME,05/06/2013,552
Bath & North East Somerset Council,80223425,LM6,Nursing Care,P03,Wellbeing,CEDAR PARK NURSING HOME,05/06/2013,552
Bath & North East Somerset Council,80223425,LM6,Nursing Care,P03,Wellbeing,CEDAR PARK NURSING HOME,05/06/2013,552
Bath & North East Somerset Council,80223425,LM6,Nursing Care,P03,Wellbeing,CEDAR PARK NURSING HOME,05/06/2013,552
Bath & North East Somerset Council,80223425,LM6,Nursing Care,P03,Wellbeing,CEDAR PARK NURSING HOME,05/06/2013,552
Bath & North East Somerset Council,80223425,LM6,Nursing Care,P03,Wellbeing,CEDAR PARK NURSING HOME,05/06/2013,552
Bath & North East Somerset Council,80223425,LM6,Nursing Care,P03,Wellbeing,CEDAR PARK NURSING HOME,05/06/2013,552
Bath & North East Somerset Council,80223425,LM6,Nursing Care,P03,Wellbeing,CEDAR PARK NURSING HOME,05/06/2013,552
Bath & North East Somerset Council,80223425,LM6,Nursing Care,P03,Wellbeing,CEDAR PARK NURSING HOME,05/06/2013,552
Bath & North East Somerset Council,80223425,LM6,Nursing Care,P03,Wellbeing,CEDAR PARK NURSING HOME,05/06/2013,552
Bath & North East Somerset Council,80223425,LM6,Nursing Care,P03,Wellbeing,CEDAR PARK NURSING HOME,05/06/2013,552
Bath & North East Somerset Council,80223425,LM6,Nursing Care,P03,Wellbeing,CEDAR PARK NURSING HOME,05/06/2013,552
Bath & North East Somerset Council,80223425,LM6,Nursing Care,P03,Wellbeing,CEDAR PARK NURSING HOME,05/06/2013,552
Bath & North East Somerset Council,80223425,LM6,Nursing Care,P03,Wellbeing,CEDAR PARK NURSING HOME,05/06/2013,552
Bath & North East Somerset Council,80223425,LM6,Nursing Care,P03,Wellbeing,CEDAR PARK NURSING HOME,05/06/2013,552
Bath & North East Somerset Council,80223425,LM6,Nursing Care,P03,Wellbeing,CEDAR PARK NURSING HOME,05/06/2013,552
Bath & North East Somerset Council,80223425,LM6,Nursing Care,P03,Wellbeing,CEDAR PARK NURSING HOME,05/06/2013,552
Bath & North East Somerset Council,80223425,LM6,Nursing Care,P03,Wellbeing,CEDAR PARK NURSING HOME,05/06/2013,552
Bath & North East Somerset Council,80223425,LM6,Nursing Care,P03,Wellbeing,CEDAR PARK NURSING HOME,05/06/2013,552
Bath & North East Somerset Council,80223425,LM6,Nursing Care,P03,Wellbeing,CEDAR PARK NURSING HOME,05/06/2013,552
Bath & North East Somerset Council,80223425,LM6,Nursing Care,P03,Wellbeing,CEDAR PARK NURSING HOME,05/06/2013,552
Bath & North East Somerset Council,80223425,LM6,Nursing Care,P03,Wellbeing,CEDAR PARK NURSING HOME,05/06/2013,552
Bath & North East Somerset Council,80223425,LM6,Nursing Care,P03,Wellbeing,CEDAR PARK NURSING HOME,05/06/2013,552
Bath & North East Somerset Council,80223425,LM6,Nursing Care,P03,Wellbeing,CEDAR PARK NURSING HOME,05/06/2013,552
Bath & North East Somerset Council,80223425,LM6,Nursing Care,P03,Wellbeing,CEDAR PARK NURSING HOME,05/06/2013,552
Bath & North East Somerset Council,80223425,LM6,Nursing Care,P03,Wellbeing,CEDAR PARK NURSING HOME,05/06/2013,552
Bath & North East Somerset Council,80223425,LM6,Nursing Care,P03,Wellbeing,CEDAR PARK NURSING HOME,05/06/2013,552
Bath & North East Somerset Council,80223425,LM6,Nursing Care,P03,Wellbeing,CEDAR PARK NURSING HOME,05/06/2013,552
Bath & North East Somerset Council,80223425,LM6,Nursing Care,P03,Wellbeing,CEDAR PARK NURSING HOME,05/06/2013,552
Bath & North East Somerset Council,80223425,LM6,Nursing Care,P03,Wellbeing,CEDAR PARK NURSING HOME,05/06/2013,552
Bath & North East Somerset Council,80223425,LM6,Nursing Care,P03,Wellbeing,CEDAR PARK NURSING HOME,05/06/2013,552
Bath & North East Somerset Council,80223425,LM6,Nursing Care,P03,Wellbeing,CEDAR PARK NURSING HOME,05/06/2013,552
Bath & North East Somerset Council,80223425,LM6,Nursing Care,P03,Wellbeing,CEDAR PARK NURSING HOME,05/06/2013,552
Bath & North East Somerset Council,80223425,LM6,Nursing Care,P03,Wellbeing,CEDAR PARK NURSING HOME,05/06/2013,552
Bath & North East Somerset Council,80223425,LM6,Nursing Care,P03,Wellbeing,CEDAR PARK NURSING HOME,05/06/2013,552
Bath & North East Somerset Council,80223425,LM6,Nursing Care,P03,Wellbeing,CEDAR PARK NURSING HOME,05/06/2013,552
Bath & North East Somerset Council,80223425,LM6,Nursing Care,P03,Wellbeing,CEDAR PARK NURSING HOME,05/06/2013,552
Bath & North East Somerset Council,80223425,LM6,Nursing Care,P03,Wellbeing,CEDAR PARK NURSING HOME,05/06/2013,552
Bath & North East Somerset Council,80223425,LM6,Nursing Care,P03,Wellbeing,CEDAR PARK NURSING HOME,05/06/2013,552
Bath & North East Somerset Council,80223425,LM6,Nursing Care,P03,Wellbeing,CEDAR PARK NURSING HOME,05/06/2013,552
Bath & North East Somerset Council,80223425,LM6,Nursing Care,P03,Wellbeing,CEDAR PARK NURSING HOME,05/06/2013,552
Bath & North East Somerset Council,80223425,LM6,Nursing Care,P03,Wellbeing,CEDAR PARK NURSING HOME,05/06/2013,552
Bath & North East Somerset Council,80223425,LM6,Nursing Care,P03,Wellbeing,CEDAR PARK NURSING HOME,05/06/2013,552
Bath & North East Somerset Council,80223425,LM6,Nursing Care,P03,Wellbeing,CEDAR PARK NURSING HOME,05/06/2013,552
Bath & North East Somerset Council,80223425,LM6,Nursing Care,P03,Wellbeing,CEDAR PARK NURSING HOME,05/06/2013,552
Bath & North East Somerset Council,80223425,LM6,Nursing Care,P03,Wellbeing,CEDAR PARK NURSING HOME,05/06/2013,552
Bath & North East Somerset Council,80223425,LM6,Nursing Care,P03,Wellbeing,CEDAR PARK NURSING HOME,05/06/2013,552
Bath & North East Somerset Council,80223425,LM6,Nursing Care,P03,Wellbeing,CEDAR PARK NURSING HOME,05/06/2013,552
Bath & North East Somerset Council,80223425,LM6,Nursing Care,P03,Wellbeing,CEDAR PARK NURSING HOME,05/06/2013,552
Bath & North East Somerset Council,80223425,LM6,Nursing Care,P03,Wellbeing,CEDAR PARK NURSING HOME,05/06/2013,552
Bath & North East Somerset Council,80223425,LM6,Nursing Care,P03,Wellbeing,CEDAR PARK NURSING HOME,05/06/2013,552.47
Bath & North East Somerset Council,80223425,LM6,Nursing Care,P03,Wellbeing,CEDAR PARK NURSING HOME,05/06/2013,552.47
Bath & North East Somerset Council,80223425,LM6,Nursing Care,P03,Wellbeing,CEDAR PARK NURSING HOME,05/06/2013,575
Bath & North East Somerset Council,80223425,LM6,Nursing Care,P03,Wellbeing,CEDAR PARK NURSING HOME,05/06/2013,575
Bath & North East Somerset Council,80223425,LM6,Nursing Care,P03,Wellbeing,CEDAR PARK NURSING HOME,05/06/2013,575
Bath & North East Somerset Council,80223425,LM6,Nursing Care,P03,Wellbeing,CEDAR PARK NURSING HOME,05/06/2013,575
Bath & North East Somerset Council,80223425,LM6,Nursing Care,P03,Wellbeing,CEDAR PARK NURSING HOME,05/06/2013,575
Bath & North East Somerset Council,80223425,LM6,Nursing Care,P03,Wellbeing,CEDAR PARK NURSING HOME,05/06/2013,575
Bath & North East Somerset Council,80223425,LM6,Nursing Care,P03,Wellbeing,CEDAR PARK NURSING HOME,05/06/2013,575
Bath & North East Somerset Council,80223425,LM6,Nursing Care,P03,Wellbeing,CEDAR PARK NURSING HOME,05/06/2013,575
Bath & North East Somerset Council,80223425,LM6,Nursing Care,P03,Wellbeing,CEDAR PARK NURSING HOME,05/06/2013,595.9
Bath & North East Somerset Council,80223425,LM6,Nursing Care,P03,Wellbeing,CEDAR PARK NURSING HOME,05/06/2013,595.9
Bath & North East Somerset Council,80223425,LM6,Nursing Care,P03,Wellbeing,CEDAR PARK NURSING HOME,05/06/2013,650
Bath & North East Somerset Council,80223425,LM6,Nursing Care,P03,Wellbeing,CEDAR PARK NURSING HOME,05/06/2013,650
Bath & North East Somerset Council,80223425,LM6,Nursing Care,P03,Wellbeing,CEDAR PARK NURSING HOME,05/06/2013,700
Bath & North East Somerset Council,80223425,LM6,Nursing Care,P03,Wellbeing,CEDAR PARK NURSING HOME,05/06/2013,700
Bath & North East Somerset Council,80223374,LM6,Nursing Care,P03,Wellbeing,CEDARS CARE (WINSCOMBE HALL) LTD,05/06/2013,597
Bath & North East Somerset Council,80223374,LM6,Nursing Care,P03,Wellbeing,CEDARS CARE (WINSCOMBE HALL) LTD,05/06/2013,597
Bath & North East Somerset Council,80223410,YF2,Fees & Charges,P03,Wellbeing,CHERRY GARDEN PROPERTIES LTD,05/06/2013,135.45
Bath & North East Somerset Council,80223410,YF2,Fees & Charges,P03,Wellbeing,CHERRY GARDEN PROPERTIES LTD,05/06/2013,135.45
Bath & North East Somerset Council,80223410,YF2,Fees & Charges,P03,Wellbeing,CHERRY GARDEN PROPERTIES LTD,05/06/2013,135.45
Bath & North East Somerset Council,80223410,YF2,Fees & Charges,P03,Wellbeing,CHERRY GARDEN PROPERTIES LTD,05/06/2013,135.45
Bath & North East Somerset Council,80223410,YF2,Fees & Charges,P03,Wellbeing,CHERRY GARDEN PROPERTIES LTD,05/06/2013,135.45
Bath & North East Somerset Council,80223410,YF2,Fees & Charges,P03,Wellbeing,CHERRY GARDEN PROPERTIES LTD,05/06/2013,135.45
Bath & North East Somerset Council,80223410,YF2,Fees & Charges,P03,Wellbeing,CHERRY GARDEN PROPERTIES LTD,05/06/2013,135.45
Bath & North East Somerset Council,80223410,LM3,Residential Care,P03,Wellbeing,CHERRY GARDEN PROPERTIES LTD,05/06/2013,433.5
Bath & North East Somerset Council,80223410,LM3,Residential Care,P03,Wellbeing,CHERRY GARDEN PROPERTIES LTD,05/06/2013,433.5
Bath & North East Somerset Council,80223410,LM6,Nursing Care,P03,Wellbeing,CHERRY GARDEN PROPERTIES LTD,05/06/2013,552
Bath & North East Somerset Council,80223410,LM6,Nursing Care,P03,Wellbeing,CHERRY GARDEN PROPERTIES LTD,05/06/2013,552
Bath & North East Somerset Council,80223410,LM6,Nursing Care,P03,Wellbeing,CHERRY GARDEN PROPERTIES LTD,05/06/2013,552
Bath & North East Somerset Council,80223410,LM6,Nursing Care,P03,Wellbeing,CHERRY GARDEN PROPERTIES LTD,05/06/2013,552
Bath & North East Somerset Council,80223410,LM6,Nursing Care,P03,Wellbeing,CHERRY GARDEN PROPERTIES LTD,05/06/2013,552
Bath & North East Somerset Council,80223410,LM6,Nursing Care,P03,Wellbeing,CHERRY GARDEN PROPERTIES LTD,05/06/2013,552
Bath & North East Somerset Council,80223410,LM6,Nursing Care,P03,Wellbeing,CHERRY GARDEN PROPERTIES LTD,05/06/2013,552
Bath & North East Somerset Council,80223410,LM6,Nursing Care,P03,Wellbeing,CHERRY GARDEN PROPERTIES LTD,05/06/2013,552
Bath & North East Somerset Council,80223410,LM6,Nursing Care,P03,Wellbeing,CHERRY GARDEN PROPERTIES LTD,05/06/2013,552
Bath & North East Somerset Council,80223410,LM6,Nursing Care,P03,Wellbeing,CHERRY GARDEN PROPERTIES LTD,05/06/2013,552
Bath & North East Somerset Council,80223410,LM6,Nursing Care,P03,Wellbeing,CHERRY GARDEN PROPERTIES LTD,05/06/2013,552
Bath & North East Somerset Council,80223410,LM6,Nursing Care,P03,Wellbeing,CHERRY GARDEN PROPERTIES LTD,05/06/2013,552
Bath & North East Somerset Council,80223410,LM6,Nursing Care,P03,Wellbeing,CHERRY GARDEN PROPERTIES LTD,05/06/2013,552
Bath & North East Somerset Council,80223410,LM6,Nursing Care,P03,Wellbeing,CHERRY GARDEN PROPERTIES LTD,05/06/2013,552
Bath & North East Somerset Council,80223410,LM6,Nursing Care,P03,Wellbeing,CHERRY GARDEN PROPERTIES LTD,05/06/2013,600
Bath & North East Somerset Council,80223410,LM6,Nursing Care,P03,Wellbeing,CHERRY GARDEN PROPERTIES LTD,05/06/2013,600
Bath & North East Somerset Council,80223410,LM6,Nursing Care,P03,Wellbeing,CHERRY GARDEN PROPERTIES LTD,05/06/2013,650
Bath & North East Somerset Council,80223410,LM6,Nursing Care,P03,Wellbeing,CHERRY GARDEN PROPERTIES LTD,05/06/2013,650
Bath & North East Somerset Council,80223410,LM6,Nursing Care,P03,Wellbeing,CHERRY GARDEN PROPERTIES LTD,05/06/2013,650
Bath & North East Somerset Council,80223410,LM6,Nursing Care,P03,Wellbeing,CHERRY GARDEN PROPERTIES LTD,05/06/2013,650
Bath & North East Somerset Council,80223430,LM3,Residential Care,P03,Wellbeing,CHESCOMBE TRUST,05/06/2013,907.91
Bath & North East Somerset Council,80223430,LM3,Residential Care,P03,Wellbeing,CHESCOMBE TRUST,05/06/2013,907.91
Bath & North East Somerset Council,80223124,LK4,Nursery/Childcare Vouchers,P02,"Early Years, Children & Youth",CHILDBASE LTD,05/06/2013,8209.39
Bath & North East Somerset Council,80223320,LM3,Residential Care,P03,Wellbeing,CHOICE LTD,05/06/2013,2074.51
Bath & North East Somerset Council,80223320,LM3,Residential Care,P03,Wellbeing,CHOICE LTD,05/06/2013,2074.51
Bath & North East Somerset Council,80223106,LK4,Nursery/Childcare Vouchers,P02,"Early Years, Children & Youth",REDACTED CHILDCARE,05/06/2013,599.95
Bath & North East Somerset Council,80223346,LM3,Residential Care,P03,Wellbeing,CLEEVE LODGE CARE LTD,05/06/2013,433.5
Bath & North East Somerset Council,80223346,LM3,Residential Care,P03,Wellbeing,CLEEVE LODGE CARE LTD,05/06/2013,433.5
Bath & North East Somerset Council,80223452,YF2,Fees & Charges,P03,Wellbeing,COCKLEBURY FARMHOUSE,05/06/2013,77.85
Bath & North East Somerset Council,80223452,YF2,Fees & Charges,P03,Wellbeing,COCKLEBURY FARMHOUSE,05/06/2013,77.85
Bath & North East Somerset Council,80223452,YF2,Fees & Charges,P03,Wellbeing,COCKLEBURY FARMHOUSE,05/06/2013,77.85
Bath & North East Somerset Council,80223452,YF2,Fees & Charges,P03,Wellbeing,COCKLEBURY FARMHOUSE,05/06/2013,77.85
Bath & North East Somerset Council,80223452,YF2,Fees & Charges,P03,Wellbeing,COCKLEBURY FARMHOUSE,05/06/2013,77.85
Bath & North East Somerset Council,80223452,YF2,Fees & Charges,P03,Wellbeing,COCKLEBURY FARMHOUSE,05/06/2013,77.85
Bath & North East Somerset Council,80223452,YF2,Fees & Charges,P03,Wellbeing,COCKLEBURY FARMHOUSE,05/06/2013,77.85
Bath & North East Somerset Council,80223452,LM3,Residential Care,P03,Wellbeing,COCKLEBURY FARMHOUSE,05/06/2013,985.3
Bath & North East Somerset Council,80223452,LM3,Residential Care,P03,Wellbeing,COCKLEBURY FARMHOUSE,05/06/2013,985.3
Bath & North East Somerset Council,80223115,LK4,Nursery/Childcare Vouchers,P02,"Early Years, Children & Youth",COMBE DOWN NURSERY,05/06/2013,16472.5
Bath & North East Somerset Council,80223322,LL3,Supported Living,P03,Wellbeing,COMMUNITY OF ST ANTONY & ST ELIAS & REV FR BGPR &,05/06/2013,1780
Bath & North East Somerset Council,80223322,LL3,Supported Living,P03,Wellbeing,COMMUNITY OF ST ANTONY & ST ELIAS & REV FR BGPR &,05/06/2013,1780
Bath & North East Somerset Council,80223384,LM3,Residential Care,P03,Wellbeing,COMMUNITY THERAPEUTIC SERVICES LTD,05/06/2013,2637.83
Bath & North East Somerset Council,80223384,LM3,Residential Care,P03,Wellbeing,COMMUNITY THERAPEUTIC SERVICES LTD,05/06/2013,2637.83
Bath & North East Somerset Council,80223355,LM3,Residential Care,P03,Wellbeing,CONSENSUS SUPPORT SERVICES LTD,05/06/2013,1917.74
Bath & North East Somerset Council,80223355,LM3,Residential Care,P03,Wellbeing,CONSENSUS SUPPORT SERVICES LTD,05/06/2013,1917.74
Bath & North East Somerset Council,80223355,LM3,Residential Care,P03,Wellbeing,CONSENSUS SUPPORT SERVICES LTD,05/06/2013,1956.88
Bath & North East Somerset Council,80223355,LM3,Residential Care,P03,Wellbeing,CONSENSUS SUPPORT SERVICES LTD,05/06/2013,1956.88
Bath & North East Somerset Council,80223355,LM3,Residential Care,P03,Wellbeing,CONSENSUS SUPPORT SERVICES LTD,05/06/2013,1996.01
Bath & North East Somerset Council,80223355,LM3,Residential Care,P03,Wellbeing,CONSENSUS SUPPORT SERVICES LTD,05/06/2013,1996.01
Bath & North East Somerset Council,80223355,LM3,Residential Care,P03,Wellbeing,CONSENSUS SUPPORT SERVICES LTD,05/06/2013,1996.01
Bath & North East Somerset Council,80223355,LM3,Residential Care,P03,Wellbeing,CONSENSUS SUPPORT SERVICES LTD,05/06/2013,1996.01
Bath & North East Somerset Council,80223355,LM3,Residential Care,P03,Wellbeing,CONSENSUS SUPPORT SERVICES LTD,05/06/2013,3921.83
Bath & North East Somerset Council,80223355,LM3,Residential Care,P03,Wellbeing,CONSENSUS SUPPORT SERVICES LTD,05/06/2013,3921.83
Bath & North East Somerset Council,80223454,LM3,Residential Care,P03,Wellbeing,CORNERSTONES UK LTD,05/06/2013,737.11
Bath & North East Somerset Council,80223454,LM3,Residential Care,P03,Wellbeing,CORNERSTONES UK LTD,05/06/2013,737.11
Bath & North East Somerset Council,80223296,LM3,Residential Care,P03,Wellbeing,CORNERSTONES UK LTD,05/06/2013,1037.8
Bath & North East Somerset Council,80223296,LM3,Residential Care,P03,Wellbeing,CORNERSTONES UK LTD,05/06/2013,1037.8
Bath & North East Somerset Council,80223107,LK4,Nursery/Childcare Vouchers,P02,"Early Years, Children & Youth",COUNTRY GARDEN DAY NURSERY,05/06/2013,13019.09
Bath & North East Somerset Council,80223309,LM3,Residential Care,P03,Wellbeing,CRAEGMOOR FACILITIES - ALEXANDRA HOUSE,05/06/2013,1516.65
Bath & North East Somerset Council,80223309,LM3,Residential Care,P03,Wellbeing,CRAEGMOOR FACILITIES - ALEXANDRA HOUSE,05/06/2013,1516.65
Bath & North East Somerset Council,80223345,LM3,Residential Care,P03,Wellbeing,CRAEGMOOR FACILITIES - CHERRYWOOD HOU,05/06/2013,783.47
Bath & North East Somerset Council,80223345,LM3,Residential Care,P03,Wellbeing,CRAEGMOOR FACILITIES - CHERRYWOOD HOU,05/06/2013,783.47
Bath & North East Somerset Council,80223303,LM3,Residential Care,P03,Wellbeing,CRAEGMOOR FACILITIES - ELM TREE HOUSE,05/06/2013,974.68
Bath & North East Somerset Council,80223303,LM3,Residential Care,P03,Wellbeing,CRAEGMOOR FACILITIES - ELM TREE HOUSE,05/06/2013,974.68
Bath & North East Somerset Council,80223303,LM3,Residential Care,P03,Wellbeing,CRAEGMOOR FACILITIES - ELM TREE HOUSE,05/06/2013,1121.04
Bath & North East Somerset Council,80223303,LM3,Residential Care,P03,Wellbeing,CRAEGMOOR FACILITIES - ELM TREE HOUSE,05/06/2013,1121.04
Bath & North East Somerset Council,80223453,LM3,Residential Care,P03,Wellbeing,CRAEGMOOR FACILITIES - OLD VICARAGE,05/06/2013,1217.39
Bath & North East Somerset Council,80223453,LM3,Residential Care,P03,Wellbeing,CRAEGMOOR FACILITIES - OLD VICARAGE,05/06/2013,1217.39
Bath & North East Somerset Council,80223297,LM3,Residential Care,P03,Wellbeing,CRAEGMOOR FACILITIES-ROSEHILL REHAB UNI,05/06/2013,1491.91
Bath & North East Somerset Council,80223297,LM3,Residential Care,P03,Wellbeing,CRAEGMOOR FACILITIES-ROSEHILL REHAB UNI,05/06/2013,1491.91
Bath & North East Somerset Council,80223399,LM3,Residential Care,P03,Wellbeing,CREAM HOLDING (TAUNTON) LTD,05/06/2013,2483
Bath & North East Somerset Council,80223399,LM3,Residential Care,P03,Wellbeing,CREAM HOLDING (TAUNTON) LTD,05/06/2013,2483
Bath & North East Somerset Council,80223331,LM3,Residential Care,P03,Wellbeing,CREAM I LTD,05/06/2013,1522.64
Bath & North East Somerset Council,80223331,LM3,Residential Care,P03,Wellbeing,CREAM I LTD,05/06/2013,1522.64
Bath & North East Somerset Council,80223432,YF2,Fees & Charges,P03,Wellbeing,CULVERHAY NURSING HOME,05/06/2013,130.25
Bath & North East Somerset Council,80223432,YF2,Fees & Charges,P03,Wellbeing,CULVERHAY NURSING HOME,05/06/2013,130.25
Bath & North East Somerset Council,80223432,YF2,Fees & Charges,P03,Wellbeing,CULVERHAY NURSING HOME,05/06/2013,130.25
Bath & North East Somerset Council,80223432,YF2,Fees & Charges,P03,Wellbeing,CULVERHAY NURSING HOME,05/06/2013,130.25
Bath & North East Somerset Council,80223432,YF2,Fees & Charges,P03,Wellbeing,CULVERHAY NURSING HOME,05/06/2013,130.25
Bath & North East Somerset Council,80223432,YF2,Fees & Charges,P03,Wellbeing,CULVERHAY NURSING HOME,05/06/2013,130.25
Bath & North East Somerset Council,80223432,YF2,Fees & Charges,P03,Wellbeing,CULVERHAY NURSING HOME,05/06/2013,130.25
Bath & North East Somerset Council,80223432,YF2,Fees & Charges,P03,Wellbeing,CULVERHAY NURSING HOME,05/06/2013,130.25
Bath & North East Somerset Council,80223432,YF2,Fees & Charges,P03,Wellbeing,CULVERHAY NURSING HOME,05/06/2013,130.25
Bath & North East Somerset Council,80223432,YF2,Fees & Charges,P03,Wellbeing,CULVERHAY NURSING HOME,05/06/2013,130.25
Bath & North East Somerset Council,80223432,YF2,Fees & Charges,P03,Wellbeing,CULVERHAY NURSING HOME,05/06/2013,130.25
Bath & North East Somerset Council,80223432,YF2,Fees & Charges,P03,Wellbeing,CULVERHAY NURSING HOME,05/06/2013,130.25
Bath & North East Somerset Council,80223432,YF2,Fees & Charges,P03,Wellbeing,CULVERHAY NURSING HOME,05/06/2013,130.25
Bath & North East Somerset Council,80223432,YF2,Fees & Charges,P03,Wellbeing,CULVERHAY NURSING HOME,05/06/2013,130.25
Bath & North East Somerset Council,80223432,YF2,Fees & Charges,P03,Wellbeing,CULVERHAY NURSING HOME,05/06/2013,130.25
Bath & North East Somerset Council,80223432,YF2,Fees & Charges,P03,Wellbeing,CULVERHAY NURSING HOME,05/06/2013,130.25
Bath & North East Somerset Council,80223432,YF2,Fees & Charges,P03,Wellbeing,CULVERHAY NURSING HOME,05/06/2013,130.25
Bath & North East Somerset Council,80223432,YF2,Fees & Charges,P03,Wellbeing,CULVERHAY NURSING HOME,05/06/2013,130.25
Bath & North East Somerset Council,80223432,YF2,Fees & Charges,P03,Wellbeing,CULVERHAY NURSING HOME,05/06/2013,130.25
Bath & North East Somerset Council,80223432,YF2,Fees & Charges,P03,Wellbeing,CULVERHAY NURSING HOME,05/06/2013,130.25
Bath & North East Somerset Council,80223432,YF2,Fees & Charges,P03,Wellbeing,CULVERHAY NURSING HOME,05/06/2013,130.25
Bath & North East Somerset Council,80223432,YF2,Fees & Charges,P03,Wellbeing,CULVERHAY NURSING HOME,05/06/2013,130.25
Bath & North East Somerset Council,80223432,YF2,Fees & Charges,P03,Wellbeing,CULVERHAY NURSING HOME,05/06/2013,130.25
Bath & North East Somerset Council,80223432,YF2,Fees & Charges,P03,Wellbeing,CULVERHAY NURSING HOME,05/06/2013,130.25
Bath & North East Somerset Council,80223432,YF2,Fees & Charges,P03,Wellbeing,CULVERHAY NURSING HOME,05/06/2013,130.25
Bath & North East Somerset Council,80223432,YF2,Fees & Charges,P03,Wellbeing,CULVERHAY NURSING HOME,05/06/2013,130.25
Bath & North East Somerset Council,80223432,YF2,Fees & Charges,P03,Wellbeing,CULVERHAY NURSING HOME,05/06/2013,130.25
Bath & North East Somerset Council,80223432,YF2,Fees & Charges,P03,Wellbeing,CULVERHAY NURSING HOME,05/06/2013,130.25
Bath & North East Somerset Council,80223432,YF2,Fees & Charges,P03,Wellbeing,CULVERHAY NURSING HOME,05/06/2013,130.25
Bath & North East Somerset Council,80223432,YF2,Fees & Charges,P03,Wellbeing,CULVERHAY NURSING HOME,05/06/2013,130.25
Bath & North East Somerset Council,80223432,YF2,Fees & Charges,P03,Wellbeing,CULVERHAY NURSING HOME,05/06/2013,130.25
Bath & North East Somerset Council,80223432,YF2,Fees & Charges,P03,Wellbeing,CULVERHAY NURSING HOME,05/06/2013,130.25
Bath & North East Somerset Council,80223432,YF2,Fees & Charges,P03,Wellbeing,CULVERHAY NURSING HOME,05/06/2013,130.25
Bath & North East Somerset Council,80223432,YF2,Fees & Charges,P03,Wellbeing,CULVERHAY NURSING HOME,05/06/2013,130.25
Bath & North East Somerset Council,80223432,YF2,Fees & Charges,P03,Wellbeing,CULVERHAY NURSING HOME,05/06/2013,130.25
Bath & North East Somerset Council,80223432,YF2,Fees & Charges,P03,Wellbeing,CULVERHAY NURSING HOME,05/06/2013,130.25
Bath & North East Somerset Council,80223432,YF2,Fees & Charges,P03,Wellbeing,CULVERHAY NURSING HOME,05/06/2013,130.25
Bath & North East Somerset Council,80223432,YF2,Fees & Charges,P03,Wellbeing,CULVERHAY NURSING HOME,05/06/2013,130.25
Bath & North East Somerset Council,80223432,YF2,Fees & Charges,P03,Wellbeing,CULVERHAY NURSING HOME,05/06/2013,130.25
Bath & North East Somerset Council,80223432,YF2,Fees & Charges,P03,Wellbeing,CULVERHAY NURSING HOME,05/06/2013,130.25
Bath & North East Somerset Council,80223432,YF2,Fees & Charges,P03,Wellbeing,CULVERHAY NURSING HOME,05/06/2013,130.25
Bath & North East Somerset Council,80223432,YF2,Fees & Charges,P03,Wellbeing,CULVERHAY NURSING HOME,05/06/2013,130.25
Bath & North East Somerset Council,80223432,YF2,Fees & Charges,P03,Wellbeing,CULVERHAY NURSING HOME,05/06/2013,130.25
Bath & North East Somerset Council,80223432,YF2,Fees & Charges,P03,Wellbeing,CULVERHAY NURSING HOME,05/06/2013,130.25
Bath & North East Somerset Council,80223432,YF2,Fees & Charges,P03,Wellbeing,CULVERHAY NURSING HOME,05/06/2013,130.25
Bath & North East Somerset Council,80223432,YF2,Fees & Charges,P03,Wellbeing,CULVERHAY NURSING HOME,05/06/2013,130.25
Bath & North East Somerset Council,80223432,YF2,Fees & Charges,P03,Wellbeing,CULVERHAY NURSING HOME,05/06/2013,130.25
Bath & North East Somerset Council,80223432,YF2,Fees & Charges,P03,Wellbeing,CULVERHAY NURSING HOME,05/06/2013,130.25
Bath & North East Somerset Council,80223432,YF2,Fees & Charges,P03,Wellbeing,CULVERHAY NURSING HOME,05/06/2013,130.25
Bath & North East Somerset Council,80223432,YF2,Fees & Charges,P03,Wellbeing,CULVERHAY NURSING HOME,05/06/2013,130.25
Bath & North East Somerset Council,80223432,YF2,Fees & Charges,P03,Wellbeing,CULVERHAY NURSING HOME,05/06/2013,130.25
Bath & North East Somerset Council,80223432,YF2,Fees & Charges,P03,Wellbeing,CULVERHAY NURSING HOME,05/06/2013,130.25
Bath & North East Somerset Council,80223432,YF2,Fees & Charges,P03,Wellbeing,CULVERHAY NURSING HOME,05/06/2013,130.25
Bath & North East Somerset Council,80223432,YF2,Fees & Charges,P03,Wellbeing,CULVERHAY NURSING HOME,05/06/2013,130.25
Bath & North East Somerset Council,80223432,YF2,Fees & Charges,P03,Wellbeing,CULVERHAY NURSING HOME,05/06/2013,130.25
Bath & North East Somerset Council,80223432,YF2,Fees & Charges,P03,Wellbeing,CULVERHAY NURSING HOME,05/06/2013,130.25
Bath & North East Somerset Council,80223432,YF2,Fees & Charges,P03,Wellbeing,CULVERHAY NURSING HOME,05/06/2013,130.25
Bath & North East Somerset Council,80223432,YF2,Fees & Charges,P03,Wellbeing,CULVERHAY NURSING HOME,05/06/2013,130.25
Bath & North East Somerset Council,80223432,YF2,Fees & Charges,P03,Wellbeing,CULVERHAY NURSING HOME,05/06/2013,130.25
Bath & North East Somerset Council,80223432,YF2,Fees & Charges,P03,Wellbeing,CULVERHAY NURSING HOME,05/06/2013,140.32
Bath & North East Somerset Council,80223432,YF2,Fees & Charges,P03,Wellbeing,CULVERHAY NURSING HOME,05/06/2013,140.32
Bath & North East Somerset Council,80223432,YF2,Fees & Charges,P03,Wellbeing,CULVERHAY NURSING HOME,05/06/2013,140.32
Bath & North East Somerset Council,80223432,YF2,Fees & Charges,P03,Wellbeing,CULVERHAY NURSING HOME,05/06/2013,140.32
Bath & North East Somerset Council,80223432,YF2,Fees & Charges,P03,Wellbeing,CULVERHAY NURSING HOME,05/06/2013,140.32
Bath & North East Somerset Council,80223432,YF2,Fees & Charges,P03,Wellbeing,CULVERHAY NURSING HOME,05/06/2013,140.32
Bath & North East Somerset Council,80223432,YF2,Fees & Charges,P03,Wellbeing,CULVERHAY NURSING HOME,05/06/2013,140.32
Bath & North East Somerset Council,80223432,LM6,Nursing Care,P03,Wellbeing,CULVERHAY NURSING HOME,05/06/2013,575
Bath & North East Somerset Council,80223432,LM6,Nursing Care,P03,Wellbeing,CULVERHAY NURSING HOME,05/06/2013,575
Bath & North East Somerset Council,80223432,LM6,Nursing Care,P03,Wellbeing,CULVERHAY NURSING HOME,05/06/2013,575
Bath & North East Somerset Council,80223432,LM6,Nursing Care,P03,Wellbeing,CULVERHAY NURSING HOME,05/06/2013,575
Bath & North East Somerset Council,80223432,LM6,Nursing Care,P03,Wellbeing,CULVERHAY NURSING HOME,05/06/2013,575
Bath & North East Somerset Council,80223432,LM6,Nursing Care,P03,Wellbeing,CULVERHAY NURSING HOME,05/06/2013,575
Bath & North East Somerset Council,80223432,LM6,Nursing Care,P03,Wellbeing,CULVERHAY NURSING HOME,05/06/2013,575
Bath & North East Somerset Council,80223432,LM6,Nursing Care,P03,Wellbeing,CULVERHAY NURSING HOME,05/06/2013,575
Bath & North East Somerset Council,80223432,LM6,Nursing Care,P03,Wellbeing,CULVERHAY NURSING HOME,05/06/2013,575
Bath & North East Somerset Council,80223432,LM6,Nursing Care,P03,Wellbeing,CULVERHAY NURSING HOME,05/06/2013,575
Bath & North East Somerset Council,80223432,LM6,Nursing Care,P03,Wellbeing,CULVERHAY NURSING HOME,05/06/2013,575
Bath & North East Somerset Council,80223432,LM6,Nursing Care,P03,Wellbeing,CULVERHAY NURSING HOME,05/06/2013,575
Bath & North East Somerset Council,80223432,LM6,Nursing Care,P03,Wellbeing,CULVERHAY NURSING HOME,05/06/2013,575
Bath & North East Somerset Council,80223432,LM6,Nursing Care,P03,Wellbeing,CULVERHAY NURSING HOME,05/06/2013,575
Bath & North East Somerset Council,80223432,LM6,Nursing Care,P03,Wellbeing,CULVERHAY NURSING HOME,05/06/2013,575
Bath & North East Somerset Council,80223432,LM6,Nursing Care,P03,Wellbeing,CULVERHAY NURSING HOME,05/06/2013,575
Bath & North East Somerset Council,80223432,LM6,Nursing Care,P03,Wellbeing,CULVERHAY NURSING HOME,05/06/2013,600
Bath & North East Somerset Council,80223432,LM6,Nursing Care,P03,Wellbeing,CULVERHAY NURSING HOME,05/06/2013,600
Bath & North East Somerset Council,80223432,LM6,Nursing Care,P03,Wellbeing,CULVERHAY NURSING HOME,05/06/2013,600
Bath & North East Somerset Council,80223432,LM6,Nursing Care,P03,Wellbeing,CULVERHAY NURSING HOME,05/06/2013,600
Bath & North East Somerset Council,80223432,LM6,Nursing Care,P03,Wellbeing,CULVERHAY NURSING HOME,05/06/2013,650
Bath & North East Somerset Council,80223432,LM6,Nursing Care,P03,Wellbeing,CULVERHAY NURSING HOME,05/06/2013,650
Bath & North East Somerset Council,80223432,LM6,Nursing Care,P03,Wellbeing,CULVERHAY NURSING HOME,05/06/2013,700
Bath & North East Somerset Council,80223432,LM6,Nursing Care,P03,Wellbeing,CULVERHAY NURSING HOME,05/06/2013,700
Bath & North East Somerset Council,80223432,LM6,Nursing Care,P03,Wellbeing,CULVERHAY NURSING HOME,05/06/2013,707
Bath & North East Somerset Council,80223432,LM6,Nursing Care,P03,Wellbeing,CULVERHAY NURSING HOME,05/06/2013,707
Bath & North East Somerset Council,80223432,LM6,Nursing Care,P03,Wellbeing,CULVERHAY NURSING HOME,05/06/2013,740
Bath & North East Somerset Council,80223432,LM6,Nursing Care,P03,Wellbeing,CULVERHAY NURSING HOME,05/06/2013,740
Bath & North East Somerset Council,80223432,LM6,Nursing Care,P03,Wellbeing,CULVERHAY NURSING HOME,05/06/2013,750
Bath & North East Somerset Council,80223432,LM6,Nursing Care,P03,Wellbeing,CULVERHAY NURSING HOME,05/06/2013,750
Bath & North East Somerset Council,80223432,LM6,Nursing Care,P03,Wellbeing,CULVERHAY NURSING HOME,05/06/2013,750
Bath & North East Somerset Council,80223432,LM6,Nursing Care,P03,Wellbeing,CULVERHAY NURSING HOME,05/06/2013,750
Bath & North East Somerset Council,80223432,LM6,Nursing Care,P03,Wellbeing,CULVERHAY NURSING HOME,05/06/2013,750
Bath & North East Somerset Council,80223432,LM6,Nursing Care,P03,Wellbeing,CULVERHAY NURSING HOME,05/06/2013,750
Bath & North East Somerset Council,80223432,LM6,Nursing Care,P03,Wellbeing,CULVERHAY NURSING HOME,05/06/2013,750
Bath & North East Somerset Council,80223432,LM6,Nursing Care,P03,Wellbeing,CULVERHAY NURSING HOME,05/06/2013,750
Bath & North East Somerset Council,80223432,LM6,Nursing Care,P03,Wellbeing,CULVERHAY NURSING HOME,05/06/2013,750
Bath & North East Somerset Council,80223432,LM6,Nursing Care,P03,Wellbeing,CULVERHAY NURSING HOME,05/06/2013,750
Bath & North East Somerset Council,80223432,LM6,Nursing Care,P03,Wellbeing,CULVERHAY NURSING HOME,05/06/2013,750
Bath & North East Somerset Council,80223432,LM6,Nursing Care,P03,Wellbeing,CULVERHAY NURSING HOME,05/06/2013,750
Bath & North East Somerset Council,80223432,LM6,Nursing Care,P03,Wellbeing,CULVERHAY NURSING HOME,05/06/2013,750
Bath & North East Somerset Council,80223432,LM6,Nursing Care,P03,Wellbeing,CULVERHAY NURSING HOME,05/06/2013,750
Bath & North East Somerset Council,10702083,LV3,Commissioned Services,P06,Sustainable Development,BATH TOURISM PLUS,05/06/2013,339.6
Bath & North East Somerset Council,80223432,LM6,Nursing Care,P03,Wellbeing,CULVERHAY NURSING HOME,05/06/2013,757.5
Bath & North East Somerset Council,80223432,LM6,Nursing Care,P03,Wellbeing,CULVERHAY NURSING HOME,05/06/2013,757.5
Bath & North East Somerset Council,10701199,LJ4,Contracts,P01,Transport,CHIPSIDE LIMITED,05/06/2013,342.5
Bath & North East Somerset Council,10701199,LJ4,Contracts,P01,Transport,CHIPSIDE LIMITED,05/06/2013,342.5
Bath & North East Somerset Council,80223432,LM6,Nursing Care,P03,Wellbeing,CULVERHAY NURSING HOME,05/06/2013,850
Bath & North East Somerset Council,80223432,LM6,Nursing Care,P03,Wellbeing,CULVERHAY NURSING HOME,05/06/2013,850
Bath & North East Somerset Council,80223432,LM6,Nursing Care,P03,Wellbeing,CULVERHAY NURSING HOME,05/06/2013,900
Bath & North East Somerset Council,80223432,LM6,Nursing Care,P03,Wellbeing,CULVERHAY NURSING HOME,05/06/2013,900
Bath & North East Somerset Council,80223416,YF2,Fees & Charges,P03,Wellbeing,DAVID NERY LTD,05/06/2013,73.26
Bath & North East Somerset Council,80223416,LM3,Residential Care,P03,Wellbeing,DAVID NERY LTD,05/06/2013,433.5
Bath & North East Somerset Council,80223416,LM3,Residential Care,P03,Wellbeing,DAVID NERY LTD,05/06/2013,433.5
Bath & North East Somerset Council,80223416,LM3,Residential Care,P03,Wellbeing,DAVID NERY LTD,05/06/2013,433.5
Bath & North East Somerset Council,80223416,LM3,Residential Care,P03,Wellbeing,DAVID NERY LTD,05/06/2013,433.5
Bath & North East Somerset Council,80223416,LM3,Residential Care,P03,Wellbeing,DAVID NERY LTD,05/06/2013,433.5
Bath & North East Somerset Council,80223416,LM3,Residential Care,P03,Wellbeing,DAVID NERY LTD,05/06/2013,433.5
Bath & North East Somerset Council,80223383,LM6,Nursing Care,P03,Wellbeing,DELPHINE HOME CARE,05/06/2013,624.4
Bath & North East Somerset Council,80223383,LM6,Nursing Care,P03,Wellbeing,DELPHINE HOME CARE,05/06/2013,624.4
Bath & North East Somerset Council,80223383,LM6,Nursing Care,P03,Wellbeing,DELPHINE HOME CARE,05/06/2013,640
Bath & North East Somerset Council,80223383,LM6,Nursing Care,P03,Wellbeing,DELPHINE HOME CARE,05/06/2013,640
Bath & North East Somerset Council,80223321,LM3,Residential Care,P03,Wellbeing,DEVON SHELTERED HOMES TRUST - REDACTED,05/06/2013,600.29
Bath & North East Somerset Council,80223321,LM3,Residential Care,P03,Wellbeing,DEVON SHELTERED HOMES TRUST - REDACTED,05/06/2013,600.29
Bath & North East Somerset Council,80223510,LM2,Foster Carer Allowances,P02,"Early Years, Children & Youth",DEVON SHELTERED HOMES TRUST - REDACTED,05/06/2013,70
Bath & North East Somerset Council,80223510,LM2,Foster Carer Allowances,P02,"Early Years, Children & Youth",DEVON SHELTERED HOMES TRUST - REDACTED,05/06/2013,100
Bath & North East Somerset Council,80223510,LM2,Foster Carer Allowances,P02,"Early Years, Children & Youth",DEVON SHELTERED HOMES TRUST - REDACTED,05/06/2013,250
Bath & North East Somerset Council,80223510,LM2,Foster Carer Allowances,P02,"Early Years, Children & Youth",DEVON SHELTERED HOMES TRUST - REDACTED,05/06/2013,389.06
Bath & North East Somerset Council,80223429,YF2,Fees & Charges,P03,Wellbeing,DEVON SHELTERED HOMES TRUST - REDACTED,05/06/2013,77.85
Bath & North East Somerset Council,80223429,YF2,Fees & Charges,P03,Wellbeing,DEVON SHELTERED HOMES TRUST - REDACTED,05/06/2013,77.85
Bath & North East Somerset Council,80223429,YF2,Fees & Charges,P03,Wellbeing,DEVON SHELTERED HOMES TRUST - REDACTED,05/06/2013,77.85
Bath & North East Somerset Council,10702453,LA5,Materials,P05,Neighbourhoods,H & T PROCTOR,05/06/2013,375
Bath & North East Somerset Council,80223429,YF2,Fees & Charges,P03,Wellbeing,DEVON SHELTERED HOMES TRUST - REDACTED,05/06/2013,77.85
Bath & North East Somerset Council,80223429,YF2,Fees & Charges,P03,Wellbeing,DEVON SHELTERED HOMES TRUST - REDACTED,05/06/2013,77.85
Bath & North East Somerset Council,80223429,YF2,Fees & Charges,P03,Wellbeing,DEVON SHELTERED HOMES TRUST - REDACTED,05/06/2013,77.85
Bath & North East Somerset Council,80223429,YF2,Fees & Charges,P03,Wellbeing,DEVON SHELTERED HOMES TRUST - REDACTED,05/06/2013,77.85
Bath & North East Somerset Council,80223429,LM3,Residential Care,P03,Wellbeing,DEVON SHELTERED HOMES TRUST - REDACTED,05/06/2013,1100
Bath & North East Somerset Council,80223429,LM3,Residential Care,P03,Wellbeing,DEVON SHELTERED HOMES TRUST - REDACTED,05/06/2013,1100
Bath & North East Somerset Council,10702257,LJ4,Contracts,P01,Transport,RIVERSIDE TAXIS,05/06/2013,380
Bath & North East Somerset Council,80223262,YF2,Fees & Charges,P03,Wellbeing,DIMENSIONS (UK) LTD,05/06/2013,77.85
Bath & North East Somerset Council,80223262,YF2,Fees & Charges,P03,Wellbeing,DIMENSIONS (UK) LTD,05/06/2013,77.85
Bath & North East Somerset Council,80223262,YF2,Fees & Charges,P03,Wellbeing,DIMENSIONS (UK) LTD,05/06/2013,77.85
Bath & North East Somerset Council,80223262,YF2,Fees & Charges,P03,Wellbeing,DIMENSIONS (UK) LTD,05/06/2013,77.85
Bath & North East Somerset Council,80223262,YF2,Fees & Charges,P03,Wellbeing,DIMENSIONS (UK) LTD,05/06/2013,77.85
Bath & North East Somerset Council,80223262,YF2,Fees & Charges,P03,Wellbeing,DIMENSIONS (UK) LTD,05/06/2013,77.85
Bath & North East Somerset Council,80223262,YF2,Fees & Charges,P03,Wellbeing,DIMENSIONS (UK) LTD,05/06/2013,77.85
Bath & North East Somerset Council,80223262,YF2,Fees & Charges,P03,Wellbeing,DIMENSIONS (UK) LTD,05/06/2013,77.85
Bath & North East Somerset Council,80223262,YF2,Fees & Charges,P03,Wellbeing,DIMENSIONS (UK) LTD,05/06/2013,77.85
Bath & North East Somerset Council,80223262,YF2,Fees & Charges,P03,Wellbeing,DIMENSIONS (UK) LTD,05/06/2013,77.85
Bath & North East Somerset Council,80223262,YF2,Fees & Charges,P03,Wellbeing,DIMENSIONS (UK) LTD,05/06/2013,77.85
Bath & North East Somerset Council,80223262,YF2,Fees & Charges,P03,Wellbeing,DIMENSIONS (UK) LTD,05/06/2013,77.85
Bath & North East Somerset Council,80223262,YF2,Fees & Charges,P03,Wellbeing,DIMENSIONS (UK) LTD,05/06/2013,77.85
Bath & North East Somerset Council,80223262,YF2,Fees & Charges,P03,Wellbeing,DIMENSIONS (UK) LTD,05/06/2013,77.85
Bath & North East Somerset Council,80223265,YF2,Fees & Charges,P03,Wellbeing,DIMENSIONS (UK) LTD,05/06/2013,77.85
Bath & North East Somerset Council,80223265,YF2,Fees & Charges,P03,Wellbeing,DIMENSIONS (UK) LTD,05/06/2013,77.85
Bath & North East Somerset Council,80223265,YF2,Fees & Charges,P03,Wellbeing,DIMENSIONS (UK) LTD,05/06/2013,77.85
Bath & North East Somerset Council,80223265,YF2,Fees & Charges,P03,Wellbeing,DIMENSIONS (UK) LTD,05/06/2013,77.85
Bath & North East Somerset Council,80223265,YF2,Fees & Charges,P03,Wellbeing,DIMENSIONS (UK) LTD,05/06/2013,77.85
Bath & North East Somerset Council,80223265,YF2,Fees & Charges,P03,Wellbeing,DIMENSIONS (UK) LTD,05/06/2013,77.85
Bath & North East Somerset Council,80223265,YF2,Fees & Charges,P03,Wellbeing,DIMENSIONS (UK) LTD,05/06/2013,77.85
Bath & North East Somerset Council,10702251,LJ4,Contracts,P01,Transport,STEVE WARREN TRANSPORT SERVICES LTD,05/06/2013,412.5
Bath & North East Somerset Council,80223264,LM3,Residential Care,P03,Wellbeing,DIMENSIONS (UK) LTD,05/06/2013,316.19
Bath & North East Somerset Council,80223264,LM3,Residential Care,P03,Wellbeing,DIMENSIONS (UK) LTD,05/06/2013,316.19
Bath & North East Somerset Council,10700312,HA4,Responsive Maintenance PCB,P07,Community Resources,AWP SERVICES LTD,05/06/2013,837
Bath & North East Somerset Council,10701991,LA5,Materials,P05,Neighbourhoods,PAUL LEDBURY LTD,05/06/2013,425
Bath & North East Somerset Council,80223260,LM3,Residential Care,P03,Wellbeing,DIMENSIONS (UK) LTD,05/06/2013,362.38
Bath & North East Somerset Council,80223260,LM3,Residential Care,P03,Wellbeing,DIMENSIONS (UK) LTD,05/06/2013,362.38
Bath & North East Somerset Council,80223260,LM3,Residential Care,P03,Wellbeing,DIMENSIONS (UK) LTD,05/06/2013,366
Bath & North East Somerset Council,80223260,LM3,Residential Care,P03,Wellbeing,DIMENSIONS (UK) LTD,05/06/2013,366
Bath & North East Somerset Council,80223260,LM3,Residential Care,P03,Wellbeing,DIMENSIONS (UK) LTD,05/06/2013,366
Bath & North East Somerset Council,80223260,LM3,Residential Care,P03,Wellbeing,DIMENSIONS (UK) LTD,05/06/2013,366
Bath & North East Somerset Council,80223260,LM3,Residential Care,P03,Wellbeing,DIMENSIONS (UK) LTD,05/06/2013,366
Bath & North East Somerset Council,80223260,LM3,Residential Care,P03,Wellbeing,DIMENSIONS (UK) LTD,05/06/2013,366
Bath & North East Somerset Council,80223260,LM3,Residential Care,P03,Wellbeing,DIMENSIONS (UK) LTD,05/06/2013,384.14
Bath & North East Somerset Council,80223260,LM3,Residential Care,P03,Wellbeing,DIMENSIONS (UK) LTD,05/06/2013,384.14
Bath & North East Somerset Council,80223262,LM3,Residential Care,P03,Wellbeing,DIMENSIONS (UK) LTD,05/06/2013,385.26
Bath & North East Somerset Council,80223262,LM3,Residential Care,P03,Wellbeing,DIMENSIONS (UK) LTD,05/06/2013,385.26
Bath & North East Somerset Council,80223262,LM3,Residential Care,P03,Wellbeing,DIMENSIONS (UK) LTD,05/06/2013,385.26
Bath & North East Somerset Council,80223262,LM3,Residential Care,P03,Wellbeing,DIMENSIONS (UK) LTD,05/06/2013,385.26
Bath & North East Somerset Council,80223262,LM3,Residential Care,P03,Wellbeing,DIMENSIONS (UK) LTD,05/06/2013,385.26
Bath & North East Somerset Council,80223262,LM3,Residential Care,P03,Wellbeing,DIMENSIONS (UK) LTD,05/06/2013,385.26
Bath & North East Somerset Council,80223264,LM3,Residential Care,P03,Wellbeing,DIMENSIONS (UK) LTD,05/06/2013,385.26
Bath & North East Somerset Council,80223264,LM3,Residential Care,P03,Wellbeing,DIMENSIONS (UK) LTD,05/06/2013,385.26
Bath & North East Somerset Council,80223264,LM3,Residential Care,P03,Wellbeing,DIMENSIONS (UK) LTD,05/06/2013,385.26
